Workbook

Sheet Strategy
B1: Vocabulary 2013
G2: Words Learned per Semester | V2: PET words from Course book
B3: Class | C3: Words | D3: Sessions | E3: Total | F3: Weeks | G3: Sem 1 a | H3: Sem 1 b | I3: Sem 2 a | J3: Sem 2 b | K3: Year Total | M3: Tot.Words | N3: PET/SAT | O3: Cumulative | R3: M1-M3 | V3: Sem 1a | W3: Sem 1b | X3: Sem2a | Y3: Sem2b | Z3: Total | AA3: %
B4: M1 | C4: 6 | D4: 3 | E4: =C4*D4 -> 18 | F4: 10 | G4: =F4*E4 -> 180 | H4: =G4 -> 180 | I4: =G4 -> 180 | J4: =G4 -> 180 | K4: =SUM(G4:J4) -> 720 | M4: =K4 -> 720 | N4: =Z10 -> 568 | O4: =N4 -> 568 | P4: PET words | R4: Basic Vocabulary | U4: M1 | V4: ='M1 Sem 1a'!N3 -> 148 | W4: ='M1 Sem 1b'!N3 -> 135 | X4: ='M1 Sem 2a'!N3 -> 140 | Y4: ='M1 Sem 2b'!N3 -> 94 | Z4: =SUM(V4:Y4) -> 517 | AA4: =Z4/K4 -> 0.7180555556
B5: M2 | C5: 6 | D5: 3 | E5: 18 | F5: 10 | G5: 180 | H5: 180 | I5: 180 | J5: 180 | K5: 720 | M5: =M4+K5 -> 1440 | N5: =Z11 -> 582 | O5: =O4+N5 -> 1150 | P5: PET words | R5: =M6 -> 2160 | S5: words | U5: M2 | V5: ='M2 Sem 1a'!N3 -> 66 | W5: ='M2 Sem 1b'!N3 -> 81 | X5: ='M2 Sem 2a'!N3 -> 90 | Y5: ='M2 Sem 2b'!N3 -> 65 | Z5: =SUM(V5:Y5) -> 302 | AA5: =Z5/K5 -> 0.4194444444
B6: M3 | C6: 6 | D6: 3 | E6: 18 | F6: 10 | G6: 180 | H6: 180 | I6: 180 | J6: 180 | K6: 720 | M6: =M5+K6 -> 2160 | N6: =Z12 -> 444 | O6: =O5+N6 -> 1594 | P6: PET words | U6: M3 | V6: ='M3 Sem 1a'!N3 -> 56 | W6: ='M3 Sem 1b'!N3 -> 31 | X6: ='M3 Sem 2a'!N3 -> 49 | Y6: ='M3 Sem 2b'!N3 -> 51 | Z6: =SUM(V6:Y6) -> 187 | AA6: =Z6/K6 -> 0.2597222222
B7: M4 | C7: 10 | D7: 2 | E7: 20 | F7: 10 | G7: 200 | H7: 200 | I7: 200 | J7: 200 | K7: 800 | M7: 800 | N7: 482 | O7: 482 | P7: SAT words | R7: M4-M6
B8: M5 | C8: 10 | D8: 2 | E8: 20 | F8: 10 | G8: 200 | H8: 200 | I8: 200 | J8: 200 | K8: 800 | M8: 1600 | N8: 538 | O8: 1020 | P8: SAT words | R8: Academic Vocabulary | V8: PET words in Total M1-3
B9: M6 | C9: 10 | D9: 2 | E9: 20 | F9: 10 | G9: 200 | H9: 200 | I9: 200 | J9: 200 | K9: 800 | M9: 2400 | N9: 29 | O9: 1049 | P9: SAT words | R9: =M9 -> 2400 | S9: words | V9: Sem 1a | W9: Sem 1b | X9: Sem2a | Y9: Sem2b | Z9: Total | AA9: %
U10: M1 | V10: ='M1 Sem 1a'!N10 -> 152 | W10: ='M1 Sem 1b'!N10 -> 143 | X10: ='M1 Sem 2a'!N10 -> 144 | Y10: ='M1 Sem 2b'!N10 -> 129 | Z10: =SUM(V10:Y10) -> 568 | AA10: =Z10/K4 -> 0.7888888889
D11: M1 | E11: M2 | F11: M3 | G11: Total | H11: M4 | I11: M5 | J11: M6 | K11: Total | N11: Total Vocabulary (M1-M6) | R11: =R5+R9 -> 4560 | S11: words | U11: M2 | V11: ='M2 Sem 1a'!N10 -> 154 | W11: ='M2 Sem 1b'!N10 -> 147 | X11: ='M2 Sem 2a'!N10 -> 147 | Y11: ='M2 Sem 2b'!N10 -> 134 | Z11: =SUM(V11:Y11) -> 582 | AA11: =Z11/K5 -> 0.8083333333
B12: Nouns | D12: ='M1 Sem 1a'!N23 -> 425 | E12: ='M2 Sem 1a'!N23 -> 392 | F12: ='M3 Sem 1a'!N23 -> 440 | G12: =SUM(D12:F12) -> 1257 | H12: 357 | I12: 344 | J12: 301 | K12: =SUM(H12:J12) -> 1002 | U12: M3 | V12: ='M3 Sem 1a'!N10 -> 119 | W12: ='M3 Sem 1b'!N10 -> 137 | X12: ='M3 Sem 2a'!N10 -> 92 | Y12: ='M3 Sem 2b'!N10 -> 96 | Z12: =SUM(V12:Y12) -> 444 | AA12: =Z12/K6 -> 0.6166666667
B13: Verbs | D13: ='M1 Sem 1a'!N24 -> 128 | E13: ='M2 Sem 1a'!N24 -> 131 | F13: ='M3 Sem 1a'!N24 -> 140 | G13: =SUM(D13:F13) -> 399 | H13: 197 | I13: 200 | J13: 283 | K13: 680 | M13: M 4-6
B14: Adjectives | D14: ='M1 Sem 1a'!N25 -> 116 | E14: ='M2 Sem 1a'!N25 -> 125 | F14: ='M3 Sem 1a'!N25 -> 113 | G14: 354 | H14: 239 | I14: 254 | J14: 199 | K14: 692 | M14: SAT | N14: 1049 | O14: 0.4370833333
B15: Adverbs | D15: ='M1 Sem 1a'!N26 -> 27 | E15: ='M2 Sem 1a'!N26 -> 34 | F15: ='M3 Sem 1a'!N26 -> 13 | G15: 74 | H15: 6 | I15: 2 | J15: 12 | K15: 20 | M15: TOEFL | N15: 999 | O15: 0.41625
B16: Pronouns | D16: ='M1 Sem 1a'!N27 -> 5 | E16: ='M2 Sem 1a'!N27 -> 12 | F16: ='M3 Sem 1a'!N27 -> 5 | G16: 22 | H16: 0 | I16: 0 | J16: 0 | K16: 0 | M16: AWL | N16: 526 | O16: 0.2191666667
B17: Prepositions | D17: ='M1 Sem 1a'!N28 -> 10 | E17: ='M2 Sem 1a'!N28 -> 16 | F17: ='M3 Sem 1a'!N28 -> 4 | G17: 30 | H17: 1 | I17: 0 | J17: 3 | K17: 4
B18: Conjunctions | D18: ='M1 Sem 1a'!N29 -> 3 | E18: ='M2 Sem 1a'!N29 -> 6 | F18: ='M3 Sem 1a'!N29 -> 2 | G18: 11 | H18: 0 | I18: 0 | J18: 2 | K18: 2
B19: Expressions | D19: ='M1 Sem 1a'!N30 -> 6 | E19: ='M2 Sem 1a'!N30 -> 4 | F19: ='M3 Sem 1a'!N30 -> 3 | G19: 13 | H19: 0 | I19: 0 | J19: 0 | K19: 0
D20: =SUM(D12:D19) -> 720 | E20: =SUM(E12:E19) -> 720 | F20: 720 | G20: 2160 | H20: 8560 | I20: 7760 | J20: 6960 | K20: =SUM(K12:K19) -> 2400
B22: Vocabulary 2012
G23: Words Learned per Semester | V23: PET words from Course book
B24: Class | C24: Words | D24: Sessions | E24: Total | F24: Weeks | G24: Sem 1 a | H24: Sem 1 b | I24: Sem 2 a | J24: Sem 2 b | K24: Year Total | M24: Tot.Words | N24: PET/SAT | O24: Cumulative | R24: M1-M3 | V24: Sem 1a | W24: Sem 1b | X24: Sem2a | Y24: Sem2b | Z24: Total | AA24: %
B25: M1 | C25: 5 | D25: 3 | E25: 15 | F25: 8 | G25: 120 | H25: 120 | I25: 120 | J25: 120 | K25: 480 | M25: 480 | N25: 317 | O25: 317 | P25: PET words | R25: Basic Vocabulary | U25: M1 | V25: 62 | W25: 58 | X25: 60 | Y25: 12 | Z25: 192 | AA25: 0.4
B26: M2 | C26: 5 | D26: 3 | E26: 15 | F26: 9 | G26: 135 | H26: 135 | I26: 135 | J26: 135 | K26: 540 | M26: 1020 | N26: 540 | O26: 857 | P26: PET words | R26: 1620 | S26: words | U26: M2 | V26: 0 | W26: 0 | X26: 0 | Y26: 0 | Z26: 0 | AA26: 0
B27: M3 | C27: 5 | D27: 3 | E27: 15 | F27: 10 | G27: 150 | H27: 150 | I27: 150 | J27: 150 | K27: 600 | M27: 1620 | N27: 316 | O27: 1173 | P27: PET words | U27: M3 | V27: 60 | W27: 59 | X27: 36 | Y27: 53 | Z27: 208 | AA27: 0.3466666667
B28: M4 | C28: 10 | D28: 2 | E28: 20 | F28: 8 | G28: 160 | H28: 160 | I28: 160 | J28: 160 | K28: 640 | M28: 640 | P28: AWL words | R28: M4-M6
B29: M5 | C29: 10 | D29: 2 | E29: 20 | F29: 9 | G29: 180 | H29: 180 | I29: 180 | J29: 180 | K29: 720 | M29: 1360 | P29: AWL words | R29: Academic Vocabulary | V29: PET words in Total
B30: M6 | C30: 10 | D30: 2 | E30: 20 | F30: 10 | G30: 200 | H30: 200 | I30: 200 | J30: 200 | K30: 800 | M30: 2160 | P30: AWL words | R30: 2160 | S30: words | V30: Sem 1a | W30: Sem 1b | X30: Sem2a | Y30: Sem2b | Z30: Total | AA30: %
U31: M1 | V31: 69 | W31: 80 | X31: 67 | Y31: 101 | Z31: 317 | AA31: 0.6604166667
N32: Total Vocabulary (M1-M6) | R32: 3780 | S32: words | U32: M2 | V32: 135 | W32: 135 | X32: 135 | Y32: 135 | Z32: 540 | AA32: 1
U33: M3 | V33: 111 | W33: 76 | X33: 44 | Y33: 85 | Z33: 316 | AA33: 0.5266666667

Sheet TeamUp Dups
G1: 369 duplicated words | I1: Duplicates in Book 1 | J1: Book 1 found in Book 2 | K1: Duplicates in Book 2 | L1: Duplicates in Book 3 | M1: Book 1 found in Book 3 | N1: Book 2 found in Book 3
A2: 4 | B2: M1 Sem 1a | C2: 117 | D2: room | E2: M1 Sem 1a | F2: 118 | G2: in Glossary | H2: =SUM(I2:N2) -> 370 | I2: 46 | J2: 147 | K2: 39 | L2: 14 | M2: 68 | N2: 56
A3: 22 | B3: M1 Sem 1a | C3: 141 | D3: fat | E3: M1 Sem 1a | F3: 142 | G3: of TeamUp 1,2,3 | H3: 1 | I3: room | J3: too | K3: last | L3: strawberry | M3: bored | N3: real
A4: 13 | B4: M1 Sem 1a | C4: 303 | D4: listen | E4: M1 Sem 1b | F4: 124 | H4: 2 | I4: fat | J4: place | K4: dry | L4: rest | M4: shower | N4: training
A5: 18 | B5: M1 Sem 1a | C5: 331 | D5: tired | E5: M1 Sem 1b | F5: 152 | H5: 3 | I5: listen | J5: sad | K5: over | L5: increase | M5: touch | N5: top
A6: 34 | B6: M1 Sem 1a | C6: 269 | D6: knife | E6: M1 Sem 1b | F6: 90 | H6: 4 | I6: tired | J6: over | K6: miss | L6: diet | M6: bread | N6: definitely
A7: 51 | B7: M1 Sem 1a | C7: 184 | D7: big | E7: M1 Sem 1b | F7: 5 | H7: 5 | I7: knife | J7: real | K7: trip | L7: suggest | M7: rice | N7: brave
A8: 60 | B8: M1 Sem 1a | C8: 310 | D8: new | E8: M1 Sem 1b | F8: 131 | H8: 6 | I8: big | J8: silly | K8: straight | L8: bill | M8: strawberry | N8: hike
A9: 67 | B9: M1 Sem 1a | C9: 329 | D9: think | E9: M1 Sem 1b | F9: 150 | H9: 7 | I9: new | J9: lucky | K9: amazing | L9: rule | M9: listen | N9: join
A10: 79 | B10: M1 Sem 1b | C10: 294 | D10: drink | E10: M1 Sem 1b | F10: 115 | H10: 8 | I10: think | J10: straight | K10: more | L10: race | M10: dish | N10: fancy
A11: 92 | B11: M1 Sem 1b | C11: 266 | D11: glass | E11: M1 Sem 1b | F11: 87 | H11: 9 | I11: drink | J11: last | K11: training | L11: weak | M11: meal | N11: rule
A12: 106 | B12: M1 Sem 1b | C12: 282 | D12: sugar | E12: M1 Sem 1b | F12: 103 | H12: 10 | I12: glass | J12: paper | K12: ageing | L12: short | M12: spicy | N12: complusory
A13: 5 | B13: M1 Sem 1a | C13: 504 | D13: save | E13: M1 Sem 2a | F13: 145 | H13: 11 | I13: sugar | J13: cup | K13: stand | L13: salt | M13: watch | N13: uniform
A14: 35 | B14: M1 Sem 1a | C14: 441 | D14: match | E14: M1 Sem 2a | F14: 82 | H14: 12 | I14: save | J14: loud | K14: line | L14: wood | M14: damage | N14: together
A15: 48 | B15: M1 Sem 1a | C15: 424 | D15: watch | E15: M1 Sem 2a | F15: 65 | H15: 13 | I15: match | J15: quick | K15: slow | L15: novel | M15: insect | N15: behave
A16: 62 | B16: M1 Sem 1a | C16: 406 | D16: put | E16: M1 Sem 2a | F16: 47 | H16: 14 | I16: watch | J16: beach | K16: wait | L16: charm | M16: bite | N16: magazine
A17: 71 | B17: M1 Sem 1a | C17: 422 | D17: walk | E17: M1 Sem 2a | F17: 63 | H17: 15 | I17: put | J17: early | K17: mountain | M17: wrinkle | N17: track
A18: 84 | B18: M1 Sem 1b | C18: 447 | D18: pencil | E18: M1 Sem 2a | F18: 88 | H18: 16 | I18: walk | J18: guest | K18: dry | M18: jump | N18: strong
A19: 85 | B19: M1 Sem 1b | C19: 448 | D19: case | E19: M1 Sem 2a | F19: 89 | H19: 17 | I19: pencil | J19: never | K19: over | M19: save | N19: train
A20: 113 | B20: M1 Sem 1b | C20: 486 | D20: drink | E20: M1 Sem 2a | F20: 127 | H20: 18 | I20: case | J20: trip | K20: light | M20: flake | N20: sink
A21: 128 | B21: M1 Sem 1b | C21: 419 | D21: uniform | E21: M1 Sem 2a | F21: 60 | H21: 19 | I21: drink | J21: call | K21: good | M21: once | N21: tomato
A22: 139 | B22: M1 Sem 1b | C22: 464 | D22: sensitive | E22: M1 Sem 2a | F22: 105 | H22: 20 | I22: uniform | J22: expensive | K22: ice | M22: boot | N22: paper
A23: 144 | B23: M1 Sem 2a | C23: 428 | D23: because | E23: M1 Sem 2a | F23: 69 | H23: 21 | I23: sensitive | J23: miss | K23: quiet | M23: jeans | N23: silver
A24: 146 | B24: M1 Sem 2a | C24: 478 | D24: birthday | E24: M1 Sem 2a | F24: 119 | H24: 22 | I24: because | J24: birthday | K24: sly | M24: boil | N24: heavy
A25: 160 | B25: M1 Sem 2a | C25: 442 | D25: miss | E25: M1 Sem 2a | F25: 83 | H25: 23 | I25: birthday | J25: more | K25: bed | M25: same | N25: forget
A26: 204 | B26: M1 Sem 2a | C26: 514 | D26: world | E26: M1 Sem 2a | F26: 155 | H26: 24 | I26: miss | J26: wait | K26: next to | M26: size | N26: heat
A27: 49 | B27: M1 Sem 1a | C27: 675 | D27: wife | E27: M1 Sem 2b | F27: 136 | H27: 25 | I27: world | J27: world | K27: nearly | M27: pack | N27: melt
A28: 63 | B28: M1 Sem 1a | C28: 630 | D28: safe | E28: M1 Sem 2b | F28: 91 | H28: 26 | I28: wife | J28: keep | K28: remember | M28: iron | N28: peanut
A29: 64 | B29: M1 Sem 1a | C29: 571 | D29: shoe | E29: M1 Sem 2b | F29: 32 | H29: 27 | I29: safe | J29: stand | K29: travel | M29: shout | N29: tall
A30: 96 | B30: M1 Sem 1b | C30: 595 | D30: rubbish | E30: M1 Sem 2b | F30: 56 | H30: 28 | I30: shoe | J30: pair | K30: become | M30: doorbell | N30: relax
A31: 104 | B31: M1 Sem 1b | C31: 704 | D31: lunch | E31: M1 Sem 2b | F31: 165 | H31: 29 | I31: rubbish | J31: walk | K31: buy | M31: wide | N31: short
A32: 112 | B32: M1 Sem 1b | C32: 588 | D32: day | E32: M1 Sem 2b | F32: 49 | H32: 30 | I32: lunch | J32: boring | K32: everyone | N32: wood
A33: 114 | B33: M1 Sem 1b | C33: 589 | D33: homework | E33: M1 Sem 2b | F33: 50 | H33: 31 | I33: day | J33: dangerous | K33: leave | M33: increase | N33: boat
A34: 126 | B34: M1 Sem 1b | C34: 597 | D34: tidy | E34: M1 Sem 2b | F34: 58 | H34: 32 | I34: homework | J34: interesting | K34: more | M34: calcium | N34: dark
A35: 130 | B35: M1 Sem 1b | C35: 583 | D35: wear | E35: M1 Sem 2b | F35: 44 | H35: 33 | I35: tidy | J35: library | K35: pour | M35: fibre | N35: salt
A36: 131 | B36: M1 Sem 1b | C36: 654 | D36: almost | E36: M1 Sem 2b | F36: 115 | H36: 34 | I36: wear | J36: warm | K36: dark | M36: mineral | N36: stretch
A37: 141 | B37: M1 Sem 1b | C37: 574 | D37: sleep | E37: M1 Sem 2b | F37: 35 | H37: 35 | I37: almost | J37: drive | K37: everybody | M37: protein | N37: burn
A38: 150 | B38: M1 Sem 2a | C38: 617 | D38: dangerous | E38: M1 Sem 2b | F38: 78 | H38: 36 | I38: sleep | J38: ill | K38: find | M38: vitamin | N38: fiction
A39: 157 | B39: M1 Sem 2a | C39: 556 | D39: help | E39: M1 Sem 2b | F39: 17 | H39: 37 | I39: dangerous | J39: welcome | K39: sink | M39: fat | N39: lucky
A40: 172 | B40: M1 Sem 2a | C40: 596 | D40: walk | E40: M1 Sem 2b | F40: 57 | H40: 38 | I40: help | J40: high | K40: parking | M40: crisps | N40: weather
A41: 173 | B41: M1 Sem 2a | C41: 582 | D41: wash | E41: M1 Sem 2b | F41: 43 | H41: 39 | I41: walk | J41: bean | K41: rule | M41: fair | N41: job
A42: 192 | B42: M1 Sem 2a | C42: 558 | D42: jacket | E42: M1 Sem 2b | F42: 19 | H42: 40 | I42: wash | J42: become | M42: plump | N42: chat
A43: 212 | B43: M1 Sem 2a | C43: 700 | D43: ill | E43: M1 Sem 2b | F43: 161 | H43: 41 | I43: jacket | J43: floor | M43: packaging | N43: series
A44: 221 | B44: M1 Sem 2b | C44: 683 | D44: high-heeled | E44: M1 Sem 2b | F44: 144 | H44: 42 | I44: ill | J44: pick | M44: plastic | N44: find out
A45: 235 | B45: M1 Sem 2b | C45: 658 | D45: crossroad | E45: M1 Sem 2b | F45: 119 | H45: 43 | I45: high-heeled | J45: search | M45: butter | N45: dream
A46: 240 | B46: M1 Sem 2b | C46: 645 | D46: roundabout | E46: M1 Sem 2b | F46: 106 | H46: 44 | I46: crossroad | J46: stop | M46: flour | N46: mould
A47: 251 | B47: M1 Sem 2b | C47: 641 | D47: loser | E47: M1 Sem 2b | F47: 102 | H47: 45 | I47: roundabout | J47: long | M47: glass | N47: channel
A48: 14 | B48: M1 Sem 1a | C48: 736 | D48: too | E48: M2 Sem 1a | F48: 17 | H48: 46 | I48: loser | J48: tall | M48: ingredient | N48: snake
A49: 16 | B49: M1 Sem 1a | C49: 816 | D49: place | E49: M2 Sem 1a | F49: 97 | H49: 47 | J49: bring | M49: valuable | N49: provide
A50: 17 | B50: M1 Sem 1a | C50: 774 | D50: sad | E50: M2 Sem 1a | F50: 55 | H50: 48 | J50: leave | M50: breakfast | N50: bench
A51: 38 | B51: M1 Sem 1a | C51: 758 | D51: over | E51: M2 Sem 1a | F51: 39 | H51: 49 | J51: send | M51: cereal | N51: middle
A52: 40 | B52: M1 Sem 1a | C52: 817 | D52: real | E52: M2 Sem 1a | F52: 98 | H52: 50 | J52: billion | M52: carrot | N52: mirror
A53: 42 | B53: M1 Sem 1a | C53: 775 | D53: silly | E53: M2 Sem 1a | F53: 56 | H53: 51 | J53: chat | M53: exercise | N53: rabbit
A54: 58 | B54: M1 Sem 1a | C54: 765 | D54: lucky | E54: M2 Sem 1a | F54: 46 | H54: 52 | J54: deliver | M54: poisonous | N54: borrow
A55: 66 | B55: M1 Sem 1a | C55: 796 | D55: straight | E55: M2 Sem 1a | F55: 77 | H55: 53 | J55: fly | M55: sore | N55: lend
A56: 82 | B56: M1 Sem 1b | C56: 728 | D56: last | E56: M2 Sem 1a | F56: 9 | H56: 54 | J56: put | M56: farm | N56: live
A57: 94 | B57: M1 Sem 1b | C57: 840 | D57: paper | E57: M2 Sem 1a | F57: 121 | H57: 55 | J57: remember | M57: ladder | N57: work
A58: 100 | B58: M1 Sem 1b | C58: 848 | D58: cup | E58: M2 Sem 1a | F58: 129 | H58: 56 | J58: take | M58: ladybird | N58: stick
A59: 118 | B59: M1 Sem 1b | C59: 764 | D59: loud | E59: M2 Sem 1a | F59: 45 | H59: 57 | J59: back | M59: umbrella
A60: 120 | B60: M1 Sem 1b | C60: 772 | D60: quick | E60: M2 Sem 1a | F60: 53 | H60: 58 | J60: buy | M60: unlucky
A61: 143 | B61: M1 Sem 2a | C61: 827 | D61: beach | E61: M2 Sem 1a | F61: 108 | H61: 59 | J61: know | M61: class
A62: 152 | B62: M1 Sem 2a | C62: 807 | D62: early | E62: M2 Sem 1a | F62: 88 | H62: 60 | J62: postcard | M62: nickname
A63: 156 | B63: M1 Sem 2a | C63: 760 | D63: guest | E63: M2 Sem 1a | F63: 41 | H63: 61 | J63: fight | M63: after
A64: 161 | B64: M1 Sem 2a | C64: 767 | D64: never | E64: M2 Sem 1a | F64: 48 | H64: 62 | J64: mean | M64: shape
A65: 170 | B65: M1 Sem 2a | C65: 780 | D65: trip | E65: M2 Sem 1a | F65: 61 | H65: 63 | J65: mind | M65: news
A66: 178 | B66: M1 Sem 2a | C66: 804 | D66: call | E66: M2 Sem 1a | F66: 85 | H66: 64 | J66: need | M66: science
A67: 180 | B67: M1 Sem 2a | C67: 756 | D67: expensive | E67: M2 Sem 1a | F67: 37 | H67: 65 | J67: receive | M67: subject
A68: 182 | B68: M1 Sem 2a | C68: 766 | D68: miss | E68: M2 Sem 1a | F68: 47 | H68: 66 | J68: wrong | M68: case
A69: 194 | B69: M1 Sem 2a | C69: 803 | D69: birthday | E69: M2 Sem 1a | F69: 84 | H69: 67 | J69: busy | M69: fruit
A70: 199 | B70: M1 Sem 2a | C70: 833 | D70: more | E70: M2 Sem 1a | F70: 114 | H70: 68 | J70: cinema | M70: dragon
A71: 205 | B71: M1 Sem 2a | C71: 782 | D71: wait | E71: M2 Sem 1a | F71: 63 | H71: 69 | J71: hundred
A72: 206 | B72: M1 Sem 2a | C72: 847 | D72: world | E72: M2 Sem 1a | F72: 128 | H72: 70 | J72: pour
A73: 213 | B73: M1 Sem 2a | C73: 794 | D73: keep | E73: M2 Sem 1a | F73: 75 | H73: 71 | J73: roundabout
A74: 216 | B74: M1 Sem 2a | C74: 761 | D74: stand | E74: M2 Sem 1a | F74: 42 | H74: 72 | J74: across
A75: 217 | B75: M1 Sem 2b | C75: 769 | D75: pair | E75: M2 Sem 1a | F75: 50 | H75: 73 | J75: church
A76: 233 | B76: M1 Sem 2b | C76: 783 | D76: walk | E76: M2 Sem 1a | F76: 64 | H76: 74 | J76: journey
A77: 241 | B77: M1 Sem 2b | C77: 723 | D77: boring | E77: M2 Sem 1a | F77: 4 | H77: 75 | J77: thousand
A78: 244 | B78: M1 Sem 2b | C78: 750 | D78: dangerous | E78: M2 Sem 1a | F78: 31 | H78: 76 | J78: way
A79: 245 | B79: M1 Sem 2b | C79: 808 | D79: interesting | E79: M2 Sem 1a | F79: 89 | H79: 77 | J79: everybody
A80: 246 | B80: M1 Sem 2b | C80: 812 | D80: library | E80: M2 Sem 1a | F80: 93 | H80: 78 | J80: friend
A81: 257 | B81: M1 Sem 2b | C81: 784 | D81: warm | E81: M2 Sem 1a | F81: 65 | H81: 79 | J81: cold
A82: 261 | B82: M1 Sem 2b | C82: 753 | D82: drive | E82: M2 Sem 1a | F82: 34 | H82: 80 | J82: rich
A83: 272 | B83: M1 Sem 2b | C83: 838 | D83: ill | E83: M2 Sem 1a | F83: 119 | H83: 81 | J83: fox
A84: 275 | B84: M2 Sem 1a | C84: 810 | D84: last | E84: M2 Sem 1a | F84: 91 | H84: 82 | J84: fridge
A85: 7 | B85: M1 Sem 1a | C85: 999 | D85: welcome | E85: M2 Sem 1b | F85: 100 | H85: 83 | J85: house
A86: 24 | B86: M1 Sem 1a | C86: 1029 | D86: high | E86: M2 Sem 1b | F86: 130 | H86: 84 | J86: on
A87: 26 | B87: M1 Sem 1a | C87: 1002 | D87: bean | E87: M2 Sem 1b | F87: 103 | H87: 85 | J87: ready
A88: 52 | B88: M1 Sem 1a | C88: 958 | D88: become | E88: M2 Sem 1b | F88: 59 | H88: 86 | J88: sofa
A89: 55 | B89: M1 Sem 1a | C89: 1048 | D89: floor | E89: M2 Sem 1b | F89: 149 | H89: 87 | J89: table
A90: 61 | B90: M1 Sem 1a | C90: 1010 | D90: pick | E90: M2 Sem 1b | F90: 111 | H90: 88 | J90: wardrobe
A91: 73 | B91: M1 Sem 1a | C91: 1006 | D91: search | E91: M2 Sem 1b | F91: 107 | H91: 89 | J91: bad
A92: 75 | B92: M1 Sem 1b | C92: 944 | D92: stop | E92: M2 Sem 1b | F92: 45 | H92: 90 | J92: door
A93: 81 | B93: M1 Sem 1b | C93: 1032 | D93: long | E93: M2 Sem 1b | F93: 133 | H93: 91 | J93: heart
A94: 90 | B94: M1 Sem 1b | C94: 1044 | D94: tall | E94: M2 Sem 1b | F94: 145 | H94: 92 | J94: wood
A95: 111 | B95: M1 Sem 1b | C95: 959 | D95: bring | E95: M2 Sem 1b | F95: 60 | H95: 93 | J95: brilliant
A96: 116 | B96: M1 Sem 1b | C96: 977 | D96: leave | E96: M2 Sem 1b | F96: 78 | H96: 94 | J96: dark
A97: 122 | B97: M1 Sem 1b | C97: 990 | D97: send | E97: M2 Sem 1b | F97: 91 | H97: 95 | J97: short
A98: 132 | B98: M1 Sem 1b | C98: 905 | D98: billion | E98: M2 Sem 1b | F98: 6 | H98: 96 | J98: small
A99: 149 | B99: M1 Sem 2a | C99: 908 | D99: chat | E99: M2 Sem 1b | F99: 9 | H99: 97 | J99: bin
A100: 151 | B100: M1 Sem 2a | C100: 1059 | D100: deliver | E100: M2 Sem 1b | F100: 160 | H100: 98 | J100: makeup
A101: 154 | B101: M1 Sem 2a | C101: 972 | D101: fly | E101: M2 Sem 1b | F101: 73 | H101: 99 | J101: thing
A102: 165 | B102: M1 Sem 2a | C102: 986 | D102: put | E102: M2 Sem 1b | F102: 87 | H102: 100 | J102: seaside
A103: 166 | B103: M1 Sem 2a | C103: 941 | D103: remember | E103: M2 Sem 1b | F103: 42 | H103: 101 | J103: begin
A104: 169 | B104: M1 Sem 2a | C104: 1043 | D104: take | E104: M2 Sem 1b | F104: 144 | H104: 102 | J104: free
A105: 176 | B105: M1 Sem 2a | C105: 1000 | D105: back | E105: M2 Sem 1b | F105: 101 | H105: 103 | J105: kite
A106: 177 | B106: M1 Sem 2a | C106: 960 | D106: buy | E106: M2 Sem 1b | F106: 61 | H106: 104 | J106: poor
A107: 181 | B107: M1 Sem 2a | C107: 926 | D107: know | E107: M2 Sem 1b | F107: 27 | H107: 105 | J107: present
A108: 185 | B108: M1 Sem 2a | C108: 985 | D108: postcard | E108: M2 Sem 1b | F108: 86 | H108: 106 | J108: cheap
A109: 195 | B109: M1 Sem 2a | C109: 971 | D109: fight | E109: M2 Sem 1b | F109: 72 | H109: 107 | J109: nice
A110: 197 | B110: M1 Sem 2a | C110: 979 | D110: mean | E110: M2 Sem 1b | F110: 80 | H110: 108 | J110: health
A111: 198 | B111: M1 Sem 2a | C111: 980 | D111: mind | E111: M2 Sem 1b | F111: 81 | H111: 109 | J111: sensitive
A112: 200 | B112: M1 Sem 2a | C112: 983 | D112: need | E112: M2 Sem 1b | F112: 84 | H112: 110 | J112: sunglasses
A113: 215 | B113: M1 Sem 2a | C113: 987 | D113: receive | E113: M2 Sem 1b | F113: 88 | H113: 111 | J113: ice
A114: 226 | B114: M1 Sem 2b | C114: 1053 | D114: wrong | E114: M2 Sem 1b | F114: 154 | H114: 112 | J114: clean
A115: 227 | B115: M1 Sem 2b | C115: 1056 | D115: busy | E115: M2 Sem 1b | F115: 157 | H115: 113 | J115: relax
A116: 243 | B116: M1 Sem 2b | C116: 1022 | D116: cinema | E116: M2 Sem 1b | F116: 123 | H116: 114 | J116: rubbish
A117: 252 | B117: M1 Sem 2b | C117: 922 | D117: hundred | E117: M2 Sem 1b | F117: 23 | H117: 115 | J117: blind
A118: 253 | B118: M1 Sem 2b | C118: 1011 | D118: pour | E118: M2 Sem 1b | F118: 112 | H118: 116 | J118: brave
A119: 254 | B119: M1 Sem 2b | C119: 1038 | D119: roundabout | E119: M2 Sem 1b | F119: 139 | H119: 117 | J119: safe
A120: 263 | B120: M1 Sem 2b | C120: 1016 | D120: across | E120: M2 Sem 1b | F120: 117 | H120: 118 | J120: seat
A121: 265 | B121: M1 Sem 2b | C121: 1021 | D121: church | E121: M2 Sem 1b | F121: 122 | H121: 119 | J121: tower
A122: 267 | B122: M1 Sem 2b | C122: 925 | D122: journey | E122: M2 Sem 1b | F122: 26 | H122: 120 | J122: then
A123: 269 | B123: M1 Sem 2b | C123: 951 | D123: thousand | E123: M2 Sem 1b | F123: 52 | H123: 121 | J123: soon
A124: 270 | B124: M1 Sem 2b | C124: 1045 | D124: way | E124: M2 Sem 1b | F124: 146 | H124: 122 | J124: angry
A125: 279 | B125: M2 Sem 1a | C125: 1003 | D125: dry | E125: M2 Sem 1b | F125: 104 | H125: 123 | J125: father
A126: 280 | B126: M2 Sem 1a | C126: 1033 | D126: over | E126: M2 Sem 1b | F126: 134 | H126: 124 | J126: fine
A127: 284 | B127: M2 Sem 1a | C127: 933 | D127: miss | E127: M2 Sem 1b | F127: 34 | H127: 125 | J127: meet
A128: 286 | B128: M2 Sem 1a | C128: 1014 | D128: trip | E128: M2 Sem 1b | F128: 115 | H128: 126 | J128: body
A129: 289 | B129: M2 Sem 1a | C129: 1040 | D129: straight | E129: M2 Sem 1b | F129: 141 | H129: 127 | J129: now
A130: 290 | B130: M2 Sem 1a | C130: 955 | D130: amazing | E130: M2 Sem 1b | F130: 56 | H130: 128 | J130: under
A131: 293 | B131: M2 Sem 1a | C131: 982 | D131: more | E131: M2 Sem 1b | F131: 83 | H131: 129 | J131: stick
A132: 307 | B132: M2 Sem 1b | C132: 952 | D132: training | E132: M2 Sem 1b | F132: 53 | H132: 130 | J132: sign
A133: 319 | B133: M2 Sem 1b | C133: 1054 | D133: ageing | E133: M2 Sem 1b | F133: 155 | H133: 131 | J133: any
A134: 1 | B134: M1 Sem 1a | C134: 1100 | D134: everybody | E134: M2 Sem 2a | F134: 21 | H134: 132 | J134: salt
A135: 2 | B135: M1 Sem 1a | C135: 1109 | D135: friend | E135: M2 Sem 2a | F135: 30 | H135: 133 | J135: some
A136: 10 | B136: M1 Sem 1a | C136: 1091 | D136: cold | E136: M2 Sem 2a | F136: 12 | H136: 134 | J136: laptop
A137: 29 | B137: M1 Sem 1a | C137: 1128 | D137: rich | E137: M2 Sem 2a | F137: 49 | H137: 135 | J137: rule
A138: 31 | B138: M1 Sem 1a | C138: 1249 | D138: fox | E138: M2 Sem 2a | F138: 170 | H138: 136 | J138: tired
A139: 32 | B139: M1 Sem 1a | C139: 1209 | D139: fridge | E139: M2 Sem 2a | F139: 130 | H139: 137 | J139: every
A140: 33 | B140: M1 Sem 1a | C140: 1166 | D140: house | E140: M2 Sem 2a | F140: 87 | H140: 138 | J140: live
A141: 37 | B141: M1 Sem 1a | C141: 1224 | D141: on | E141: M2 Sem 2a | F141: 145 | H141: 139 | J141: work
A142: 39 | B142: M1 Sem 1a | C142: 1210 | D142: ready | E142: M2 Sem 2a | F142: 131 | H142: 140 | J142: next
A143: 43 | B143: M1 Sem 1a | C143: 1234 | D143: sofa | E143: M2 Sem 2a | F143: 155 | H143: 141 | J143: dress
A144: 44 | B144: M1 Sem 1a | C144: 1239 | D144: table | E144: M2 Sem 2a | F144: 160 | H144: 142 | J144: nothing
A145: 47 | B145: M1 Sem 1a | C145: 1244 | D145: wardrobe | E145: M2 Sem 2a | F145: 165 | H145: 143 | J145: sleep
A146: 50 | B146: M1 Sem 1a | C146: 1083 | D146: bad | E146: M2 Sem 2a | F146: 4 | H146: 144 | J146: cycle
A147: 53 | B147: M1 Sem 1a | C147: 1203 | D147: door | E147: M2 Sem 2a | F147: 124 | H147: 145 | J147: road
A148: 56 | B148: M1 Sem 1a | C148: 1212 | D148: heart | E148: M2 Sem 2a | F148: 133 | H148: 146 | J148: old
A149: 72 | B149: M1 Sem 1a | C149: 1178 | D149: wood | E149: M2 Sem 2a | F149: 99 | H149: 147 | J149: parade
A150: 74 | B150: M1 Sem 1b | C150: 1086 | D150: brilliant | E150: M2 Sem 2a | F150: 7
A151: 78 | B151: M1 Sem 1b | C151: 1093 | D151: dark | E151: M2 Sem 2a | F151: 14
A152: 87 | B152: M1 Sem 1b | C152: 1135 | D152: short | E152: M2 Sem 2a | F152: 56
A153: 88 | B153: M1 Sem 1b | C153: 1139 | D153: small | E153: M2 Sem 2a | F153: 60
A154: 91 | B154: M1 Sem 1b | C154: 1230 | D154: bin | E154: M2 Sem 2a | F154: 151
A155: 119 | B155: M1 Sem 1b | C155: 1221 | D155: makeup | E155: M2 Sem 2a | F155: 142
A156: 125 | B156: M1 Sem 1b | C156: 1174 | D156: thing | E156: M2 Sem 2a | F156: 95
A157: 138 | B157: M1 Sem 1b | C157: 1131 | D157: seaside | E157: M2 Sem 2a | F157: 52
A158: 145 | B158: M1 Sem 2a | C158: 1195 | D158: begin | E158: M2 Sem 2a | F158: 116
A159: 155 | B159: M1 Sem 2a | C159: 1107 | D159: free | E159: M2 Sem 2a | F159: 28
A160: 158 | B160: M1 Sem 2a | C160: 1183 | D160: kite | E160: M2 Sem 2a | F160: 104
A161: 163 | B161: M1 Sem 2a | C161: 1124 | D161: poor | E161: M2 Sem 2a | F161: 45
A162: 164 | B162: M1 Sem 2a | C162: 1167 | D162: present | E162: M2 Sem 2a | F162: 88
A163: 179 | B163: M1 Sem 2a | C163: 1088 | D163: cheap | E163: M2 Sem 2a | F163: 9
A164: 183 | B164: M1 Sem 2a | C164: 1120 | D164: nice | E164: M2 Sem 2a | F164: 41
A165: 187 | B165: M1 Sem 2a | C165: 1112 | D165: health | E165: M2 Sem 2a | F165: 33
A166: 190 | B166: M1 Sem 2a | C166: 1133 | D166: sensitive | E166: M2 Sem 2a | F166: 54
A167: 191 | B167: M1 Sem 2a | C167: 1238 | D167: sunglasses | E167: M2 Sem 2a | F167: 159
A168: 211 | B168: M1 Sem 2a | C168: 1115 | D168: ice | E168: M2 Sem 2a | F168: 36
A169: 228 | B169: M1 Sem 2b | C169: 1090 | D169: clean | E169: M2 Sem 2a | F169: 11
A170: 229 | B170: M1 Sem 2b | C170: 1127 | D170: relax | E170: M2 Sem 2a | F170: 48
A171: 232 | B171: M1 Sem 2b | C171: 1229 | D171: rubbish | E171: M2 Sem 2a | F171: 150
A172: 234 | B172: M1 Sem 2b | C172: 1085 | D172: blind | E172: M2 Sem 2a | F172: 6
A173: 242 | B173: M1 Sem 2b | C173: 1247 | D173: brave | E173: M2 Sem 2a | F173: 168
A174: 249 | B174: M1 Sem 2b | C174: 1129 | D174: safe | E174: M2 Sem 2a | F174: 50
A175: 255 | B175: M1 Sem 2b | C175: 1231 | D175: seat | E175: M2 Sem 2a | F175: 152
A176: 266 | B176: M1 Sem 2b | C176: 1176 | D176: tower | E176: M2 Sem 2a | F176: 97
A177: 274 | B177: M1 Sem 2b | C177: 1240 | D177: then | E177: M2 Sem 2a | F177: 161
A178: 281 | B178: M2 Sem 1a | C178: 1141 | D178: stand | E178: M2 Sem 2a | F178: 62
A179: 282 | B179: M2 Sem 1a | C179: 1190 | D179: line | E179: M2 Sem 2a | F179: 111
A180: 285 | B180: M2 Sem 1a | C180: 1138 | D180: slow | E180: M2 Sem 2a | F180: 59
A181: 287 | B181: M2 Sem 1a | C181: 1114 | D181: wait | E181: M2 Sem 2a | F181: 35
A182: 316 | B182: M2 Sem 1b | C182: 1118 | D182: mountain | E182: M2 Sem 2a | F182: 39
A183: 320 | B183: M2 Sem 1b | C183: 1097 | D183: dry | E183: M2 Sem 2a | F183: 18
A184: 327 | B184: M2 Sem 1b | C184: 1226 | D184: over | E184: M2 Sem 2a | F184: 147
A185: 330 | B185: M2 Sem 1b | C185: 1116 | D185: light | E185: M2 Sem 2a | F185: 37
A186: 336 | B186: M2 Sem 2a | C186: 1172 | D186: good | E186: M2 Sem 2a | F186: 93
A187: 337 | B187: M2 Sem 2a | C187: 1213 | D187: ice | E187: M2 Sem 2a | F187: 134
A188: 338 | B188: M2 Sem 2a | C188: 1194 | D188: quiet | E188: M2 Sem 2a | F188: 115
A189: 341 | B189: M2 Sem 2a | C189: 1260 | D189: sly | E189: M2 Sem 2a | F189: 181
A190: 354 | B190: M2 Sem 2a | C190: 1235 | D190: bed | E190: M2 Sem 2a | F190: 156
A191: 358 | B191: M2 Sem 2a | C191: 1241 | D191: next to | E191: M2 Sem 2a | F191: 162
A192: 6 | B192: M1 Sem 1a | C192: 1361 | D192: soon | E192: M2 Sem 2b | F192: 102
A193: 8 | B193: M1 Sem 1a | C193: 1325 | D193: angry | E193: M2 Sem 2b | F193: 66
A194: 11 | B194: M1 Sem 1a | C194: 1404 | D194: father | E194: M2 Sem 2b | F194: 145
A195: 12 | B195: M1 Sem 1a | C195: 1294 | D195: fine | E195: M2 Sem 2b | F195: 35
A196: 15 | B196: M1 Sem 1a | C196: 1356 | D196: meet | E196: M2 Sem 2b | F196: 97
A197: 20 | B197: M1 Sem 1a | C197: 1311 | D197: body | E197: M2 Sem 2b | F197: 52
A198: 36 | B198: M1 Sem 1a | C198: 1359 | D198: now | E198: M2 Sem 2b | F198: 100
A199: 45 | B199: M1 Sem 1a | C199: 1308 | D199: under | E199: M2 Sem 2b | F199: 49
A200: 65 | B200: M1 Sem 1a | C200: 1411 | D200: stick | E200: M2 Sem 2b | F200: 152
... 281 more rows

Sheet 2013 WordList
A1: Line | B1: M | C1: Sem | D1: Week | E1: Part | F1: Thai | G1: Type | H1: Word | I1: Definition | J1: Sentence | K1: Coursebook | L1: PET in Coursebk | M1: PET only | N1: Pet Word | O1: Dulpicate | P1: Line | Q1: Dulpicate | R1: Line
A2: 1 | B2: 1 | C2: 1 | D2: 1 | E2: 1 | F2: อีกครั้ง | G2: adv | H2: again | I2: once more, or as before | J2: Could you spell your name again, please? | K2: 1 | L2: 1 | M2: =IF(K2=1,"",1) ->  | N2: =IFERROR(INDEX(PET!$D$2:$D$2628,MATCH(H2,PET!$D$2:$D$2628,0)),"") -> again | O2: =IFERROR((VLOOKUP(H2,H3:$H$4000,1,FALSE)),"") -> again | P2: =IFERROR(INDEX($A3:$A$4000,MATCH(H2,$H3:$H$4000,0)),"") -> 903 | Q2: eye | R2: 205
A3: 2 | B3: 1 | C3: 1 | D3: 1 | E3: 1 | F3: ประเทศ | G3: noun | H3: country | I3: an area of land that has its own government or army. | J3: Sri Lanka is my native country. | K3: 1 | L3: 1 | N3: country | Q3: watch | R3: 424
A4: 3 | B4: 1 | C4: 1 | D4: 1 | E4: 1 | F4: ทุกคน | G4: pron | H4: everybody | I4: every person | J4: I've received replies from everybody but Jane. | K4: 1 | L4: 1 | N4: everybody | Q4: match | R4: 441
A5: 4 | B5: 1 | C5: 1 | D5: 1 | E5: 1 | F5: ที่ชื่นชอบ | G5: adj | H5: favourite | I5: best liked or most enjoyed | J5: "What's your favourite colour?" "Green." | K5: 1 | L5: 1 | N5: favourite | Q5: museum | R5: 624
A6: 5 | B6: 1 | C6: 1 | D6: 1 | E6: 1 | F6: เพื่อน | G6: noun | H6: friend | I6: a person who you know well but who is not a member of your family | J6: She's my best friend. We've known each other since we were five. | K6: 1 | L6: 1 | N6: friend | Q6: lightning | R6: 1185
A7: 6 | B7: 1 | C7: 1 | D7: 1 | E7: 1 | F7: ตลก | G7: adj | H7: funny | I7: amusing; causing laughter | J7: Jerome is so funny. | K7: 1 | L7: 1 | N7: funny | Q7: freckles | R7: 1818
A8: 7 | B8: 1 | C8: 1 | D8: 1 | E8: 2 | F8: ดีตอนเช้า | G8: exp | H8: good morning | I8: used for greeting someone in the morning | J8: Good morning, how are you? | K8: 1 | Q8: carbohydrate | R8: 1854
A9: 8 | B9: 1 | C9: 1 | D9: 1 | E9: 2 | F9: ครับ | G9: noun | H9: guy | I9: a man | J9: Three guys and three girls left the room. | K9: 1 | L9: 1 | N9: guy | O9: guy | P9: 1997 | Q9: product | R9: 1865
A10: 9 | B10: 1 | C10: 1 | D10: 1 | E10: 2 | F10: สวัสดี | G10: exp | H10: hello | I10: used when meeting or greeting someone | J10: "Hello, Paul," she said, "I haven’t seen you for months." | K10: 1 | Q10: channel | R10: 1990
A11: 10 | B11: 1 | C11: 1 | D11: 1 | E11: 2 | F11: ปากกาเพื่อน | G11: noun | H11: pen-friend | I11: someone who you write friendly letters to regularly, but you have never met | J11: I write once a month to my pen-friend in Korea. | M11: 1 | N11: pen-friend | Q11: guy | R11: 1997
A12: 11 | B12: 1 | C12: 1 | D12: 1 | E12: 2 | F12: ขอโทษ | G12: adj | H12: sorry | I12: feeling bad because you have caused trouble or difficulty to someone else | J12: I’m really sorry (that) I forgot about our appointment yesterday. | K12: 1 | L12: 1 | N12: sorry | Q12: hold | R12: 2125
A13: 12 | B13: 1 | C13: 1 | D13: 1 | E13: 2 | F13: เหมือนกัน | G13: adj | H13: identical | I13: exactly the same, or very similar | J13: The test is identical to the one you took last year. | K13: 1 | Q13: run | R13: 2147
A14: 13 | B14: 1 | C14: 1 | D14: 1 | E14: 3 | F14: เกาะ | G14: noun | H14: island | I14: a piece of land completely surrounded by water | J14: Singapore is an island. | K14: 1 | L14: 1 | N14: island
A15: 14 | B15: 1 | C15: 1 | D15: 1 | E15: 3 | F15: คีย์ | G15: noun | H15: key | I15: a piece of metal cut into a special shape, used for opening or closing a lock | J15: I put the key into the ignition. | K15: 1 | L15: 1 | N15: key
A16: 15 | B16: 1 | C16: 1 | D16: 1 | E16: 3 | F16: ต่อมา | G16: adv | H16: later | I16: at a time in the future or after the time you have mentioned | J16: He was successful later in his career. | K16: 1 | L16: 1 | N16: later
A17: 16 | B17: 1 | C17: 1 | D17: 1 | E17: 3 | F17: นาง | G17: noun | H17: Mrs | I17: a title for a married woman, used before the family name or full name | J17: Hello, Mrs. Taylor, how are you today? | K17: 1 | L17: 1 | N17: Mrs
A18: 17 | B18: 1 | C18: 1 | D18: 1 | E18: 3 | F18: ชื่อ | G18: noun | H18: name | I18: the word or words that a person, thing or place is known by | J18: Hello, my name is Beth. | K18: 1 | L18: 1 | N18: name
A19: 18 | B19: 1 | C19: 1 | D19: 1 | E19: 3 | F19: สัญชาติ | G19: noun | H19: nationality | I19: the state of belonging to a particular country or being a citizen of a particular nation | J19: "What’s your nationality?" "I’m from Brazil." | K19: 1 | L19: 1 | N19: nationality
A20: 19 | B20: 1 | C20: 1 | D20: 2 | E20: 1 | F20: ห้อง | G20: noun | H20: room | I20: an area within a building that has its own walls, floor, ceiling, and door | J20: The house has a laundry room. | K20: 1 | L20: 1 | N20: room
A21: 20 | B21: 1 | C21: 1 | D21: 2 | E21: 1 | F21: ประหยัด | G21: verb | H21: save | I21: to stop someone or something from being killed, injured or destroyed | J21: She jumped into the pool and saved the child from drowning. | K21: 1 | L21: 1 | N21: save
A22: 21 | B22: 1 | C22: 1 | D22: 2 | E22: 1 | F22: ในไม่ช้า | G22: adv | H22: soon | I22: in or within a short time; before long; quickly | J22: She'll soon be here. | K22: 1 | L22: 1 | N22: soon
A23: 22 | B23: 1 | C23: 1 | D23: 2 | E23: 1 | F23: นามสกุล | G23: noun | H23: surname | I23: the name that you share with other members of your family; last name | J23: My name is Bond. James Bond. Bond is my surname. | K23: 1 | L23: 1 | N23: surname
A24: 23 | B24: 1 | C24: 1 | D24: 2 | E24: 1 | F24: ถูกต้อง | G24: adv | H24: right | I24: correct, true, or exact | J24: My watch has stopped – do you have the right time? | K24: 1 | L24: 1 | N24: right
A25: 24 | B25: 1 | C25: 1 | D25: 2 | E25: 1 | F25: ฝาแฝด | G25: noun | H25: twin | I25: either of two children born to the same mother on the same occasion | J25: My brother is the same age as me. He is my twin brother. | K25: 1 | L25: 1 | N25: twin
A26: 25 | B26: 1 | C26: 1 | D26: 2 | E26: 2 | F26: ยินดีต้อนรับ | G26: verb | H26: welcome | I26: expression to show pleasure when meeting someone | J26: Hello and welcome to the party. | K26: 1 | L26: 1 | N26: welcome
A27: 26 | B27: 1 | C27: 1 | D27: 2 | E27: 2 | F27: กลัว | G27: adj | H27: afraid | I27: feeling fear, or feeling anxiety about the possible results of a particular situation | J27: She was afraid, but never thought of quitting. | K27: 1 | L27: 1 | N27: afraid
A28: 27 | B28: 1 | C28: 1 | D28: 2 | E28: 2 | F28: อายุ | G28: noun | H28: age | I28: period of time someone has been alive or something has existed | J28: At age 24 he won a starring role in his first movie. | K28: 1 | L28: 1 | N28: age
A29: 28 | B29: 1 | C29: 1 | D29: 2 | E29: 2 | F29: โกรธ | G29: adj | H29: angry | I29: having the feeling people get when something unfair, painful, or bad happens | J29: He was upset and angry that he didn't pass the test. | K29: 1 | L29: 1 | N29: angry
A30: 29 | B30: 1 | C30: 1 | D30: 2 | E30: 2 | F30: ป้า | G30: noun | H30: aunt | I30: the sister of someone’s mother or father, or the wife of someone’s uncle | J30: My father's sister is my aunt. | K30: 1 | L30: 1 | N30: aunt
A31: 30 | B31: 1 | C31: 1 | D31: 2 | E31: 2 | F31: เบื่อ | G31: adj | H31: bored | I31: feeling tired and unhappy because something is not interesting or because you have nothing to do | J31: He was getting bored doing the same thing every day. | K31: 1 | L31: 1 | N31: bored
A32: 31 | B32: 1 | C32: 1 | D32: 2 | E32: 3 | F32: พี่ชาย | G32: noun | H32: brother | I32: a male who has the same parents as another person | J32: I have a younger brother and an older sister in my family. | K32: 1 | L32: 1 | N32: brother
A33: 32 | B33: 1 | C33: 1 | D33: 2 | E33: 3 | F33: เด็ก | G33: noun | H33: child | I33: a person from the time of birth until he or she is an adult, or a son or daughter of any age | J33: Jan has a three-year-old child and two school-age children. | K33: 1 | L33: 1 | N33: child
A34: 33 | B34: 1 | C34: 1 | D34: 2 | E34: 3 | F34: เด็ก ๆ | G34: noun | H34: children | I34: plural of child | J34: Tom has 3 children; two daughters and a son. | K34: 1
A35: 34 | B35: 1 | C35: 1 | D35: 2 | E35: 3 | F35: เย็น | G35: adj | H35: cold | I35: having a low temperature, esp. when compared to the temperature of the human body, and not hot or warm | J35: I forgot my gloves and my hands are getting cold. | K35: 1 | L35: 1 | N35: cold
A36: 35 | B36: 1 | C36: 1 | D36: 2 | E36: 3 | F36: ลูกพี่ลูกน้อง | G36: noun | H36: cousin | I36: a child of a person’s aunt or uncle | J36: Jimmy and Sue are my uncle's children. They are my cousins. | K36: 1 | L36: 1 | N36: cousin
A37: 36 | B37: 1 | C37: 1 | D37: 2 | E37: 3 | F37: ลูกสาว | G37: noun | H37: daughter | I37: a female child in relation to her parents | J37: We have a son and a daughter. | K37: 1 | L37: 1 | N37: daughter
A38: 37 | B38: 1 | C38: 1 | D38: 3 | E38: 1 | F38: ดวงตา | G38: noun | H38: eye | I38: one of the pair of organs of seeing in the faces of humans and animals | J38: She is looking at me with her green eyes. | K38: 1 | L38: 1 | N38: eye | O38: eye | P38: 205
A39: 38 | B39: 1 | C39: 1 | D39: 3 | E39: 1 | F39: พ่อ | G39: noun | H39: father | I39: a male parent | J39: My father retired seven years ago. | K39: 1 | L39: 1 | N39: father
A40: 39 | B40: 1 | C40: 1 | D40: 3 | E40: 1 | F40: ฟอร์ม | G40: noun | H40: form | I40: a paper on which answers to questions can be written | J40: Fill out an application form and we will let you know if a job opens up. | K40: 1 | L40: 1 | N40: form
A41: 40 | B41: 1 | C41: 1 | D41: 3 | E41: 1 | F41: ยาย | G41: noun | H41: grandma | I41: the mother of a person’s father or mother | J41: My grandma on my mother's side is 82 years old. | K41: 1 | L41: 1 | N41: grandma
A42: 41 | B42: 1 | C42: 1 | D42: 3 | E42: 1 | F42: คุณปู่ | G42: noun | H42: grandpa | I42: the father of a person's mother or father | J42: My grandpa is a retired army colonel. | K42: 1 | L42: 1 | N42: grandpa
A43: 42 | B43: 1 | C43: 1 | D43: 3 | E43: 1 | F43: ยินดี | G43: adj | H43: happy | I43: feeling, showing, or causing pleasure or satisfaction | J43: People want movies to have happy endings. | K43: 1 | L43: 1 | N43: happy
A44: 43 | B44: 1 | C44: 1 | D44: 3 | E44: 2 | F44: ที่นี่ | G44: adv | H44: here | I44: in, at, or to this place | J44: I’ve lived here in Phitsanulok all my life. | K44: 1 | L44: 1 | N44: here
A45: 44 | B45: 1 | C45: 1 | D45: 3 | E45: 2 | F45: ร้อน | G45: adj | H45: hot | I45: having a high temperature | J45: It’s hotter in Singapore than it is here. | K45: 1 | L45: 1 | N45: hot
A46: 45 | B46: 1 | C46: 1 | D46: 3 | E46: 2 | F46: หิว | G46: adj | H46: hungry | I46: feeling the need to eat because there has been a period of time when you have not eaten | J46: I am always hungry and need to eat when I get home from school. | K46: 1 | L46: 1 | N46: hungry
A47: 46 | B47: 1 | C47: 1 | D47: 3 | E47: 2 | F47: ปรับ | G47: adj | H47: fine | I47: very good or very well; satisfactory or satisfactorily | J47: I was sick last night, but I am fine this morning. | K47: 1 | L47: 1 | N47: fine
A48: 47 | B48: 1 | C48: 1 | D48: 3 | E48: 2 | F48: ชาเย็น | G48: noun | H48: iced tea | I48: a form of cold tea, usually served in a glass with ice | J48: Would you like a cold drink, such as coco cola or iced tea? | K48: 1
A49: 48 | B49: 1 | C49: 1 | D49: 3 | E49: 2 | F49: ฟัง | G49: verb | H49: listen | I49: to give attention to something you can hear or to a person who is speaking | J49: Can you really listen to music while you do your homework? | K49: 1 | L49: 1 | N49: listen
A50: 49 | B50: 1 | C50: 1 | D50: 3 | E50: 3 | F50: เกินไป | G50: adv | H50: too | I50: more than is needed or wanted; more than is suitable or enough | J50: here were (far) too many people for such a small room. | K50: 1 | L50: 1 | N50: too
A51: 50 | B51: 1 | C51: 1 | D51: 3 | E51: 3 | F51: พบ | G51: verb | H51: meet | I51: to see and speak to someone for the first time | J51: They’re meeting with their advisers to work out a new plan. | K51: 1 | L51: 1 | N51: meet
A52: 51 | B52: 1 | C52: 1 | D52: 3 | E52: 3 | F52: แม่ | G52: noun | H52: mother | I52: a female parent | J52: My mother was 20 when I was born. | K52: 1 | L52: 1 | N52: mother
A53: 52 | B53: 1 | C53: 1 | D53: 3 | E53: 3 | F53: อื่น ๆ | G53: pron | H53: other | I53: the second of two things or people, or the item or person that is left from a group or set of things | J53: Hold the racket in one hand and the ball in the other. | K53: 1 | L53: 1 | N53: other
A54: 53 | B54: 1 | C54: 1 | D54: 3 | E54: 3 | F54: พ่อแม่ | G54: noun | H54: parent | I54: a person who gives birth to or raises a child | J54: His parents live in Phitsanulok. | K54: 1 | L54: 1 | N54: parent
A55: 54 | B55: 1 | C55: 1 | D55: 3 | E55: 3 | F55: สถานที่ | G55: noun | H55: place | I55: an area, a building, or a city, town, or village | J55: Airports are usually busy places. | K55: 1 | L55: 1 | N55: place
A56: 55 | B56: 1 | C56: 1 | D56: 4 | E56: 1 | F56: เสียใจ | G56: adj | H56: sad | I56: showing, feeling, or causing unhappiness or regret | J56: I’ve just heard the saddest news. | K56: 1 | L56: 1 | N56: sad
A57: 56 | B57: 1 | C57: 1 | D57: 4 | E57: 1 | F57: น้องสาว | G57: noun | H57: sister | I57: a female who has the same parents as another person | J57: John has a younger sister and an older brother. | K57: 1 | L57: 1 | N57: sister
A58: 57 | B58: 1 | C58: 1 | D58: 4 | E58: 1 | F58: ไซออน | G58: noun | H58: radio | I58: a piece of electronic equipment used for listening to radio broadcasts | J58: I listen to the radio in the morning to get the weather report. | M58: 1 | N58: radio
A59: 58 | B59: 1 | C59: 1 | D59: 4 | E59: 1 | F59: คุย | G59: verb | H59: talk | I59: to say words aloud, usually to give or exchange information; to speak | J59: I talked with Carol on the phone yesterday. | K59: 1 | L59: 1 | N59: talk
A60: 59 | B60: 1 | C60: 1 | D60: 4 | E60: 1 | F60: ที่ | G60: adj | H60: that | I60: used to refer to a person, object, event, etc., separated from the speaker by distance or time, or to something that has been referred to before, or to point to a particular thing | J60: This peach isn’t ripe – can I have that one (= the one farther away) on the table? | K60: 1
A61: 60 | B61: 1 | C61: 1 | D61: 4 | E61: 1 | F61: เหล่านั้น | G61: adj | H61: those | I61: Plural of 'that' | J61: Those houses are huge. | K61: 1 | L61: 1 | N61: those
A62: 61 | B62: 1 | C62: 1 | D62: 4 | E62: 2 | F62: เหนื่อย | G62: adj | H62: tired | I62: in need of rest or sleep | J62: I had been up all night with the baby and was really tired. | K62: 1 | L62: 1 | N62: tired
A63: 62 | B63: 1 | C63: 1 | D63: 4 | E63: 2 | F63: ลุง | G63: noun | H63: uncle | I63: the brother of someone’s mother or father, or the husband of someone’s aunt | J63: My aunt and uncle moved to Arizona when they retired. | K63: 1 | L63: 1 | N63: uncle
A64: 63 | B64: 1 | C64: 1 | D64: 4 | E64: 2 | F64: น้ำ | G64: noun | H64: water | I64: a clear, colorless liquid that falls from the sky as rain and is necessary for animal and plant life | J64: I’m boiling water to make some more coffee. | K64: 1 | L64: 1 | N64: water
A65: 64 | B65: 1 | C65: 1 | D65: 4 | E65: 2 | F65: กระดูก | G65: noun | H65: bone | I65: any of the hard pieces that form the skeleton (= frame) of a human or animal body | J65: She had broken a bone in her foot. | K65: 1 | L65: 1 | N65: bone
A66: 65 | B66: 1 | C66: 1 | D66: 4 | E66: 2 | F66: ร่างกาย | G66: noun | H66: body | I66: the whole physical structure that forms a person or animal | J66: A good diet and plenty of exercise will help you keep your body healthy. | K66: 1 | L66: 1 | N66: body
A67: 66 | B67: 1 | C67: 1 | D67: 4 | E67: 2 | F67: แคลเซียม | G67: noun | H67: calcium | I67: a chemical element which is present in teeth, bones and chalk | J67: The body needs calcium to maintain strong bones and to carry out many important functions. | K67: 1
A68: 67 | B68: 1 | C68: 1 | D68: 4 | E68: 3 | F68: คาร์โบไฮเดรต | G68: noun | H68: carbohydrate | I68: one of several substances, such as sugar or starch, which provide the body with energy. | J68: Breads, cereals, and pastas are all examples of carbohydrates. | K68: 1 | O68: carbohydrate | P68: 1854
A69: 68 | B69: 1 | C69: 1 | D69: 4 | E69: 3 | F69: ไขมัน | G69: adj | H69: fat | I69: having a lot of flesh on the body | J69: She has put on a lot of weight and looks quite fat now. | K69: 1 | L69: 1 | N69: fat
A70: 69 | B70: 1 | C70: 1 | D70: 4 | E70: 3 | F70: ไฟเบอร์ | G70: noun | H70: fibre | I70: a piece of clothing that covers the lower part of the body from the waist to the feet | J70: Natural fibres such as cotton tend to be cooler. | K70: 1
A71: 70 | B71: 1 | C71: 1 | D71: 4 | E71: 3 | F71: แข็งแรง | G71: adj | H71: healthy | I71: strong and well | J71: The walk has given her a healthy appetite. | K71: 1
A72: 71 | B72: 1 | C72: 1 | D72: 4 | E72: 3 | F72: สูง | G72: adj | H72: high | I72: a large distance from top to bottom or a long way above the ground | J72: Mount Everest is the highest mountain in the world. | K72: 1 | L72: 1 | N72: high
A73: 72 | B73: 1 | C73: 1 | D73: 4 | E73: 3 | F73: เหล็ก | G73: noun | H73: iron | I73: a common, silver-colored, metal element that is magnetic and strong, is used in making steel, and is found in small amounts in blood and in all living things | J73: Iron rusts easily. | K73: 1 | L73: 1 | N73: iron
A74: 73 | B74: 1 | C74: 1 | D74: 5 | E74: 1 | F74: ถั่ว | G74: noun | H74: bean | I74: a seed, or the pod containing seeds, of various climbing plants, eaten as a vegetable | J74: String beans grow best upwards. | K74: 1 | L74: 1 | N74: bean
A75: 74 | B75: 1 | C75: 1 | D75: 5 | E75: 1 | F75: นอต | G75: noun | H75: nut | I75: the dry fruit of particular trees which grows in a hard shell and can often be eaten | J75: Squirrels like to eat nuts. | K75: 1 | L75: 1 | N75: nut
A76: 75 | B76: 1 | C76: 1 | D76: 5 | E76: 1 | F76: สารอาหาร | G76: noun | H76: nutrient | I76: any substance that plants or animals need in order to live and grow | J76: Oranges contain many nnutrients that help our body grow. | K76: 1
A77: 76 | B77: 1 | C77: 1 | D77: 5 | E77: 1 | F77: แร่ | G77: noun | H77: mineral | I77: a valuable or useful chemical substance which is formed naturally in the ground | J77: A mineral regulates the growth of bones and hormones, keeping us healthy. | K77: 1 | L77: 1 | N77: mineral
A78: 77 | B78: 1 | C78: 1 | D78: 5 | E78: 1 | F78: โปรตีน | G78: noun | H78: protein | I78: any of a large group of chemicals that are a necessary part of the cells of all living things | J78: If you're training hard in the gym, your body needs extra protein to aid recovery and growth in order to maximise your results | K78: 1
A79: 78 | B79: 1 | C79: 1 | D79: 5 | E79: 1 | F79: รวย | G79: adj | H79: rich | I79: having a lot of money or valuable possessions; wealthy | J79: The United States is one of the world’s richest nations. | K79: 1 | L79: 1 | N79: rich
A80: 79 | B80: 1 | C80: 1 | D80: 5 | E80: 2 | F80: วิตามิน | G80: noun | H80: vitamin | I80: any of a group of natural substances that are necessary in small amounts for growth and good health and that are obtained from food | J80: Meat, fish, fruit, and vegetables contain vitamins, such as A, C, or D. | K80: 1
A81: 80 | B81: 1 | C81: 1 | D81: 5 | E81: 2 | F81: ห้องเพดาน | G81: noun | H81: attic | I81: a space in a house just under the roof, often used for storing things | J81: Winter clothes are often stored in boxes up in the attic of a house. | K81: 1
A82: 81 | B82: 1 | C82: 1 | D82: 5 | E82: 2 | F82: ห้องอาบน้ำ | G82: noun | H82: bathroom | I82: a room with a toilet and a place to wash your hands, and often a bathtub and a shower | J82: Our bathroom is the warmest room in the house. | K82: 1 | L82: 1 | N82: bathroom
A83: 82 | B83: 1 | C83: 1 | D83: 5 | E83: 2 | F83: ห้องนอน | G83: noun | H83: bedroom | I83: a room with a bed or beds for sleeping | J83: The quietest room in the house is the bedroom, where I can relax and sleep at night. | K83: 1 | L83: 1 | N83: bedroom
A84: 83 | B84: 1 | C84: 1 | D84: 5 | E84: 2 | F84: หนังสือ | G84: noun | H84: book | I84: an object consisting of a number of pages of text or pictures fastened together along one edge and fixed inside two covers | J84: The artist’s sketch books filled several shelves. | K84: 1 | L84: 1 | N84: book
A85: 84 | B85: 1 | C85: 1 | D85: 5 | E85: 2 | F85: กล่อง | G85: noun | H85: box | I85: a square or rectangular container with stiff sides and sometimes a lid | J85: On Valentine's Day, many people give their closest friend a box of chocolates. | K85: 1 | L85: 1 | N85: box
A86: 85 | B86: 1 | C86: 1 | D86: 5 | E86: 3 | F86: เมืองหลวง | G86: noun | H86: capital | I86: a city which is the centre of government of a country | J86: The capital city of Japan is Tokyo. | K86: 1 | L86: 1 | N86: capital
A87: 86 | B87: 1 | C87: 1 | D87: 5 | E87: 3 | F87: เมือง | G87: noun | H87: city | I87: a large town or any town in the UK which has a cathedral (= large, important church) | J87: Some people like to live in a small village, but I like to live in a big city. | K87: 1 | L87: 1 | N87: city
A88: 87 | B88: 1 | C88: 1 | D88: 5 | E88: 3 | F88: แมว | G88: noun | H88: cat | I88: a small, furry animal with four legs and a tail, often kept as a pet, or any of a group of related animals that are wild, and some of which are large and fierce, such as the lion | J88: My aunt loves to look after small kittens and other cats. | K88: 1 | L88: 1 | N88: cat
A89: 88 | B89: 1 | C89: 1 | D89: 5 | E89: 3 | F89: เก้าอี้ | G89: noun | H89: chair | I89: a seat for one person, which has a back, usually four legs, and sometimes two arms | J89: You don't need to stand when there is a chair to sit down on. | K89: 1 | L89: 1 | N89: chair
A90: 89 | B90: 1 | C90: 1 | D90: 5 | E90: 3 | F90: เคาน์เตอร์ | G90: noun | H90: desk | I90: a type of table for working at, usually one with drawers | J90: Tommy sits at the desk in front of me in English. | K90: 1 | L90: 1 | N90: desk
A91: 90 | B91: 1 | C91: 1 | D91: 5 | E91: 3 | F91: รับประทานอาหาร | G91: adj | H91: dining | I91: a room or activity where the main meal of the day, usually in the evening, is served. | J91: Let's go to the dining room to eat dinner. | K91: 1 | L91: 1 | N91: dining
A92: 91 | B92: 1 | C92: 1 | D92: 6 | E92: 1 | F92: ข้างล่าง | G92: adv | H92: downstairs | I92: to or on a lower floor of a building, especially the ground floor | J92: I left out of bed and ran downstairs to see who was kncoking at the door. | K92: 1 | L92: 1 | N92: downstairs
A93: 92 | B93: 1 | C93: 1 | D93: 6 | E93: 1 | F93: เท้า | G93: noun | H93: foot | I93: the part of the body at the bottom of the leg on which a person or animal stands | J93: I’ve got a blister on my left foot. | K93: 1 | L93: 1 | N93: foot
A94: 93 | B94: 1 | C94: 1 | D94: 6 | E94: 1 | F94: จิ้งจอก | G94: noun | H94: fox | I94: a wild mammal belonging to the dog family which has a pointed face and ears, a wide furry tail, and often red-brown fur, or the fur of this animal | J94: A fox who had smelled the chickens came out of the woods into the yard. | K94: 1
A95: 94 | B95: 1 | C95: 1 | D95: 6 | E95: 1 | F95: ตู้เย็น | G95: noun | H95: fridge | I95: a large piece of equipment that uses electricity to preserve food at a cold temperature | J95: We keep the milk cool in the fridge. | K95: 1 | L95: 1 | N95: fridge
A96: 95 | B96: 1 | C96: 1 | D96: 6 | E96: 1 | F96: เกม | G96: noun | H96: game | I96: an entertaining activity, esp. one played by children, or a sports competition | J96: The kids are playing a computer game. | K96: 1 | L96: 1 | N96: game
A97: 96 | B97: 1 | C97: 1 | D97: 6 | E97: 1 | F97: ยิ่งใหญ่ | G97: adj | H97: great | I97: large in amount, size or degree | J97: There was a great deal of (= a lot of) excitement in the classroom before lunch. | K97: 1 | L97: 1 | N97: great
A98: 97 | B98: 1 | C98: 1 | D98: 6 | E98: 2 | F98: ชั่วโมง | G98: noun | H98: hour | I98: a period of 60 minutes | J98: 7-11 shops are open 24 hours a day. | K98: 1 | L98: 1 | N98: hour
A99: 98 | B99: 1 | C99: 1 | D99: 6 | E99: 2 | F99: บ้าน | G99: noun | H99: house | I99: a building which people, usually one family, live in | J99: One day, I am going to live in a big house, with my own garden. | K99: 1 | L99: 1 | N99: house
A100: 99 | B100: 1 | C100: 1 | D100: 6 | E100: 2 | F100: ใน | G100: prep | H100: in | I100: In as a preposition describes a relationship of place between nouns in a sentence. | J100: When I went in the room, I saw the dog. | K100: 1 | L100: 1 | N100: in
A101: 100 | B101: 1 | C101: 1 | D101: 6 | E101: 2 | F101: ครัว | G101: noun | H101: kitchen | I101: a room where food is kept, prepared and cooked and where the dishes are washed | J101: I cook all my meals in the kitchen. | K101: 1 | L101: 1 | N101: kitchen
A102: 101 | B102: 1 | C102: 1 | D102: 6 | E102: 2 | F102: มีด | G102: noun | H102: knife | I102: a tool used for cutting and spreading food or other substances, or as a weapon | J102: I took a plastic knife and fork to the picnic. | K102: 1 | L102: 1 | N102: knife
A103: 102 | B103: 1 | C103: 1 | D103: 6 | E103: 2 | F103: โคมไฟ | G103: noun | H103: lamp | I103: a device for giving light, esp. one with a covering that the light shines through or around | J103: When it gets dark, I turn on my desk lamp so I can read my book. | K103: 1 | L103: 1 | N103: lamp
A104: 103 | B104: 1 | C104: 1 | D104: 6 | E104: 3 | F104: ใบไม้ | G104: noun | H104: leaf | I104: any of the flat, usually green parts of a plant that are joined at one end to the stem or branch | J104: By early November it’s getting cold so almost every leaf falls from each tree. | K104: 1 | L104: 1 | N104: leaf
A105: 104 | B105: 1 | C105: 1 | D105: 6 | E105: 3 | F105: มีชีวิตอยู่ | G105: adj | H105: living | I105: the room in a house or apartment where people sit or relax together but do not usually eat or sleep | J105: I watch TV together with my family in the living room. | K105: 1 | L105: 1 | N105: living
A106: 105 | B106: 1 | C106: 1 | D106: 6 | E106: 3 | F106: คน | G106: noun | H106: man | I106: an adult male human being | J106: The gas company sent a man to fix the heating system. | K106: 1 | L106: 1 | N106: man
A107: 106 | B107: 1 | C107: 1 | D107: 6 | E107: 3 | F107: การแข่งขัน | G107: noun | H107: match | I107: covered with a special chemical at one end which burns when rubbed | J107: He lit a match to start a fire. | K107: 1 | L107: 1 | N107: match | O107: match | P107: 441
A108: 107 | B108: 1 | C108: 1 | D108: 6 | E108: 3 | F108: เม้าส์ | G108: noun | H108: mouse | I108: a small mammal with short fur, a pointed face, and a long tail | J108: She screamed when she saw a mouse run across the kitchen floor. | K108: 1 | L108: 1 | N108: mouse
A109: 108 | B109: 1 | C109: 1 | D109: 6 | E109: 3 | F109: ขณะนี้ | G109: adv | H109: now | I109: at the present time, not in the past or future | J109: She used to work in an office, but now she works at home. | K109: 1 | L109: 1 | N109: now
A110: 109 | B110: 1 | C110: 1 | D110: 7 | E110: 1 | F110: บน | G110: prep | H110: on | I110: to show something is in a position above something else or moving to such a position | J110: There is snow on the ground. | K110: 1 | L110: 1 | N110: on
A111: 110 | B111: 1 | C111: 1 | D111: 7 | E111: 1 | F111: มากกว่า | G111: prep | H111: over | I111: above or higher than something else, sometimes so that one thing covers the other; above | J111: The horse jumped over the fence. | K111: 1 | L111: 1 | N111: over
A112: 111 | B112: 1 | C112: 1 | D112: 7 | E112: 1 | F112: พรรค | G112: noun | H112: party | I112: a social gathering at which people talk, eat, drink, and enjoy themselves | J112: Sally is having a birthday party at her place tonight. | K112: 1 | L112: 1 | N112: party
A113: 112 | B113: 1 | C113: 1 | D113: 7 | E113: 1 | F113: คน | G113: noun | H113: person | I113: a man, woman, or child | J113: Neil Armstrong was the first person to set foot on the moon. | K113: 1 | L113: 1 | N113: person
A114: 113 | B114: 1 | C114: 1 | D114: 7 | E114: 1 | F114: เครื่องพิมพ์ | G114: noun | H114: printer | I114: a machine connected to a computer that prints onto paper using ink | J114: After I write documents on my computer, I use a laser printer to publish them. | K114: 1
A115: 114 | B115: 1 | C115: 1 | D115: 7 | E115: 1 | F115: พร้อมแล้ว | G115: adj | H115: ready | I115: prepared and suitable for action or use | J115: The twins are getting ready for bed. | K115: 1 | L115: 1 | N115: ready
A116: 115 | B116: 1 | C116: 1 | D116: 7 | E116: 2 | F116: จริง | G116: adj | H116: real | I116: existing in fact; not imaginary | J116: This is a true story about real people. | K116: 1 | L116: 1 | N116: real
A117: 116 | B117: 1 | C117: 1 | D117: 7 | E117: 2 | F117: การรับ | G117: noun | H117: reception | I117: a formal party at which important people are welcomed | J117: After the wedding, the guests went to have dinner at the reception. | K117: 1 | L117: 1 | N117: reception
A118: 117 | B118: 1 | C118: 1 | D118: 7 | E118: 2 | F118: หนา | G118: adj | H118: thick | I118: having a large distance between two sides | J118: The walls are a foot thick. | M118: 1 | N118: thick
A119: 118 | B119: 1 | C119: 1 | D119: 7 | E119: 2 | F119: พรม | G119: noun | H119: rug | I119: a shaped piece of thick cloth for covering part of a floor | J119: The rug we bought for the living-room has a beautiful red and gold pattern. | K119: 1
A120: 119 | B120: 1 | C120: 1 | D120: 7 | E120: 2 | F120: ที่ลุ่ม | G120: noun | H120: bag | I120: a container of paper or light plastic that is open at the top, used esp. to hold things you have bought | J120: I put all my groceries in a shopping bag. | K120: 1 | L120: 1 | N120: bag
A121: 120 | B121: 1 | C121: 1 | D121: 7 | E121: 2 | F121: ฝักบัว | G121: noun | H121: shower | I121: a device which releases drops of water where you stand under to wash your whole body | J121: He stays in the shower until there is no more hot water! | K121: 1 | L121: 1 | N121: shower
A122: 121 | B122: 1 | C122: 1 | D122: 7 | E122: 3 | F122: โง่ | G122: adj | H122: silly | I122: showing a lack of thought or judgment; not serious and not showing much intelligence | J122: I watched another silly, crazy movie last night. | K122: 1 | L122: 1 | N122: silly
A123: 122 | B123: 1 | C123: 1 | D123: 7 | E123: 3 | F123: โซฟา | G123: noun | H123: sofa | I123: a long soft seat with a back and usually arms, on which more than one person can sit at the same time | J123: He lay down on the sofa in the living room and watched TV. | K123: 1 | L123: 1 | N123: sofa
A124: 123 | B124: 1 | C124: 1 | D124: 7 | E124: 3 | F124: ตาราง | G124: noun | H124: table | I124: a piece of furniture that has a flat top supported by legs | J124: We ate our meals sitting around a large dining room table. | K124: 1 | L124: 1 | N124: table
A125: 124 | B125: 1 | C125: 1 | D125: 7 | E125: 3 | F125: เทนนิส | G125: noun | H125: tennis | I125: a game played on a specially marked playing area in which two or four people use rackets to hit a small ball across a center net | J125: Roger Federer has won many tennis tournaments at Wimbeldon. | K125: 1 | L125: 1 | N125: tennis
A126: 125 | B126: 1 | C126: 1 | D126: 7 | E126: 3 | F126: โทรศัพท์ | G126: noun | H126: telephone | I126: a device for speaking to someone in another place by means of electrical signals | J126: AIS is a big telephone company. | K126: 1 | L126: 1 | N126: telephone
A127: 126 | B127: 1 | C127: 1 | D127: 7 | E127: 3 | F127: ฟัน | G127: noun | H127: tooth | I127: one of the hard white objects in the mouth, used for biting and chewing | J127: I have a sore tooth so I should go to see a dentist. | K127: 1
A128: 127 | B128: 1 | C128: 1 | D128: 8 | E128: 1 | F128: ของเล่น | G128: noun | H128: toy | I128: an object for children to play with | J128: When I was young, I played with a toy train set. | K128: 1 | L128: 1 | N128: toy
A129: 128 | B129: 1 | C129: 1 | D129: 8 | E129: 1 | F129: ภายใต้ | G129: prep | H129: under | I129: in or to a position below or lower than (something else), often so that one thing covers the other | J129: Our dog hides under the bed whenever we have a lightning storm. | K129: 1 | L129: 1 | N129: under
A130: 129 | B130: 1 | C130: 1 | D130: 8 | E130: 1 | F130: ชั้นบน | G130: adv | H130: upstairs | I130: towards or on the highest floor or floors of a building | J130: When I am tired, I climb upstairs to go to the bedroom and sleep. | K130: 1 | L130: 1 | N130: upstairs
A131: 130 | B131: 1 | C131: 1 | D131: 8 | E131: 1 | F131: เสมือน | G131: adj | H131: virtual | I131: seeming real in effect or essence | J131: She was a virtual unknown before this movie. | K131: 1
A132: 131 | B132: 1 | C132: 1 | D132: 8 | E132: 1 | F132: ตู้เสื้อผ้า | G132: noun | H132: wardrobe | I132: a tall cupboard in which to hang clothes | J132: I hang all my shirts in a wardrobe. | K132: 1
A133: 132 | B133: 1 | C133: 1 | D133: 8 | E133: 1 | F133: ชม | G133: verb | H133: watch | I133: to look at something for a period of time | J133: He spent the evening watching an old movie on TV. | K133: 1 | L133: 1 | N133: watch | O133: watch | P133: 424
A134: 133 | B134: 1 | C134: 1 | D134: 8 | E134: 2 | F134: ภรรยา | G134: noun | H134: wife | I134: the woman to whom a man is married; a married woman | J134: I have been married to my wife for the past 17 years. | K134: 1 | L134: 1 | N134: wife
A135: 134 | B135: 1 | C135: 1 | D135: 8 | E135: 2 | F135: หญิง | G135: noun | H135: woman | I135: an adult female human being | J135: A man often suffers more from high blood pressure than a woman. | K135: 1 | L135: 1 | N135: woman
A136: 135 | B136: 1 | C136: 1 | D136: 8 | E136: 2 | F136: ไม่ดี | G136: adj | H136: bad | I136: unpleasant; causing difficulties or harm | J136: Flights were delayed because of bad weather. | K136: 1 | L136: 1 | N136: bad
A137: 136 | B137: 1 | C137: 1 | D137: 8 | E137: 2 | F137: ใหญ่ | G137: adj | H137: big | I137: large in size or amount | J137: Do you have these shoes in a bigger size? | K137: 1 | L137: 1 | N137: big
A138: 137 | B138: 1 | C138: 1 | D138: 8 | E138: 2 | F138: กลายเป็น | G138: verb | H138: become | I138: to start to be | J138: Do you want to change and become a British citizen? | K138: 1 | L138: 1 | N138: become
A139: 138 | B139: 1 | C139: 1 | D139: 8 | E139: 2 | F139: หัวเข็มขัด | G139: noun | H139: buckle | I139: a fastener for a belt | J139: I waer a black belt with a silver buckle. | K139: 1
A140: 139 | B140: 1 | C140: 1 | D140: 8 | E140: 3 | F140: อาคาร | G140: noun | H140: building | I140: a structure with walls and a roof | J140: Many buildings were badly damaged or destroyed by the earthquake. | K140: 1 | L140: 1 | N140: building
A141: 140 | B141: 1 | C141: 1 | D141: 8 | E141: 3 | F141: ประตู | G141: noun | H141: door | I141: a flat, usually rectangular, object that is fixed at one edge and is used to close the entrance to something such as a room, building, or vehicle, or the entrance itself | J141: I’ll meet you at the main door of the library. | K141: 1 | L141: 1 | N141: door
A142: 141 | B142: 1 | C142: 1 | D142: 8 | E142: 3 | F142: ตัวอักษร | G142: noun | H142: alphabet | I142: a set of letters arranged in a fixed order which is used for writing a language | J142: The English alphabet has 26 letters, while the Thai has 44. | M142: 1 | N142: alphabet
A143: 142 | B143: 1 | C143: 1 | D143: 8 | E143: 3 | F143: กลัว | G143: noun | H143: fear | I143: an unpleasant emotion when frightened or worried by something dangerous, painful or bad | J143: Even when the boat was rocked by waves, the boy showed no fear. | K143: 1 | L143: 1 | N143: fear
A144: 143 | B144: 1 | C144: 1 | D144: 8 | E144: 3 | F144: รู้สึก | G144: verb | H144: feel | I144: to experience or be aware of something emotional or physical | J144: She said she didn’t want anyone to feel sorry for her. | K144: 1 | L144: 1 | N144: feel
A145: 144 | B145: 1 | C145: 1 | D145: 8 | E145: 3 | F145: ชั้น | G145: noun | H145: floor | I145: the flat surface that you walk on when you are inside a building | J145: There were no chairs, so the children sat on the floor. | K145: 1 | L145: 1 | N145: floor
A146: 145 | B146: 1 | C146: 1 | D146: 9 | E146: 1 | F146: หัวใจ | G146: noun | H146: heart | I146: the organ in your chest that sends the blood around your body | J146: The heart pumps blood around the body in 60–80 beats per minute (bpm). | K146: 1 | L146: 1 | N146: heart
A147: 146 | B147: 1 | C147: 1 | D147: 9 | E147: 1 | F147: ไก่ | G147: noun | H147: hen | I147: an adult female chicken that is often kept for its eggs, or the female of any bird | J147: On average, 3 hens will produce 2 eggs a day. | K147: 1
A148: 147 | B148: 1 | C148: 1 | D148: 9 | E148: 1 | F148: บ้าน | G148: noun | H148: home | I148: the house, apartment, etc. where you live, especially with your famil | J148: After school, I go home to see my mum and dad. | K148: 1 | L148: 1 | N148: home
A149: 148 | B149: 1 | C149: 1 | D149: 9 | E149: 1 | F149: ในร่ม | G149: adj | H149: indoor | I149: situated inside a building | J149: Tommy lives in a big mansion that has an indoor swimming pool. | K149: 1 | L149: 1 | N149: indoor
A150: 149 | B150: 1 | C150: 1 | D150: 9 | E150: 1 | F150: กระได | G150: noun | H150: ladder | I150: a piece of equipment used for climbing up and down, and consisting of two vertical bars joined by a set of horizontal steps | J150: I climbed the ladder to paint high up on the wall. | K150: 1 | L150: 1 | N150: ladder
A151: 150 | B151: 1 | C151: 1 | D151: 9 | E151: 1 | F151: ปู | G151: verb | H151: lay | I151: to put something down, esp. into a flat or horizontal position | J151: He lay down on the sandy beach. | K151: 1 | L151: 1 | N151: lay
A152: 151 | B152: 1 | C152: 1 | D152: 9 | E152: 2 | F152: ความรัก | G152: verb | H152: love | I152: to have a strong affection for someone, which can be combined with a strong romantic attraction | J152: "I love you and want to marry you, Emily," he said. | K152: 1 | L152: 1 | N152: love
A153: 152 | B153: 1 | C153: 1 | D153: 9 | E153: 2 | F153: โชคดี | G153: noun | H153: luck | I153: Luck is when good things beyond your own control happen to you. | J153: I hope you do well so I wish you the best of luck for your exams. | K153: 1 | L153: 1 | N153: luck
A154: 153 | B154: 1 | C154: 1 | D154: 9 | E154: 2 | F154: เต่าทอง | G154: noun | H154: ladybird | I154: a small red beetle which is round and has black spots | J154: Look at that red and black ladybird bug walking on that leaf. | K154: 1
A155: 154 | B155: 1 | C155: 1 | D155: 9 | E155: 2 | F155: นกกางเขน | G155: noun | H155: magpie | I155: a bird with black-and-white feathers and a long tail | J155: The noisy magpies are birds with black and white feathers. | K155: 1
A156: 155 | B156: 1 | C156: 1 | D156: 9 | E156: 2 | F156: ใหม่ | G156: adj | H156: new | I156: recently created or having started to exist recently | J156: She’s always thinking of new ideas. | K156: 1 | L156: 1 | N156: new
A157: 156 | B157: 1 | C157: 1 | D157: 9 | E157: 2 | F157: เลือก | G157: verb | H157: pick | I157: to take some things and leave others; to choose | J157: We finally picked February 14 as the date for our wedding. | K157: 1 | L157: 1 | N157: pick
A158: 157 | B158: 1 | C158: 1 | D158: 9 | E158: 3 | F158: ใส่ | G158: verb | H158: put | I158: to move something or someone into the stated place, position or direction | J158: She put her coffee cup on the table. | K158: 1 | L158: 1 | N158: put
A159: 158 | B159: 1 | C159: 1 | D159: 9 | E159: 3 | F159: ทดสอบ | G159: noun | H159: quiz | I159: a game or competition in which you answer questions | J159: We had a history quiz today. | K159: 1 | L159: 1 | N159: quiz
A160: 159 | B160: 1 | C160: 1 | D160: 9 | E160: 3 | F160: สัมผัส | G160: noun | H160: rhyme | I160: to have the same final sound, or to use words that have the same final sound | J160: "Love" and "above" have the same ending sound. These words rhyme. | K160: 1
A161: 160 | B161: 1 | C161: 1 | D161: 9 | E161: 3 | F161: แถว | G161: noun | H161: row | I161: a line of things arranged next to each other | J161: I want to sit in the front row of seats. | K161: 1 | L161: 1 | N161: row
A162: 161 | B162: 1 | C162: 1 | D162: 9 | E162: 3 | F162: ปลอดภัย | G162: adj | H162: safe | I162: free from danger or harm, or not causing danger or harm | J162: Be careful and have a safe trip. | K162: 1 | L162: 1 | N162: safe
A163: 162 | B163: 1 | C163: 1 | D163: 9 | E163: 3 | F163: พูด | G163: verb | H163: say | I163: to speak or pronounce words | J163: The child could say her ABCs when she was still a baby. | K163: 1 | L163: 1 | N163: say
A164: 163 | B164: 1 | C164: 1 | D164: 10 | E164: 1 | F164: คำพูด | G164: noun | H164: saying | I164: a well-known expression or wise statement | J164: To be or not to be' is a famous saying from Hamlet by William Sharespeare. | K164: 1
A165: 164 | B165: 1 | C165: 1 | D165: 10 | E165: 1 | F165: รองเท้า | G165: noun | H165: shoe | I165: an item of footwear intended to protect the foot while walking. | J165: I'll put on my shoes and then go outside to play tennis. | K165: 1 | L165: 1 | N165: shoe
A166: 165 | B166: 1 | C166: 1 | D166: 10 | E166: 1 | F166: ปิด | G166: verb | H166: shut | I166: to close something | J166: Would you shut the door, please? | K166: 1 | L166: 1 | N166: shut
A167: 166 | B167: 1 | C167: 1 | D167: 10 | E167: 1 | F167: จุด | G167: noun | H167: spot | I167: a mark, usually round, that is different esp. in color from the area around it | J167: You got a spot on your new blouse. | K167: 1 | L167: 1 | N167: spot
A168: 167 | B168: 1 | C168: 1 | D168: 10 | E168: 1 | F168: ติด | G168: verb | H168: stick | I168: to attach or become attached | J168: Stick the tape to the back of the picture. | K168: 1 | L168: 1 | N168: stick
A169: 168 | B169: 1 | C169: 1 | D169: 10 | E169: 1 | F169: ตรง | G169: adj | H169: straight | I169: not bending or curving | J169: Draw a straight line between the two dots. | K169: 1 | L169: 1 | N169: straight
A170: 169 | B170: 1 | C170: 1 | D170: 10 | E170: 2 | F170: ถนน | G170: noun | H170: street | I170: a road in a city or town, usually with buildings along one or both sides | J170: Watch out for cars, and look both ways when you cross the street. | K170: 1 | L170: 1 | N170: street
A171: 170 | B171: 1 | C171: 1 | D171: 10 | E171: 2 | F171: หวาน | G171: adj | H171: sweet | I171: having a taste similar to that of sugar or honey | J171: The four basic tastes are sweet, salty, bitter, and sour. | K171: 1 | L171: 1 | N171: sweet
A172: 171 | B172: 1 | C172: 1 | D172: 10 | E172: 2 | F172: วัยโจ๋ | G172: noun | H172: teenager | I172: a person who is 13 through 19 years old | J172: Tom, who is 14, is a lovely teenager. | K172: 1
A173: 172 | B173: 1 | C173: 1 | D173: 10 | E173: 2 | F173: คิด | G173: verb | H173: think | I173: to have or to form an opinion or idea about something | J173: "Do you think this is the right address?" "I don’t think so." | K173: 1 | L173: 1 | N173: think
A174: 173 | B174: 1 | C174: 1 | D174: 10 | E174: 2 | F174: สัมผัส | G174: verb | H174: touch | I174: to put the fingers or hand lightly on or against something | J174: That paint is wet, so don’t touch. | K174: 1 | L174: 1 | N174: touch
A175: 174 | B175: 1 | C175: 1 | D175: 10 | E175: 2 | F175: ร่ม | G175: noun | H175: umbrella | I175: a cover that protects from rain or sun, esp. waterproof material fitted on a folding frame with a handle at one end | J175: A figure carrying an open umbrella walked slowly through the rain. | K175: 1 | L175: 1 | N175: umbrella
A176: 175 | B176: 1 | C176: 1 | D176: 10 | E176: 3 | F176: โชคร้าย | G176: adj | H176: unlucky | I176: to describe when bad things beyond your own control happen to you. | J176: I studied but failed the test. The most difficult questions came up so I was unlucky. | K176: 1
A177: 176 | B177: 1 | C177: 1 | D177: 10 | E177: 3 | F177: เดิน | G177: verb | H177: walk | I177: to move along by putting one foot in front of the other | J177: It’s not that far – you can walk it in half an hour. | K177: 1 | L177: 1 | N177: walk
A178: 177 | B178: 1 | C178: 1 | D178: 10 | E178: 3 | F178: ต้องการ | G178: verb | H178: wish | I178: to hope or express desire for success or happiness | J178: I wish I could buy a new car. | K178: 1 | L178: 1 | N178: wish
A179: 178 | B179: 1 | C179: 1 | D179: 10 | E179: 3 | F179: เนื้อไม้ | G179: noun | H179: wood | I179: a hard substance from trees which can be used as a building material or fuel | J179: He makes tables from natural material, like wood. | K179: 1 | L179: 1 | N179: wood
A180: 179 | B180: 1 | C180: 1 | D180: 10 | E180: 3 | F180: คำ | G180: noun | H180: word | I180: a single unit of language that has meaning and can be spoken or written | J180: She spoke so fast I couldn’t understand a word. | K180: 1 | L180: 1 | N180: word
A181: 180 | B181: 1 | C181: 1 | D181: 10 | E181: 3 | F181: ค้นหา | G181: verb | H181: search | I181: to look somewhere carefully in order to find something | J181: I searched for the answer on the Internet. | K181: 1 | L181: 1 | N181: search
A182: 181 | B182: 1 | C182: 1 | D182: 11 | E182: 1 | F182: โรยตัว | G182: noun | H182: abseiling | I182: to go down a slope, holding to a rope which is fastened to the slope's top | J182: She went abseiling down the rock face. | K182: 1 | L182: 1 | N182: again
A183: 182 | B183: 1 | C183: 1 | D183: 11 | E183: 1 | F183: ถุง | G183: noun | H183: climate | I183: the general weather conditions usually found in a particular place | J183: My parents like the warm, dry climate of Arizona. | K183: 1 | L183: 1 | N183: climate
A184: 183 | B184: 1 | C184: 1 | D184: 11 | E184: 1 | F184: วงดนตรี | G184: noun | H184: band | I184: a group of musicians who play modern music together | J184: Potato is a great Thai rock band. | K184: 1 | L184: 1 | N184: band
A185: 184 | B185: 1 | C185: 1 | D185: 11 | E185: 1 | F185: เลข | G185: noun | H185: figure | I185: the symbol for a number or an amount expressed in numbers | J185: Can you read this figure? Is it a three or an eight? | M185: 1 | N185: figure
A186: 185 | B186: 1 | C186: 1 | D186: 11 | E186: 1 | F186: สีดำ | G186: adj | H186: black | I186: the darkest color there is, like night | J186: He was dressed all in black. | K186: 1 | L186: 1 | N186: black
A187: 186 | B187: 1 | C187: 1 | D187: 11 | E187: 1 | F187: สีบลอนด์ | G187: adj | H187: blond | I187: pale yellow or golden | J187: Do you think she’s a natural blonde, or is her hair bleached? | K187: 1
A188: 187 | B188: 1 | C188: 1 | D188: 11 | E188: 2 | F188: ทันตแพทย์ | G188: noun | H188: dentist | I188: a person whose job is treating people’s teeth | J188: My teeth are hurting. I think I must go to a dentist. | K188: 1 | L188: 1 | N188: dentist
A189: 188 | B189: 1 | C189: 1 | D189: 11 | E189: 2 | F189: สีน้ำเงิน | G189: adj | H189: blue | I189: of the colour of the sky without clouds on a bright day, or a darker or lighter type of this | J189: The sky is a beautiful shade of blue. | K189: 1 | L189: 1 | N189: blue
A190: 189 | B190: 1 | C190: 1 | D190: 11 | E190: 2 | F190: สุกใส | G190: adj | H190: brilliant | I190: very good | J190: Armstrong was one of the most brilliant musicians in jazz. | K190: 1 | L190: 1 | N190: brilliant
A191: 190 | B191: 1 | C191: 1 | D191: 11 | E191: 2 | F191: สีน้ำตาล | G191: adj | H191: brown | I191: the color of chocolate or earth | J191: He was wearing a brown shirt. | K191: 1 | L191: 1 | N191: brown
A192: 191 | B192: 1 | C192: 1 | D192: 11 | E192: 2 | F192: รถบัส | G192: noun | H192: bus | I192: a large vehicle in which people are driven from one place to another | J192: The tour bus was the easiest way to see the area. | K192: 1 | L192: 1 | N192: bus
A193: 192 | B193: 1 | C193: 1 | D193: 11 | E193: 2 | F193: หยุด | G193: verb | H193: stop | I193: to finish doing something that you were doing | J193: When do you think the snow will stop? | K193: 1 | L193: 1 | N193: stop
A194: 193 | B194: 1 | C194: 1 | D194: 11 | E194: 3 | F194: แคลิฟอร์เนีย | G194: adj | H194: californian | I194: someone who lives and works in California, USA. | J194: Most people in Hollywood are Californians. | K194: 1
A195: 194 | B195: 1 | C195: 1 | D195: 11 | E195: 3 | F195: ฝาครอบ | G195: noun | H195: cap | I195: a soft, light hat, esp. one with a curved part sticking out at the front | J195: My uncle must have a hundred baseball caps to choose from. | K195: 1 | L195: 1 | N195: cap
A196: 195 | B196: 1 | C196: 1 | D196: 11 | E196: 3 | F196: ชั้น | G196: noun | H196: class | I196: a group of students, taught together in a particular subject at school | J196: I am in class M1. | K196: 1 | L196: 1 | N196: class
A197: 196 | B197: 1 | C197: 1 | D197: 11 | E197: 3 | F197: มา | G197: verb | H197: come | I197: to move or travel towards the speaker or with the speaker | J197: Tomorrow, my uncle will come here from Bangkok. | K197: 1 | L197: 1 | N197: come
A198: 197 | B198: 1 | C198: 1 | D198: 11 | E198: 3 | F198: จิ้งหรีด | G198: noun | H198: cricket | I198: a team sport popular in England, played with a small, hard ball and a bat | J198: We all went to the village green to play the old English game of cricket together. | K198: 1
A199: 198 | B199: 1 | C199: 1 | D199: 11 | E199: 3 | F199: มันฝรั่งทอดกรอบ | G199: noun | H199: crisps | I199: a very thin slice of potato fried until stiff, and sometimes flavored | J199: Lays are greazt tasty crisps or potato chips. | K199: 1
A200: 199 | B200: 1 | C200: 1 | D200: 12 | E200: 1 | F200: มืด | G200: adj | H200: dark | I200: with little or no light | J200: It was too dark to see much of anything. | K200: 1 | L200: 1 | N200: dark
... 1961 more rows

Sheet Student WordList
A1: Wk | B1: Pt | C1: Thai | D1: Word | E1: Definition
A2: 1 | B2: 1 | C2: ='M1 Sem 2a'!C2 -> บ่าย | D2: ='M1 Sem 2a'!E2 -> afternoon | E2: ='M1 Sem 2a'!F2 -> Time from twelve o'clock lunchtime till the sun goes down
C3: ='M1 Sem 2a'!D2 -> noun | D3: ='M1 Sem 2a'!G2 -> I didn't go in the morning but in the afternoon instead. | G3: M | H3: 1
A4: 1 | B4: 1 | C4: ='M1 Sem 2a'!C3 -> เสมอ | D4: ='M1 Sem 2a'!E3 -> always | E4: ='M1 Sem 2a'!F3 -> every time, all the time, or forever | G4: Sem | H4: 2
C5: ='M1 Sem 2a'!D3 -> adv | D5: ='M1 Sem 2a'!G3 -> He always enjoyed having dinner with friends.
A6: 1 | B6: 1 | C6: ='M1 Sem 2a'!C4 -> เบคอน | D6: ='M1 Sem 2a'!E4 -> bacon | E6: ='M1 Sem 2a'!F4 -> salted or smoked meat from the back or sides of a pig, usually eaten sliced and fried | G6: Adjust. | H6: =H3*2 -> 2 | I6: Nouns | J6: =COUNTIF(C:C,"noun") -> 213
C7: ='M1 Sem 2a'!D4 -> noun | D7: ='M1 Sem 2a'!G4 -> Try to eat some grilled bacon or ham together with scrambled eggs or omelets. | G7: Total | H7: =H4+H6 -> 4 | I7: Verbs | J7: =COUNTIF(C:C,"verb") -> 76
A8: 1 | B8: 1 | C8: ='M1 Sem 2a'!C5 -> ชายหาด | D8: ='M1 Sem 2a'!E5 -> beach | E8: ='M1 Sem 2a'!F5 -> an area of sand or small stones near the sea or another area of water such as a lake | I8: Adjectives | J8: =COUNTIF(C:C,"adj") -> 48
C9: ='M1 Sem 2a'!D5 -> noun | D9: ='M1 Sem 2a'!G5 -> Pattaya has a long, sandy beach that stretches over 2 kilometers. | I9: Adverbs | J9: =COUNTIF(C:C,"adv") -> 13
A10: 1 | B10: 1 | C10: ='M1 Sem 2a'!C6 -> เพราะ | D10: ='M1 Sem 2a'!E6 -> because | E10: ='M1 Sem 2a'!F6 -> for the reason that | I10: Pronouns | J10: =COUNTIF(C:C,"pron") -> 2
C11: ='M1 Sem 2a'!D6 -> conj | D11: ='M1 Sem 2a'!G6 -> We can’t go to Julia’s party because we’re going away that weekend. | I11: Prepositions | J11: =COUNTIF(C:C,"prep") -> 3
A12: 1 | B12: 1 | C12: ='M1 Sem 2a'!C7 -> เริ่ม | D12: ='M1 Sem 2a'!E7 -> begin | E12: ='M1 Sem 2a'!F7 -> to start to be, do, | I12: Conjunctions | J12: =COUNTIF(C:C,"conj") -> 3
C13: ='M1 Sem 2a'!D7 -> verb | D13: ='M1 Sem 2a'!G7 -> Let me begin by explaining why I arrived late. | I13: Expressions | J13: =COUNTIF(C:C,"exp") -> 2
A14: 1 | B14: 2 | C14: ='M1 Sem 2a'!C8 -> วันเกิด | D14: ='M1 Sem 2a'!E8 -> birthday | E14: ='M1 Sem 2a'!F8 -> the day that is a year or number of years after a person was born
C15: ='M1 Sem 2a'!D8 -> noun | D15: ='M1 Sem 2a'!G8 -> Today is my mother’s 49th birthday so we are going to bake a cake for her. | I15: Total Words | J15: =SUM(J6:J14) -> 360
A16: 1 | B16: 2 | C16: ='M1 Sem 2a'!C9 -> อาหารเช้า | D16: ='M1 Sem 2a'!E9 -> breakfast | E16: ='M1 Sem 2a'!F9 -> a meal eaten in the morning as the first meal of the day
C17: ='M1 Sem 2a'!D9 -> noun | D17: ='M1 Sem 2a'!G9 -> We had scrambled eggs and toast for breakfast. | I17: PET in SB | J17: =IF($H$7=3,(SUM('M1 Sem 1a'!N3+'M1 Sem 1b'!N3)),IF($H$7=4,(SUM('M1 Sem 2a'!N3+'M1 Sem 2b'!N3)),IF($H$7=5,(SUM('M2 Sem 1a'!N3+'M2 Sem 1b'!N3)),IF($H$7=6,(SUM('M2 Sem 2a'!N3+'M2 Sem 2b'!N3)),IF($H$7=7,(SUM('M3 Sem 1a'!N3+'M3 Sem 1b'!N3)),SUM('M3 Sem 2a'!N3+'M3 Sem 2b'!N3)))))) -> 234 | K17: =J17/SUM($J$17:$J$19) -> 0.8571428571
A18: 1 | B18: 2 | C18: ='M1 Sem 2a'!C10 -> แต่ | D18: ='M1 Sem 2a'!E10 -> but | E18: ='M1 Sem 2a'!F10 -> used to express a difference or to introduce an added statement | I18: PET Added | J18: =IF($H$7=3,(SUM('M1 Sem 1a'!N8+'M1 Sem 1b'!N8)),IF($H$7=4,(SUM('M1 Sem 2a'!N8+'M1 Sem 2b'!N8)),IF($H$7=5,(SUM('M2 Sem 1a'!N8+'M2 Sem 1b'!N8)),IF($H$7=6,(SUM('M2 Sem 2a'!N8+'M2 Sem 2b'!N8)),IF($H$7=7,(SUM('M3 Sem 1a'!N8+'M3 Sem 1b'!N8)),SUM('M3 Sem 2a'!N8+'M3 Sem 2b'!N8)))))) -> 39 | K18: =J18/SUM($J$17:$J$19) -> 0.1428571429
C19: ='M1 Sem 2a'!D10 -> conj | D19: ='M1 Sem 2a'!G10 -> You can take Route 14 to get there, but it may take you a little longer.
A20: 1 | B20: 2 | C20: ='M1 Sem 2a'!C11 -> รถ | D20: ='M1 Sem 2a'!E11 -> car | E20: ='M1 Sem 2a'!F11 -> a road vehicle with an engine, four wheels, and seats
C21: ='M1 Sem 2a'!D11 -> noun | D21: ='M1 Sem 2a'!G11 -> She doesn't take the bus, but rather goes to work by car.
A22: 1 | B22: 2 | C22: ='M1 Sem 2a'!C12 -> ธัญญาหาร | D22: ='M1 Sem 2a'!E12 -> cereal | E22: ='M1 Sem 2a'!F12 -> a food made from grain that is eaten esp. for breakfast
C23: ='M1 Sem 2a'!D12 -> noun | D23: ='M1 Sem 2a'!G12 -> W.K. Kellogg began to sell Kellogg’s Corn Flakes as a cereal breakfast in 1906.
A24: 1 | B24: 2 | C24: ='M1 Sem 2a'!C13 -> พูดคุย | D24: ='M1 Sem 2a'!E13 -> chat | E24: ='M1 Sem 2a'!F13 -> to talk to someone in a friendly informal way
C25: ='M1 Sem 2a'!D13 -> verb | D25: ='M1 Sem 2a'!G13 -> We stopped to chat with the neighbors.
A26: 1 | B26: 3 | C26: ='M1 Sem 2a'!C14 -> คริสต์มาส | D26: ='M1 Sem 2a'!E14 -> Christmas | E26: ='M1 Sem 2a'!F14 -> December 25th, a day celebrated each year to honor the birth of Jesus
C27: ='M1 Sem 2a'!D14 -> noun | D27: ='M1 Sem 2a'!G14 -> I wish you have a very Merry Christmas!
A28: 1 | B28: 3 | C28: ='M1 Sem 2a'!C15 -> เป็นอันตราย | D28: ='M1 Sem 2a'!E15 -> dangerous | E28: ='M1 Sem 2a'!F15 -> able or likely to cause harm or death, or unpleasant problems
C29: ='M1 Sem 2a'!D15 -> adj | D29: ='M1 Sem 2a'!G15 -> Whooping cough is most dangerous cough for infants.
A30: 1 | B30: 3 | C30: ='M1 Sem 2a'!C16 -> ส่งมอบ | D30: ='M1 Sem 2a'!E16 -> deliver | E30: ='M1 Sem 2a'!F16 -> to take goods, letters, or packages to people’s houses or places of work
C31: ='M1 Sem 2a'!D16 -> verb | D31: ='M1 Sem 2a'!G16 -> We deliver pizza in 30 minutes or you get your money back!
A32: 1 | B32: 3 | C32: ='M1 Sem 2a'!C17 -> นักสืบ | D32: ='M1 Sem 2a'!E17 -> detective | E32: ='M1 Sem 2a'!F17 -> someone who discovers information about crimes and find out who is responsible
C33: ='M1 Sem 2a'!D17 -> noun | D33: ='M1 Sem 2a'!G17 -> Sherlock Holmes is the fictional detective in Arthur Conan Doyle's books.
A34: 1 | B34: 3 | C34: ='M1 Sem 2a'!C18 -> อาหารเย็น | D34: ='M1 Sem 2a'!E18 -> dinner | E34: ='M1 Sem 2a'!F18 -> the main meal of the day, whether in the evening or midday
C35: ='M1 Sem 2a'!D18 -> noun | D35: ='M1 Sem 2a'!G18 -> The restaurant is open for dinner from 5 p.m. to 10 p.m.
A36: 1 | B36: 3 | C36: ='M1 Sem 2a'!C19 -> ทำ | D36: ='M1 Sem 2a'!E19 -> do | E36: ='M1 Sem 2a'!F19 -> used with another verb to form questions and negative sentences
C37: ='M1 Sem 2a'!D19 -> verb | D37: ='M1 Sem 2a'!G19 -> Where do you work?
A38: 2 | B38: 1 | C38: ='M1 Sem 2a'!C20 -> ก่อน | D38: ='M1 Sem 2a'!E20 -> early | E38: ='M1 Sem 2a'!F20 -> near the beginning of a period of time, or before the expected time
C39: ='M1 Sem 2a'!D20 -> adv | D39: ='M1 Sem 2a'!G20 -> I got up early this morning to walk the dog.
A40: 2 | B40: 1 | C40: ='M1 Sem 2a'!C21 -> การศึกษา | D40: ='M1 Sem 2a'!E21 -> education | E40: ='M1 Sem 2a'!F21 -> the process of teaching or learning in a school or college, or the knowledge received
C41: ='M1 Sem 2a'!D21 -> noun | D41: ='M1 Sem 2a'!G21 -> Education institutes employ teachers and lecturers to transfer knowledge to students.
A42: 2 | B42: 1 | C42: ='M1 Sem 2a'!C22 -> ตอนเย็น | D42: ='M1 Sem 2a'!E22 -> evening | E42: ='M1 Sem 2a'!F22 -> the part of the day between the afternoon and the night
C43: ='M1 Sem 2a'!D22 -> noun | D43: ='M1 Sem 2a'!G22 -> We always go to the movies on Friday evenings.
A44: 2 | B44: 1 | C44: ='M1 Sem 2a'!C23 -> ทุกๆ | D44: ='M1 Sem 2a'!E23 -> every | E44: ='M1 Sem 2a'!F23 -> used when referring to all the members of a group of three or more considered separately
C45: ='M1 Sem 2a'!D23 -> adj | D45: ='M1 Sem 2a'!G23 -> 7-11 is open every day of the year.
A46: 2 | B46: 1 | C46: ='M1 Sem 2a'!C24 -> ตื่นเต้น | D46: ='M1 Sem 2a'!E24 -> excited | E46: ='M1 Sem 2a'!F24 -> someone have strong feelings of happiness and enthusiasm
C47: ='M1 Sem 2a'!D24 -> adj | D47: ='M1 Sem 2a'!G24 -> She was excited about the trip because she was going to learn to ski.
A48: 2 | B48: 1 | C48: ='M1 Sem 2a'!C25 -> เสร็จสิ้น | D48: ='M1 Sem 2a'!E25 -> finish | E48: ='M1 Sem 2a'!F25 -> to come to an end
C49: ='M1 Sem 2a'!D25 -> verb | D49: ='M1 Sem 2a'!G25 -> The class started at 8.30 and should finish at 9.25.
A50: 2 | B50: 2 | C50: ='M1 Sem 2a'!C26 -> บิน | D50: ='M1 Sem 2a'!E26 -> fly | E50: ='M1 Sem 2a'!F26 -> When a bird, insect or aircraft flies, it moves through the air
C51: ='M1 Sem 2a'!D26 -> verb | D51: ='M1 Sem 2a'!G26 -> We enjoy watching the birds fly over the water.
A52: 2 | B52: 2 | C52: ='M1 Sem 2a'!C27 -> ฟุตบอล | D52: ='M1 Sem 2a'!E27 -> football | E52: ='M1 Sem 2a'!F27 -> a game in which two teams try to send a ball into the goal of the opposing side without using their arms or hands
C53: ='M1 Sem 2a'!D27 -> noun | D53: ='M1 Sem 2a'!G27 -> Manchester United is my favourite football team.
A54: 2 | B54: 2 | C54: ='M1 Sem 2a'!C28 -> ฟรี | D54: ='M1 Sem 2a'!E28 -> free | E54: ='M1 Sem 2a'!F28 -> not limited or controlled
C55: ='M1 Sem 2a'!D28 -> adj | D55: ='M1 Sem 2a'!G28 -> You are free to come and go as you please.
A56: 2 | B56: 2 | C56: ='M1 Sem 2a'!C29 -> สนุก | D56: ='M1 Sem 2a'!E29 -> fun | E56: ='M1 Sem 2a'!F29 -> pleasure, enjoyment, amusement, or someone or something that causes this
C57: ='M1 Sem 2a'!D29 -> noun | D57: ='M1 Sem 2a'!G29 -> Everybody had a lot of fun at the party.
A58: 2 | B58: 2 | C58: ='M1 Sem 2a'!C30 -> ได้รับ | D58: ='M1 Sem 2a'!E30 -> get | E58: ='M1 Sem 2a'!F30 -> to obtain, buy or earn, eceive or be given something
C59: ='M1 Sem 2a'!D30 -> verb | D59: ='M1 Sem 2a'!G30 -> He climbed over the fence to get his ball back.
A60: 2 | B60: 2 | C60: ='M1 Sem 2a'!C31 -> ไป | D60: ='M1 Sem 2a'!E31 -> go | E60: ='M1 Sem 2a'!F31 -> to move or travel to another place
C61: ='M1 Sem 2a'!D31 -> verb | D61: ='M1 Sem 2a'!G31 -> Where are you going to go on your vacation?
A62: 2 | B62: 3 | C62: ='M1 Sem 2a'!C32 -> แขก | D62: ='M1 Sem 2a'!E32 -> guest | E62: ='M1 Sem 2a'!F32 -> a person who is staying with you
C63: ='M1 Sem 2a'!D32 -> noun | D63: ='M1 Sem 2a'!G32 -> I visited Bangkok and was a guest speaker at a meeting.
A64: 2 | B64: 3 | C64: ='M1 Sem 2a'!C33 -> มี | D64: ='M1 Sem 2a'!E33 -> have | E64: ='M1 Sem 2a'!F33 -> used with the past participle of other verbs to form perfect tenses
C65: ='M1 Sem 2a'!D33 -> verb | D65: ='M1 Sem 2a'!G33 -> I have heard that story before.
A66: 2 | B66: 3 | C66: ='M1 Sem 2a'!C34 -> ช่วย | D66: ='M1 Sem 2a'!E34 -> help | E66: ='M1 Sem 2a'!F34 -> to make it possible or easier for someone to do something
C67: ='M1 Sem 2a'!D34 -> verb | D67: ='M1 Sem 2a'!G34 -> Avoiding fatty foods and salt can help to bring down your blood pressure.
A68: 2 | B68: 3 | C68: ='M1 Sem 2a'!C35 -> ว่าว | D68: ='M1 Sem 2a'!E35 -> kite | E68: ='M1 Sem 2a'!F35 -> a light frame covered with material, flown in the wind from a long string
C69: ='M1 Sem 2a'!D35 -> noun | D69: ='M1 Sem 2a'!G35 -> On windy days Susan likes to fly her kite in the park.
A70: 2 | B70: 3 | C70: ='M1 Sem 2a'!C36 -> มีชีวิต | D70: ='M1 Sem 2a'!E36 -> live | E70: ='M1 Sem 2a'!F36 -> to be alive or have life, or to continue in this state
C71: ='M1 Sem 2a'!D36 -> verb | D71: ='M1 Sem 2a'!G36 -> Tommy wanted to live out the rest of his days in Hawaii.
A72: 2 | B72: 3 | C72: ='M1 Sem 2a'!C37 -> เวลาอาหารกลางวัน | D72: ='M1 Sem 2a'!E37 -> lunchtime | E72: ='M1 Sem 2a'!F37 -> the time around the middle of the day when lunch is usually eaten
C73: ='M1 Sem 2a'!D37 -> noun | D73: ='M1 Sem 2a'!G37 -> It's lunchtime so I'm going to eat something before the afternoon lessons start.
A74: 3 | B74: 1 | C74: ='M1 Sem 2a'!C38 -> หลัก | D74: ='M1 Sem 2a'!E38 -> main | E74: ='M1 Sem 2a'!F38 -> larger, more important, or having more influence than others of the same type
C75: ='M1 Sem 2a'!D38 -> noun | D75: ='M1 Sem 2a'!G38 -> The main road leads into the town.
A76: 3 | B76: 1 | C76: ='M1 Sem 2a'!C39 -> เวลารับประทานอาหาร | D76: ='M1 Sem 2a'!E39 -> mealtime | E76: ='M1 Sem 2a'!F39 -> a time of day when a meal is eaten
C77: ='M1 Sem 2a'!D39 -> noun | D77: ='M1 Sem 2a'!G39 -> The mealtime that evening was silent until Dad had something to say.
A78: 3 | B78: 1 | C78: ='M1 Sem 2a'!C40 -> พลาด | D78: ='M1 Sem 2a'!E40 -> miss | E78: ='M1 Sem 2a'!F40 -> to fail to do, see, or experience something
C79: ='M1 Sem 2a'!D40 -> verb | D79: ='M1 Sem 2a'!G40 -> If you miss the plane in Tokyo, you won't get to Chicago on time.
A80: 3 | B80: 1 | C80: ='M1 Sem 2a'!C41 -> ไม่เคย | D80: ='M1 Sem 2a'!E41 -> never | E80: ='M1 Sem 2a'!F41 -> not at any time or not on any occasion
C81: ='M1 Sem 2a'!D41 -> adv | D81: ='M1 Sem 2a'!G41 -> I'd love to travel. I’ve never been to Europe.
A82: 3 | B82: 1 | C82: ='M1 Sem 2a'!C42 -> ข่าว | D82: ='M1 Sem 2a'!E42 -> news | E82: ='M1 Sem 2a'!F42 -> recent information about people you know
C83: ='M1 Sem 2a'!D42 -> noun | D83: ='M1 Sem 2a'!G42 -> We just heard the good news – congratulations on your engagement!
A84: 3 | B84: 1 | C84: ='M1 Sem 2a'!C43 -> หนังสือพิมพ์ | D84: ='M1 Sem 2a'!E43 -> newspaper | E84: ='M1 Sem 2a'!F43 -> a paper document published regularly, consisting of news and advertisements
C85: ='M1 Sem 2a'!D43 -> noun | D85: ='M1 Sem 2a'!G43 -> The Wall Streeet Journal is a famous American newspaper.
A86: 3 | B86: 2 | C86: ='M1 Sem 2a'!C44 -> มักจะ | D86: ='M1 Sem 2a'!E44 -> often | E86: ='M1 Sem 2a'!F44 -> many times
C87: ='M1 Sem 2a'!D44 -> adv | D87: ='M1 Sem 2a'!G44 -> She seldom came to class on time. In fact, she was often late for class.
A88: 3 | B88: 2 | C88: ='M1 Sem 2a'!C45 -> ยากจน | D88: ='M1 Sem 2a'!E45 -> poor | E88: ='M1 Sem 2a'!F45 -> having little money or few possessions, or lacking something important
C89: ='M1 Sem 2a'!D45 -> adj | D89: ='M1 Sem 2a'!G45 -> He came from a poor, immigrant family but became successful and rich.
A90: 3 | B90: 2 | C90: ='M1 Sem 2a'!C46 -> นำเสนอ | D90: ='M1 Sem 2a'!E46 -> present | E90: ='M1 Sem 2a'!F46 -> this period of time, not the past or the future; now
C91: ='M1 Sem 2a'!D46 -> noun | D91: ='M1 Sem 2a'!G46 -> The story moves back and forth between the past and the present.
A92: 3 | B92: 2 | C92: ='M1 Sem 2a'!C47 -> เซสชั่น | D92: ='M1 Sem 2a'!E47 -> session | E92: ='M1 Sem 2a'!F47 -> a period of time or a meeting arranged for a particular activity
C93: ='M1 Sem 2a'!D47 -> noun | D93: ='M1 Sem 2a'!G47 -> The musicians gathered in the studio, waiting for the start of the recording session.
A94: 3 | B94: 2 | C94: ='M1 Sem 2a'!C48 -> จำ | D94: ='M1 Sem 2a'!E48 -> remember | E94: ='M1 Sem 2a'!F48 -> to be able to bring back a piece of information into your mind, or in your memory
C95: ='M1 Sem 2a'!D48 -> verb | D95: ='M1 Sem 2a'!G48 -> I’ve been a New York Yankee fan for as long as I can remember.
A96: 3 | B96: 2 | C96: ='M1 Sem 2a'!C49 -> วิทยาศาสตร์ | D96: ='M1 Sem 2a'!E49 -> science | E96: ='M1 Sem 2a'!F49 -> study of the physical world, especially by watching, measuring and doing experiments
C97: ='M1 Sem 2a'!D49 -> noun | D97: ='M1 Sem 2a'!G49 -> Advances in medical science mean that people are living longer.
A98: 3 | B98: 3 | C98: ='M1 Sem 2a'!C50 -> บางครั้ง | D98: ='M1 Sem 2a'!E50 -> sometimes | E98: ='M1 Sem 2a'!F50 -> on some occasions but not all the time
C99: ='M1 Sem 2a'!D50 -> adv | D99: ='M1 Sem 2a'!G50 -> I watch English movies sometimes, but not often.
A100: 3 | B100: 3 | C100: ='M1 Sem 2a'!C51 -> เริ่มต้น | D100: ='M1 Sem 2a'!E51 -> start | E100: ='M1 Sem 2a'!F51 -> to begin doing something
C101: ='M1 Sem 2a'!D51 -> verb | D101: ='M1 Sem 2a'!G51 -> When do you start your new job?
A102: 3 | B102: 3 | C102: ='M1 Sem 2a'!C52 -> ศึกษา | D102: ='M1 Sem 2a'!E52 -> study | E102: ='M1 Sem 2a'!F52 -> to learn about a subject, especially in an educational course or by reading books
C103: ='M1 Sem 2a'!D52 -> verb | D103: ='M1 Sem 2a'!G52 -> I need to study tonight bacause we have a test tomorrow in Aj.Tim's class.
A104: 3 | B104: 3 | C104: ='M1 Sem 2a'!C53 -> เรื่อง | D104: ='M1 Sem 2a'!E53 -> subject | E104: ='M1 Sem 2a'!F53 -> something that is being discussed or considered
C105: ='M1 Sem 2a'!D53 -> noun | D105: ='M1 Sem 2a'!G53 -> My favourite subject is Math. History is my least favourite.
A106: 3 | B106: 3 | C106: ='M1 Sem 2a'!C54 -> วันหยุด | D106: ='M1 Sem 2a'!E54 -> holiday | E106: ='M1 Sem 2a'!F54 -> when someone does not go to work or school but travels or relaxes (US vacation)
C107: ='M1 Sem 2a'!D54 -> noun | D107: ='M1 Sem 2a'!G54 -> I'm going to travel and relax on my summer holiday.
A108: 3 | B108: 3 | C108: ='M1 Sem 2a'!C55 -> เส้นสาย | D108: ='M1 Sem 2a'!E55 -> supporter | E108: ='M1 Sem 2a'!F55 -> a person who actively helps someone
C109: ='M1 Sem 2a'!D55 -> noun | D109: ='M1 Sem 2a'!G55 -> Tom is a Chelsa loyal football supporter who loves the club and the team.
A110: 4 | B110: 1 | C110: ='M1 Sem 2a'!C56 -> เอา | D110: ='M1 Sem 2a'!E56 -> take | E110: ='M1 Sem 2a'!F56 -> to remove something, especially without permission
C111: ='M1 Sem 2a'!D56 -> verb | D111: ='M1 Sem 2a'!G56 -> Please, take me with you!
A112: 4 | B112: 1 | C112: ='M1 Sem 2a'!C57 -> ขนมปังปิ้ง | D112: ='M1 Sem 2a'!E57 -> toast | E112: ='M1 Sem 2a'!F57 -> sliced bread that has been made brown by being put near a high heat
C113: ='M1 Sem 2a'!D57 -> noun | D113: ='M1 Sem 2a'!G57 -> He spread marmalade on his toast and ate it with the rest of his breakfast.
A114: 4 | B114: 1 | C114: ='M1 Sem 2a'!C58 -> พรุ่งนี้ | D114: ='M1 Sem 2a'!E58 -> tomorrow | E114: ='M1 Sem 2a'!F58 -> the day after today
C115: ='M1 Sem 2a'!D58 -> noun | D115: ='M1 Sem 2a'!G58 -> He can't call you today, but he will call you tomorrow after work.
A116: 4 | B116: 1 | C116: ='M1 Sem 2a'!C59 -> การเดินทาง | D116: ='M1 Sem 2a'!E59 -> trip | E116: ='M1 Sem 2a'!F59 -> a journey in which you go somewhere, usually for a short time, and come back again
C117: ='M1 Sem 2a'!D59 -> noun | D117: ='M1 Sem 2a'!G59 -> They went on a three-week trip to Europe.
A118: 4 | B118: 1 | C118: ='M1 Sem 2a'!C60 -> สิ่ง | D118: ='M1 Sem 2a'!E60 -> stuff | E118: ='M1 Sem 2a'!F60 -> a substance or material
C119: ='M1 Sem 2a'!D60 -> noun | D119: ='M1 Sem 2a'!G60 -> This stuff tastes good. What is it?
A120: 4 | B120: 1 | C120: ='M1 Sem 2a'!C61 -> มักจะ | D120: ='M1 Sem 2a'!E61 -> usually | E120: ='M1 Sem 2a'!F61 -> in the way that most often happens
C121: ='M1 Sem 2a'!D61 -> adv | D121: ='M1 Sem 2a'!G61 -> He usually gets home from work at about six every day.
A122: 4 | B122: 2 | C122: ='M1 Sem 2a'!C62 -> วอลเลย์บอล | D122: ='M1 Sem 2a'!E62 -> volleyball | E122: ='M1 Sem 2a'!F62 -> a game in which two teams use their hands to hit a ball from one side of a high net to the other
C123: ='M1 Sem 2a'!D62 -> noun | D123: ='M1 Sem 2a'!G62 -> Mountain biking, beach volleyball, table tennis are always on offer.
A124: 4 | B124: 2 | C124: ='M1 Sem 2a'!C63 -> วันที่ | D124: ='M1 Sem 2a'!E63 -> date | E124: ='M1 Sem 2a'!F63 -> a numbered day in a month, often given with the name of the month or with the month and the year
C125: ='M1 Sem 2a'!D63 -> noun | D125: ='M1 Sem 2a'!G63 -> Please fill in your date of birth on the application form.
A126: 4 | B126: 2 | C126: ='M1 Sem 2a'!C64 -> ล้าง | D126: ='M1 Sem 2a'!E64 -> wash | E126: ='M1 Sem 2a'!F64 -> to clean something using water
C127: ='M1 Sem 2a'!D64 -> verb | D127: ='M1 Sem 2a'!G64 -> Alex went to the bathroom to wash his face and comb his hair.
A128: 4 | B128: 2 | C128: ='M1 Sem 2a'!C65 -> ชม | D128: ='M1 Sem 2a'!E65 -> watch | E128: ='M1 Sem 2a'!F65 -> to look at something for a period of time
C129: ='M1 Sem 2a'!D65 -> verb | D129: ='M1 Sem 2a'!G65 -> The police stayed outside the house to watch who left the building.
A130: 4 | B130: 2 | C130: ='M1 Sem 2a'!C66 -> เว็บไซต์ | D130: ='M1 Sem 2a'!E66 -> website | E130: ='M1 Sem 2a'!F66 -> a place on the Internet with one or more pages of information about a subject
C131: ='M1 Sem 2a'!D66 -> noun | D131: ='M1 Sem 2a'!G66 -> His fans created a website, giving every detail of his private life.
A132: 4 | B132: 2 | C132: ='M1 Sem 2a'!C67 -> ทำงาน | D132: ='M1 Sem 2a'!E67 -> work | E132: ='M1 Sem 2a'!F67 -> to do a job, esp. a job you do to earn money
C133: ='M1 Sem 2a'!D67 -> verb | D133: ='M1 Sem 2a'!G67 -> I have to work at the office on Saturday.
A134: 4 | B134: 3 | C134: ='M1 Sem 2a'!C68 -> กลับ | D134: ='M1 Sem 2a'!E68 -> back | E134: ='M1 Sem 2a'!F68 -> in, at, or toward a previous place or condition or an earlier time
C135: ='M1 Sem 2a'!D68 -> adv | D135: ='M1 Sem 2a'!G68 -> He went back to New York last week.
A136: 4 | B136: 3 | C136: ='M1 Sem 2a'!C69 -> ฉีก | D136: ='M1 Sem 2a'!E69 -> tear | E136: ='M1 Sem 2a'!F69 -> to pull or be pulled apart, or to pull pieces off
C137: ='M1 Sem 2a'!D69 -> verb | D137: ='M1 Sem 2a'!G69 -> Be careful. That nail will tear a hole in your shirt.
A138: 4 | B138: 3 | C138: ='M1 Sem 2a'!C70 -> ซื้อ | D138: ='M1 Sem 2a'!E70 -> buy | E138: ='M1 Sem 2a'!F70 -> to obtain something by paying money for it
C139: ='M1 Sem 2a'!D70 -> verb | D139: ='M1 Sem 2a'!G70 -> She was saving to buy a car.
A140: 4 | B140: 3 | C140: ='M1 Sem 2a'!C71 -> ปฏิทิน | D140: ='M1 Sem 2a'!E71 -> calendar | E140: ='M1 Sem 2a'!F71 -> a list of meetings or things you have to do at particular times
C141: ='M1 Sem 2a'!D71 -> noun | D141: ='M1 Sem 2a'!G71 -> My calendar is pretty crowded over the next few weeks.
A142: 4 | B142: 3 | C142: ='M1 Sem 2a'!C72 -> โทรศัพท์ | D142: ='M1 Sem 2a'!E72 -> call | E142: ='M1 Sem 2a'!F72 -> to give someone or something a name, or to know or address someone by a particular name
C143: ='M1 Sem 2a'!D72 -> verb | D143: ='M1 Sem 2a'!G72 -> They can’t decide whether to call their new baby Carol or Alice.
A144: 4 | B144: 3 | C144: ='M1 Sem 2a'!C73 -> ถูก | D144: ='M1 Sem 2a'!E73 -> cheap | E144: ='M1 Sem 2a'!F73 -> costing little money or less than is usual or expected
C145: ='M1 Sem 2a'!D73 -> adj | D145: ='M1 Sem 2a'!G73 -> AirAsia offer cheap flights to Beijing.
A146: 5 | B146: 1 | C146: ='M1 Sem 2a'!C74 -> ปรุงอาหาร | D146: ='M1 Sem 2a'!E74 -> cook | E146: ='M1 Sem 2a'!F74 -> to prepare food by heating it in a particular way
C147: ='M1 Sem 2a'!D74 -> verb | D147: ='M1 Sem 2a'!G74 -> I’ll cook the steaks on the grill.
A148: 5 | B148: 1 | C148: ='M1 Sem 2a'!C75 -> ค่า | D148: ='M1 Sem 2a'!E75 -> cost | E148: ='M1 Sem 2a'!F75 -> the amount of money needed to buy, do or make something
C149: ='M1 Sem 2a'!D75 -> verb | D149: ='M1 Sem 2a'!G75 -> Most computers come with software included at no extra cost.
A150: 5 | B150: 1 | C150: ='M1 Sem 2a'!C76 -> งานมหกรรม | D150: ='M1 Sem 2a'!E76 -> exhibition | E150: ='M1 Sem 2a'!F76 -> a collection of things shown publicly
C151: ='M1 Sem 2a'!D76 -> noun | D151: ='M1 Sem 2a'!G76 -> I went to Bangkok to visit an exhibition car show.
A152: 5 | B152: 1 | C152: ='M1 Sem 2a'!C77 -> แพง | D152: ='M1 Sem 2a'!E77 -> expensive | E152: ='M1 Sem 2a'!F77 -> costing a lot of money
C153: ='M1 Sem 2a'!D77 -> adj | D153: ='M1 Sem 2a'!G77 -> Housing in New York city is very expensive.
A154: 5 | B154: 1 | C154: ='M1 Sem 2a'!C78 -> นักฟุตบอล | D154: ='M1 Sem 2a'!E78 -> footballer | E154: ='M1 Sem 2a'!F78 -> someone who plays football, especially as their job
C155: ='M1 Sem 2a'!D78 -> noun | D155: ='M1 Sem 2a'!G78 -> David Beckham is a famous professional footballer.
A156: 5 | B156: 1 | C156: ='M1 Sem 2a'!C79 -> ดู | D156: ='M1 Sem 2a'!E79 -> see | E156: ='M1 Sem 2a'!F79 -> to be aware of what is around you by using your eyes; look at something
C157: ='M1 Sem 2a'!D79 -> verb | D157: ='M1 Sem 2a'!G79 -> From the kitchen window, I can see the kids playing in the backyard.
A158: 5 | B158: 2 | C158: ='M1 Sem 2a'!C80 -> ทราบ | D158: ='M1 Sem 2a'!E80 -> know | E158: ='M1 Sem 2a'!F80 -> to have information in your mind; to be aware of something
C159: ='M1 Sem 2a'!D80 -> verb | D159: ='M1 Sem 2a'!G80 -> Do you know how to tap dance?
A160: 5 | B160: 2 | C160: ='M1 Sem 2a'!C81 -> เช่น | D160: ='M1 Sem 2a'!E81 -> like | E160: ='M1 Sem 2a'!F81 -> to enjoy or approve of something or someone, or to prefer something a particular way
C161: ='M1 Sem 2a'!D81 -> verb | D161: ='M1 Sem 2a'!G81 -> I like your new haircut. It looks good.
A162: 5 | B162: 2 | C162: ='M1 Sem 2a'!C82 -> การแข่งขัน | D162: ='M1 Sem 2a'!E82 -> match | E162: ='M1 Sem 2a'!F82 -> to be similar to or the same as something
C163: ='M1 Sem 2a'!D82 -> verb | D163: ='M1 Sem 2a'!G82 -> Her fingerprints seemed to match the prints taken from the crime scene.
A164: 5 | B164: 2 | C164: ='M1 Sem 2a'!C83 -> จิงโจ้ | D164: ='M1 Sem 2a'!E83 -> kangaroo | E164: ='M1 Sem 2a'!F83 -> a large Australian mammal with a long tail, long powerful back legs, that moves by jumping
C165: ='M1 Sem 2a'!D83 -> noun | D165: ='M1 Sem 2a'!G83 -> When you around Australia, you must be careful not avoid hitting a wild kangaroo.
A166: 5 | B166: 2 | C166: ='M1 Sem 2a'!C84 -> ปก | D166: ='M1 Sem 2a'!E84 -> cover | E166: ='M1 Sem 2a'!F84 -> to put or spread something over something
C167: ='M1 Sem 2a'!D84 -> verb | D167: ='M1 Sem 2a'!G84 -> After I shower, I wrap a towel around to cover my body.
A168: 5 | B168: 2 | C168: ='M1 Sem 2a'!C85 -> พิพิธภัณฑ์ | D168: ='M1 Sem 2a'!E85 -> museum | E168: ='M1 Sem 2a'!F85 -> a building where people can go to view art or objects of science or history
C169: ='M1 Sem 2a'!D85 -> noun | D169: ='M1 Sem 2a'!G85 -> I saw dinosaur bones at the natural history museum.
A170: 5 | B170: 3 | C170: ='M1 Sem 2a'!C86 -> ดี | D170: ='M1 Sem 2a'!E86 -> nice | E170: ='M1 Sem 2a'!F86 -> pleasant, enjoyable, or satisfactory
C171: ='M1 Sem 2a'!D86 -> adj | D171: ='M1 Sem 2a'!G86 -> It was nice talking to you.
A172: 5 | B172: 3 | C172: ='M1 Sem 2a'!C87 -> เปิด | D172: ='M1 Sem 2a'!E87 -> open | E172: ='M1 Sem 2a'!F87 -> being in a position that allows things to pass through or that allows for immediate use; not closed or fastened
C173: ='M1 Sem 2a'!D87 -> adj | D173: ='M1 Sem 2a'!G87 -> The window was wide open.
A174: 5 | B174: 3 | C174: ='M1 Sem 2a'!C88 -> ด้านบน | D174: ='M1 Sem 2a'!E88 -> top | E174: ='M1 Sem 2a'!F88 -> the highest point, place, or part
C175: ='M1 Sem 2a'!D88 -> noun | D175: ='M1 Sem 2a'!G88 -> We set out for the top of the mountain at daybreak.
A176: 5 | B176: 3 | C176: ='M1 Sem 2a'!C89 -> รถตู้ | D176: ='M1 Sem 2a'!E89 -> van | E176: ='M1 Sem 2a'!F89 -> a box-shaped road vehicle of medium size
C177: ='M1 Sem 2a'!D89 -> noun | D177: ='M1 Sem 2a'!G89 -> The post office will deliver parcels from a delivery van.
A178: 5 | B178: 3 | C178: ='M1 Sem 2a'!C90 -> กรอบ | D178: ='M1 Sem 2a'!E90 -> frame | E178: ='M1 Sem 2a'!F90 -> a border that encloses and supports a picture, mirror,
C179: ='M1 Sem 2a'!D90 -> noun | D179: ='M1 Sem 2a'!G90 -> She put his picture in a silver frame.
A180: 5 | B180: 3 | C180: ='M1 Sem 2a'!C91 -> โปสการ์ด | D180: ='M1 Sem 2a'!E91 -> postcard | E180: ='M1 Sem 2a'!F91 -> a small, rectangular card, often with a picture on one side, that can be sent in the mail without an envelope
C181: ='M1 Sem 2a'!D91 -> noun | D181: ='M1 Sem 2a'!G91 -> When I visit a new place on holiday, I like to send a postcard to my grandma.
A182: 6 | B182: 1 | C182: ='M1 Sem 2a'!C92 -> ปอนด์ | D182: ='M1 Sem 2a'!E92 -> pound | E182: ='M1 Sem 2a'!F92 -> the standard unit of money in the UK and some other countries
C183: ='M1 Sem 2a'!D92 -> noun | D183: ='M1 Sem 2a'!G92 -> The UK uses the pound whereas its neigbour, France, uses the Euro.
A184: 6 | B184: 1 | C184: ='M1 Sem 2a'!C93 -> เพนนี | D184: ='M1 Sem 2a'!E93 -> pence | E184: ='M1 Sem 2a'!F93 -> a penny is a unit of money
C185: ='M1 Sem 2a'!D93 -> noun | D185: ='M1 Sem 2a'!G93 -> I paid 2 pounds for the emal and got 46 pence back in change.
A186: 6 | B186: 1 | C186: ='M1 Sem 2a'!C94 -> ยิ้ม | D186: ='M1 Sem 2a'!E94 -> smile | E186: ='M1 Sem 2a'!F94 -> an expression on the face for happiness with the mouth curve up slightly
C187: ='M1 Sem 2a'!D94 -> verb | D187: ='M1 Sem 2a'!G94 -> She gave me a great smile as we passed in the hallway.
A188: 6 | B188: 1 | C188: ='M1 Sem 2a'!C95 -> ต้องการ | D188: ='M1 Sem 2a'!E95 -> want | E188: ='M1 Sem 2a'!F95 -> to need something
C189: ='M1 Sem 2a'!D95 -> verb | D189: ='M1 Sem 2a'!G95 -> Do you want anything else to drink?
A190: 6 | B190: 1 | C190: ='M1 Sem 2a'!C96 -> เข็มทิศ | D190: ='M1 Sem 2a'!E96 -> compass | E190: ='M1 Sem 2a'!F96 -> a device for finding direction whose needle always points north
C191: ='M1 Sem 2a'!D96 -> noun | D191: ='M1 Sem 2a'!G96 -> The magnetic compass was first invented by the Chinese Han Dynasty.
A192: 6 | B192: 1 | C192: ='M1 Sem 2a'!C97 -> ความเสียหาย | D192: ='M1 Sem 2a'!E97 -> damage | E192: ='M1 Sem 2a'!F97 -> to harm or spoil something
C193: ='M1 Sem 2a'!D97 -> verb | D193: ='M1 Sem 2a'!G97 -> Their car hit a truck, but luckily there was very little damage to the car.
A194: 6 | B194: 2 | C194: ='M1 Sem 2a'!C98 -> กิน | D194: ='M1 Sem 2a'!E98 -> feed | E194: ='M1 Sem 2a'!F98 -> to give food to a person or animal, or of an animal to eat
C195: ='M1 Sem 2a'!D98 -> verb | D195: ='M1 Sem 2a'!G98 -> I always feed my hamster vegetables and nuts.
A196: 6 | B196: 2 | C196: ='M1 Sem 2a'!C99 -> การปฐมพยาบาล | D196: ='M1 Sem 2a'!E99 -> first aid | E196: ='M1 Sem 2a'!F99 -> emergency medical treatment given to someone who is injured or ill
C197: ='M1 Sem 2a'!D99 -> noun | D197: ='M1 Sem 2a'!G99 -> First aid is the provision of initial care for an illness or injury.
A198: 6 | B198: 2 | C198: ='M1 Sem 2a'!C100 -> สุขภาพ | D198: ='M1 Sem 2a'!E100 -> health | E198: ='M1 Sem 2a'!F100 -> the condition of the body and the degree to which it is free from illness
C199: ='M1 Sem 2a'!D100 -> noun | D199: ='M1 Sem 2a'!G100 -> Her health was much improved after she started exercising.
A200: 6 | B200: 2 | C200: ='M1 Sem 2a'!C101 -> แมลง | D200: ='M1 Sem 2a'!E101 -> insect | E200: ='M1 Sem 2a'!F101 -> small animal with six legs, and a body divided into three parts, often with two wings
... 521 more rows

Sheet Cloze Exercises
C1: Name: ___________________ | F1: Number: _______________
A3: M | B3: 1 | C3: Week | D3: 18 | E3: Cloze Sentences | G3: Sem | H3: 1 | K3: Row | L3: =VLOOKUP(L4,L9:M20,2) -> 128
E4: Choose a word to complete the sentences below: | K4: Page | L4: =IF(H3=1,CONCATENATE("'",$L$6,"'!"),CONCATENATE("'",$L$7,"'!")) -> 'M1 Sem 1b'!
B5: Part 1
B6: # | C6: Thai | D6: Word | E6: # | F6: Sentence | G6: Rand | H6: # | I6: Original | L6: =IF((AND(B3>2,D3>10)),"M3 Sem 1b",(IF(AND(B3>2,D3>=1),"M3 Sem 1a",(IF(AND(B3>1,D3>10),"M2 Sem 1b",(IF(AND(B3>1,D3>=1),"M2 Sem 1a",(IF(AND(B3=1,D3>10),"M1 Sem 1b","M1 Sem 1a"))))))))) -> M1 Sem 1b
B7: 1 | C7: =INDIRECT(CONCATENATE($L$4,,"c",$L$3)) -> บางที | D7: =INDIRECT(CONCATENATE($L$4,"e",$L$3)) -> maybe | E7: a) | F7: =REPLACE($I$12, SEARCH($D$12, $I$12),LEN($D$12),"________") -> She wrote everything down in her ________. | G7: =RAND() -> 0.184254961 | H7: 6 | I7: =INDIRECT(CONCATENATE($L$4,"g",L3)) -> I'm not sure. Maybe I can ride my bike home before it rains. | L7: =IF((AND(B3>2,D3>10)),"M3 Sem 2b",(IF(AND(B3>2,D3>=1),"M3 Sem 2a",(IF(AND(B3>1,D3>10),"M2 Sem 2b",(IF(AND(B3>1,D3>=1),"M2 Sem 2a",(IF(AND(B3=1,D3>10),"M1 Sem 2b","M1 Sem 2a"))))))))) -> M1 Sem 2b
B8: 2 | C8: =INDIRECT(CONCATENATE($L$4,"c",$L$3+1)) -> ความยุ่งเหยิง | D8: =INDIRECT(CONCATENATE($L$4,"e",$L$3+1)) -> mess | E8: b) | F8: =REPLACE($I$11, SEARCH($D$11, $I$11),LEN($D$11),"________") -> It often gets cold after it gets dark here, late at ________. | G8: =RAND() -> 0.3146302336 | H8: 5 | I8: =INDIRECT(CONCATENATE($L$4,"g",$L$3+1)) -> The puppy’s made a mess on the dining room rug.
B9: 3 | C9: =INDIRECT(CONCATENATE($L$4,"c",$L$3+2)) -> สุทธิ | D9: =INDIRECT(CONCATENATE($L$4,"e",$L$3+2)) -> net | E9: c) | F9: =REPLACE($I$14, SEARCH($D$14, $I$14),LEN($D$14),"________") -> I often ________ basketball with my friends at school. | G9: =RAND() -> 0.6695063477 | H9: 8 | I9: =INDIRECT(CONCATENATE($L$4,"g",$L$3+2)) -> Hit the ball over the volleyball net or you will loose the game. | L9: M1 Sem 1a'! | M9: =CELL("ROW",INDEX('M1 Sem 1a'!D2:D181,MATCH(D3,'M1 Sem 1a'!A2:A181,0),1)) -> 
B10: 4 | C10: =INDIRECT(CONCATENATE($L$4,"c",$L$3+3)) -> เนื้อหา | D10: =INDIRECT(CONCATENATE($L$4,"e",$L$3+3)) -> contents | E10: d) | F10: =REPLACE($I$10, SEARCH($D$10, $I$10),LEN($D$10),"________") -> He opened the cupboard and pulled the ________ onto the floor. | G10: =RAND() -> 0.481365049 | H10: 4 | I10: =INDIRECT(CONCATENATE($L$4,"g",$L$3+3)) -> He opened the cupboard and pulled the contents onto the floor. | L10: M1 Sem 1b'! | M10: =CELL("ROW",INDEX('M1 Sem 1b'!D2:D181,MATCH(D3,'M1 Sem 1b'!A2:A181,0),1)) -> 128
B11: 5 | C11: =INDIRECT(CONCATENATE($L$4,"c",$L$3+4)) -> คืน | D11: =INDIRECT(CONCATENATE($L$4,"e",$L$3+4)) -> night | E11: e) | F11: =REPLACE($I$8, SEARCH($D$8, $I$8),LEN($D$8),"________") -> The puppy’s made a ________ on the dining room rug. | G11: =RAND() -> 0.578763968 | H11: 2 | I11: =INDIRECT(CONCATENATE($L$4,"g",$L$3+4)) -> It often gets cold after it gets dark here, late at night. | L11: M1 Sem 2a'! | M11: =CELL("ROW",INDEX('M1 Sem 2a'!D2:D181,MATCH(D3,'M1 Sem 2a'!A2:A181,0),1)) -> 
B12: 6 | C12: =INDIRECT(CONCATENATE($L$4,"c",$L$3+5)) -> สมุดบันทึก | D12: =INDIRECT(CONCATENATE($L$4,"e",$L$3+5)) -> notebook | E12: f) | F12: =REPLACE($I$7, SEARCH($D$7, $I$7),LEN($D$7),"________") -> I'm not sure. ________ I can ride my bike home before it rains. | G12: =RAND() -> 0.2279767372 | H12: 1 | I12: =INDIRECT(CONCATENATE($L$4,"g",$L$3+5)) -> She wrote everything down in her notebook. | L12: M1 Sem 2b'! | M12: =CELL("ROW",INDEX('M1 Sem 2b'!D2:D181,MATCH(D3,'M1 Sem 2b'!A2:A181,0),1)) -> 128
B13: 7 | C13: =INDIRECT(CONCATENATE($L$4,"c",$L$3+6)) -> ถ่ายภาพ | D13: =INDIRECT(CONCATENATE($L$4,"e",$L$3+6)) -> photograph | E13: g) | F13: =REPLACE($I$13, SEARCH($D$13, $I$13),LEN($D$13),"________") -> Stand still and smile so I can take a ________ of you. | G13: =RAND() -> 0.6211117926 | H13: 7 | I13: =INDIRECT(CONCATENATE($L$4,"g",$L$3+6)) -> Stand still and smile so I can take a photograph of you. | L13: M2 Sem 1a'! | M13: =CELL("ROW",INDEX('M2 Sem 1a'!D2:D181,MATCH(D3,'M2 Sem 1a'!A2:A181,0),1)) -> 
B14: 8 | C14: =INDIRECT(CONCATENATE($L$4,"c",$L$3+7)) -> เล่น | D14: =INDIRECT(CONCATENATE($L$4,"e",$L$3+7)) -> play | E14: h) | F14: =REPLACE($I$15, SEARCH($D$15, $I$15),LEN($D$15),"________") -> She couldn’t take ________ of the house until the current occupants moved out. | G14: =RAND() -> 0.7674808345 | H14: 9 | I14: =INDIRECT(CONCATENATE($L$4,"g",$L$3+7)) -> I often play basketball with my friends at school. | L14: M2 Sem 1b'! | M14: =CELL("ROW",INDEX('M2 Sem 1b'!D2:D181,MATCH(D3,'M2 Sem 1b'!A2:A181,0),1)) -> 128
B15: 9 | C15: =INDIRECT(CONCATENATE($L$4,"c",$L$3+8)) -> สมบัติ | D15: =INDIRECT(CONCATENATE($L$4,"e",$L$3+8)) -> possession | E15: i) | F15: =REPLACE($I$9, SEARCH($D$9, $I$9),LEN($D$9),"________") -> Hit the ball over the volleyball ________ or you will loose the game. | G15: =RAND() -> 0.4433636514 | H15: 3 | I15: =INDIRECT(CONCATENATE($L$4,"g",$L$3+8)) -> She couldn’t take possession of the house until the current occupants moved out. | L15: M2 Sem 2a'! | M15: =CELL("ROW",INDEX('M2 Sem 2a'!D2:D181,MATCH(D3,'M2 Sem 2a'!A2:A181,0),1)) -> 
L16: M2 Sem 2b'! | M16: =CELL("ROW",INDEX('M2 Sem 2b'!D2:D181,MATCH(D3,'M2 Sem 2b'!A2:A181,0),1)) -> 128
B17: Part 2 | L17: M3 Sem 1a'! | M17: =CELL("ROW",INDEX('M3 Sem 1a'!D2:D181,MATCH(D3,'M3 Sem 1a'!A2:A181,0),1)) -> 
B18: 10 | C18: =INDIRECT(CONCATENATE($L$4,"c",$L$3+9)) -> รวดเร็ว | D18: =INDIRECT(CONCATENATE($L$4,"e",$L$3+9)) -> quick | E18: j) | F18: =REPLACE($I$23, SEARCH($D$23, $I$23),LEN($D$23),"________") -> I like to ________ an e-mail to my friend. | G18: =RAND() -> 0.0971567181 | H18: 15 | I18: =INDIRECT(CONCATENATE($L$4,"g",$L$3+9)) -> You’re back already – that was quick! | L18: M3 Sem 1b'! | M18: =CELL("ROW",INDEX('M3 Sem 1b'!D2:D181,MATCH(D3,'M3 Sem 1b'!A2:A181,0),1)) -> 128
B19: 11 | C19: =INDIRECT(CONCATENATE($L$4,"c",$L$3+10)) -> อ่าน | D19: =INDIRECT(CONCATENATE($L$4,"e",$L$3+10)) -> read | E19: k) | F19: =REPLACE($I$26, SEARCH($D$26, $I$26),LEN($D$26),"________") -> My favourite ________ is a packet of Lay's crisps. | G19: =RAND() -> 0.6843596162 | H19: 18 | I19: =INDIRECT(CONCATENATE($L$4,"g",$L$3+10)) -> I often read a chapter form a book before I sleep at night. | L19: M3 Sem 2a'! | M19: =CELL("ROW",INDEX('M3 Sem 2a'!D2:D181,MATCH(D3,'M3 Sem 2a'!A2:A181,0),1)) -> 
B20: 12 | C20: =INDIRECT(CONCATENATE($L$4,"c",$L$3+11)) -> เครื่องหลังของนักไต่เขา | D20: =INDIRECT(CONCATENATE($L$4,"e",$L$3+11)) -> rucksack | E20: l) | F20: =REPLACE($I$21, SEARCH($D$21, $I$21),LEN($D$21),"________") -> If you break a ________, you are going to be punished for it. | G20: =RAND() -> 0.8103873792 | H20: 13 | I20: =INDIRECT(CONCATENATE($L$4,"g",$L$3+11)) -> If you go hiking, pack your rugsack with warm clothes and food for your journey. | L20: M3 Sem 2b'! | M20: =CELL("ROW",INDEX('M3 Sem 2b'!D2:D181,MATCH(D3,'M3 Sem 2b'!A2:A181,0),1)) -> 128
B21: 13 | C21: =INDIRECT(CONCATENATE($L$4,"c",$L$3+12)) -> กฎ | D21: =INDIRECT(CONCATENATE($L$4,"e",$L$3+12)) -> rule | E21: m) | F21: =REPLACE($I$18, SEARCH($D$18, $I$18),LEN($D$18),"________") -> You’re back already – that was ________! | G21: =RAND() -> 0.1742690309 | H21: 10 | I21: =INDIRECT(CONCATENATE($L$4,"g",$L$3+12)) -> If you break a rule, you are going to be punished for it.
B22: 14 | C22: =INDIRECT(CONCATENATE($L$4,"c",$L$3+13)) -> วิ่ง | D22: =INDIRECT(CONCATENATE($L$4,"e",$L$3+13)) -> run | E22: n) | F22: =REPLACE($I$25, SEARCH($D$25, $I$25),LEN($D$25),"________") -> He goes on his ________ up and down the ramp. | G22: =RAND() -> 0.2086380952 | H22: 17 | I22: =INDIRECT(CONCATENATE($L$4,"g",$L$3+13)) -> The athelete started to run the race quickly around the stadium.
B23: 15 | C23: =INDIRECT(CONCATENATE($L$4,"c",$L$3+14)) -> ส่ง | D23: =INDIRECT(CONCATENATE($L$4,"e",$L$3+14)) -> send | E23: o) | F23: =REPLACE($I$22, SEARCH($D$22, $I$22),LEN($D$22),"________") -> The athelete started to ________ the race quickly around the stadium. | G23: =RAND() -> 0.5002159497 | H23: 14 | I23: =INDIRECT(CONCATENATE($L$4,"g",$L$3+14)) -> I like to send an e-mail to my friend.
B24: 16 | C24: =INDIRECT(CONCATENATE($L$4,"c",$L$3+15)) -> ร้องตะโกน | D24: =INDIRECT(CONCATENATE($L$4,"e",$L$3+15)) -> shout | E24: p) | F24: =REPLACE($I$19, SEARCH($D$19, $I$19),LEN($D$19),"________") -> I often ________ a chapter form a book before I sleep at night. | G24: =RAND() -> 0.6015923055 | H24: 11 | I24: =INDIRECT(CONCATENATE($L$4,"g",$L$3+15)) -> Don't shout or scream in class. It hurts my ears!
B25: 17 | C25: =INDIRECT(CONCATENATE($L$4,"c",$L$3+16)) -> สเกตบอร์ด | D25: =INDIRECT(CONCATENATE($L$4,"e",$L$3+16)) -> skateboard | E25: q) | F25: =REPLACE($I$20, SEARCH($D$20, $I$20),LEN($D$20),"________") ->  | G25: =RAND() -> 0.8653430974 | H25: 12 | I25: =INDIRECT(CONCATENATE($L$4,"g",$L$3+16)) -> He goes on his skateboard up and down the ramp.
B26: 18 | C26: =INDIRECT(CONCATENATE($L$4,"c",$L$3+17)) -> ขนมขบเคี้ยว | D26: =INDIRECT(CONCATENATE($L$4,"e",$L$3+17)) -> snack | E26: r) | F26: =REPLACE($I$24, SEARCH($D$24, $I$24),LEN($D$24),"________") -> Don't ________ or scream in class. It hurts my ears! | G26: =RAND() -> 0.8711480006 | H26: 16 | I26: =INDIRECT(CONCATENATE($L$4,"g",$L$3+17)) -> My favourite snack is a packet of Lay's crisps.
C28: =C1 -> Name: ___________________ | F28: =F1 -> Number: _______________
A30: =A3 -> M | B30: =B3 -> 1 | C30: =C3 -> Week | D30: 18 | E30: Cloze Sentences
E31: Choose a word to complete the sentences below:
B32: =B5 -> Part 1
B33: # | C33: Thai | D33: Word | E33: # | F33: Sentence
B34: 1 | C34: =C7 -> บางที | D34: =D7 -> maybe | E34: a) | F34: =F7 -> She wrote everything down in her ________.
B35: 2 | C35: ความยุ่งเหยิง | D35: mess | E35: b) | F35: It often gets cold after it gets dark here, late at ________.
B36: 3 | C36: สุทธิ | D36: net | E36: c) | F36: I often ________ basketball with my friends at school.
B37: 4 | C37: เนื้อหา | D37: contents | E37: d) | F37: He opened the cupboard and pulled the ________ onto the floor.
B38: 5 | C38: คืน | D38: night | E38: e) | F38: The puppy’s made a ________ on the dining room rug.
B39: 6 | C39: สมุดบันทึก | D39: notebook | E39: f) | F39: I'm not sure. ________ I can ride my bike home before it rains.
B40: 7 | C40: ถ่ายภาพ | D40: photograph | E40: g) | F40: Stand still and smile so I can take a ________ of you.
B41: 8 | C41: เล่น | D41: play | E41: h) | F41: She couldn’t take ________ of the house until the current occupants moved out.
B42: =B15 -> 9 | C42: สมบัติ | D42: possession | E42: i) | F42: Hit the ball over the volleyball ________ or you will loose the game.
B44: =B17 -> Part 2
B45: =B18 -> 10 | C45: รวดเร็ว | D45: quick | E45: j) | F45: =F18 -> I like to ________ an e-mail to my friend.
B46: 11 | C46: อ่าน | D46: read | E46: k) | F46: My favourite ________ is a packet of Lay's crisps.
B47: 12 | C47: เครื่องหลังของนักไต่เขา | D47: rucksack | E47: l) | F47: If you break a ________, you are going to be punished for it.
B48: 13 | C48: กฎ | D48: rule | E48: m) | F48: You’re back already – that was ________!
B49: 14 | C49: วิ่ง | D49: run | E49: n) | F49: He goes on his ________ up and down the ramp.
B50: 15 | C50: ส่ง | D50: send | E50: o) | F50: The athelete started to ________ the race quickly around the stadium.
B51: 16 | C51: ร้องตะโกน | D51: shout | E51: p) | F51: I often ________ a chapter form a book before I sleep at night.
B52: 17 | C52: สเกตบอร์ด | D52: skateboard | E52: q)
B53: 18 | C53: ขนมขบเคี้ยว | D53: snack | E53: r) | F53: Don't ________ or scream in class. It hurts my ears!

Sheet Word Scramble
C1: Name: ___________________ | F1: Number: _______________
A3: M | B3: 1 | C3: Week | D3: 18 | E3: Word Scramble | G3: Sem | H3: 1 | K3: Row | L3: =VLOOKUP(L4,L9:M20,2) -> 128
E4: Unscramble the words below, and match each word with its definition. | K4: Page | L4: =IF(H3=1,CONCATENATE("'",$L$6,"'!"),CONCATENATE("'",$L$7,"'!")) -> 'M1 Sem 1b'!
B5: Part 1
B6: # | C6: Word | D6: Answer | F6: Find the Clue | G6: Rand | H6: # | I6: Original | L6: =IF((AND(B3>2,D3>10)),"M3 Sem 1b",(IF(AND(B3>2,D3>=1),"M3 Sem 1a",(IF(AND(B3>1,D3>10),"M2 Sem 1b",(IF(AND(B3>1,D3>=1),"M2 Sem 1a",(IF(AND(B3=1,D3>10),"M1 Sem 1b","M1 Sem 1a"))))))))) -> M1 Sem 1b
B7: 1 | C7: =scramble($I$13) -> essm | F7: =INDIRECT(CONCATENATE($L$4,"f",$L$3+6)) -> an image of a person, object, or view that is produced by using a camera and film | G7: =RAND() -> 0.6396726654 | H7: 7 | I7: =INDIRECT(CONCATENATE($L$4,"e",$L$3+6)) -> photograph | L7: =IF((AND(B3>2,D3>10)),"M3 Sem 2b",(IF(AND(B3>2,D3>=1),"M3 Sem 2a",(IF(AND(B3>1,D3>10),"M2 Sem 2b",(IF(AND(B3>1,D3>=1),"M2 Sem 2a",(IF(AND(B3=1,D3>10),"M1 Sem 2b","M1 Sem 2a"))))))))) -> M1 Sem 2b
B8: 2 | C8: =scramble($I$11) -> ent | F8: =INDIRECT(CONCATENATE($L$4,"f",$L$3+4)) -> the part of every 24-hour period when it is dark | G8: =RAND() -> 0.5516307079 | H8: 5 | I8: =INDIRECT(CONCATENATE($L$4,"e",$L$3+4)) -> night
B9: 3 | C9: =scramble($I$14) -> sisopessno | F9: =INDIRECT(CONCATENATE($L$4,"f",$L$3+7)) -> to spend time doing something enjoyable or amusing | G9: =RAND() -> 0.3852043163 | H9: 8 | I9: =INDIRECT(CONCATENATE($L$4,"e",$L$3+7)) -> play | L9: M1 Sem 1a'! | M9: =CELL("ROW",INDEX('M1 Sem 1a'!D2:D181,MATCH(D3,'M1 Sem 1a'!A2:A181,0),1)) -> 
B10: 4 | C10: =scramble($I$7) -> aghrotpoph | F10: =INDIRECT(CONCATENATE($L$4,"f",$L$3)) -> used to show that something is possible or may be true | G10: =RAND() -> 0.6600474324 | H10: 1 | I10: =INDIRECT(CONCATENATE($L$4,"e",$L$3)) -> maybe | L10: M1 Sem 1b'! | M10: =CELL("ROW",INDEX('M1 Sem 1b'!D2:D181,MATCH(D3,'M1 Sem 1b'!A2:A181,0),1)) -> 128
B11: 5 | C11: =scramble($I$9) -> plya | F11: =INDIRECT(CONCATENATE($L$4,"f",$L$3+2)) -> woven material with spaces which only allow small objects to go through | G11: =RAND() -> 0.6881530146 | H11: 3 | I11: =INDIRECT(CONCATENATE($L$4,"e",$L$3+2)) -> net | L11: M1 Sem 2a'! | M11: =CELL("ROW",INDEX('M1 Sem 2a'!D2:D181,MATCH(D3,'M1 Sem 2a'!A2:A181,0),1)) -> 
B12: 6 | C12: =scramble($I$12) -> noootkeb | F12: =INDIRECT(CONCATENATE($L$4,"f",$L$3+5)) -> a book of plain paper or paper with lines, for writing on | G12: =RAND() -> 0.1717385893 | H12: 6 | I12: =INDIRECT(CONCATENATE($L$4,"e",$L$3+5)) -> notebook | L12: M1 Sem 2b'! | M12: =CELL("ROW",INDEX('M1 Sem 2b'!D2:D181,MATCH(D3,'M1 Sem 2b'!A2:A181,0),1)) -> 128
B13: 7 | C13: =scramble($I$8) -> htign | F13: =INDIRECT(CONCATENATE($L$4,"f",$L$3+1)) -> a condition of disorder and confusion, or something in that condition | G13: =RAND() -> 0.3497522513 | H13: 2 | I13: =INDIRECT(CONCATENATE($L$4,"e",$L$3+1)) -> mess | L13: M2 Sem 1a'! | M13: =CELL("ROW",INDEX('M2 Sem 1a'!D2:D181,MATCH(D3,'M2 Sem 1a'!A2:A181,0),1)) -> 
B14: 8 | C14: =scramble($I$15) -> noenttcs | F14: =INDIRECT(CONCATENATE($L$4,"f",$L$3+8)) -> something that you own, or the condition of owning something | G14: =RAND() -> 0.1816057906 | H14: 9 | I14: =INDIRECT(CONCATENATE($L$4,"e",$L$3+8)) -> possession | L14: M2 Sem 1b'! | M14: =CELL("ROW",INDEX('M2 Sem 1b'!D2:D181,MATCH(D3,'M2 Sem 1b'!A2:A181,0),1)) -> 128
B15: 9 | C15: =scramble($I$10) -> yemba | F15: =INDIRECT(CONCATENATE($L$4,"f",$L$3+3)) -> everything that is contained within something | G15: =RAND() -> 0.01913869202 | H15: 4 | I15: =INDIRECT(CONCATENATE($L$4,"e",$L$3+3)) -> contents | L15: M2 Sem 2a'! | M15: =CELL("ROW",INDEX('M2 Sem 2a'!D2:D181,MATCH(D3,'M2 Sem 2a'!A2:A181,0),1)) -> 
L16: M2 Sem 2b'! | M16: =CELL("ROW",INDEX('M2 Sem 2b'!D2:D181,MATCH(D3,'M2 Sem 2b'!A2:A181,0),1)) -> 128
B17: Part 2 | L17: M3 Sem 1a'! | M17: =CELL("ROW",INDEX('M3 Sem 1a'!D2:D181,MATCH(D3,'M3 Sem 1a'!A2:A181,0),1)) -> 
B18: 10 | C18: =scramble($I$20) -> nru | F18: =INDIRECT(CONCATENATE($L$4,"f",$L$3+11)) -> a large bag used to carry things on your back | G18: =RAND() -> 0.968702149 | H18: 12 | I18: =INDIRECT(CONCATENATE($L$4,"e",$L$3+11)) -> rucksack | L18: M3 Sem 1b'! | M18: =CELL("ROW",INDEX('M3 Sem 1b'!D2:D181,MATCH(D3,'M3 Sem 1b'!A2:A181,0),1)) -> 128
B19: 11 | C19: =scramble($I$19) -> read | F19: =INDIRECT(CONCATENATE($L$4,"f",$L$3+10)) -> to obtain meaning or information by looking at written words or symbols | G19: =RAND() -> 0.3170058322 | H19: 11 | I19: =INDIRECT(CONCATENATE($L$4,"e",$L$3+10)) -> read | L19: M3 Sem 2a'! | M19: =CELL("ROW",INDEX('M3 Sem 2a'!D2:D181,MATCH(D3,'M3 Sem 2a'!A2:A181,0),1)) -> 
B20: 12 | C20: =scramble($I$22) -> urle | F20: =INDIRECT(CONCATENATE($L$4,"f",$L$3+13)) -> to move along, faster than walking, by taking quick steps | G20: =RAND() -> 0.2194344612 | H20: 14 | I20: =INDIRECT(CONCATENATE($L$4,"e",$L$3+13)) -> run | L20: M3 Sem 2b'! | M20: =CELL("ROW",INDEX('M3 Sem 2b'!D2:D181,MATCH(D3,'M3 Sem 2b'!A2:A181,0),1)) -> 128
B21: 13 | C21: =scramble($I$24) -> dsen | F21: =INDIRECT(CONCATENATE($L$4,"f",$L$3+15)) -> to say something in a loud voice | G21: =RAND() -> 0.6538464306 | H21: 16 | I21: =INDIRECT(CONCATENATE($L$4,"e",$L$3+15)) -> shout
B22: 14 | C22: =scramble($I$21) -> hotsu | F22: =INDIRECT(CONCATENATE($L$4,"f",$L$3+12)) -> an instructionto say what is allowed or not allowed | G22: =RAND() -> 0.7763270207 | H22: 13 | I22: =INDIRECT(CONCATENATE($L$4,"e",$L$3+12)) -> rule
B23: 15 | C23: =scramble($I$18) -> akcrucks | F23: =INDIRECT(CONCATENATE($L$4,"f",$L$3+9)) -> done, happening, or moving fast; lasting only a short time | G23: =RAND() -> 0.743344518 | H23: 10 | I23: =INDIRECT(CONCATENATE($L$4,"e",$L$3+9)) -> quick
B24: 16 | C24: =scramble($I$23) -> cuqik | F24: =INDIRECT(CONCATENATE($L$4,"f",$L$3+14)) -> to cause something to go or be taken somewhere without going yourself | G24: =RAND() -> 0.6177053693 | H24: 15 | I24: =INDIRECT(CONCATENATE($L$4,"e",$L$3+14)) -> send
B25: 17 | C25: =scramble($I$25) -> akdosretba | F25: =INDIRECT(CONCATENATE($L$4,"f",$L$3+16)) -> a flat narrow board onj four wheels, moved by pushing one foot on the ground | G25: =RAND() -> 0.8451849788 | H25: 17 | I25: =INDIRECT(CONCATENATE($L$4,"e",$L$3+16)) -> skateboard
B26: 18 | C26: =scramble($I$26) -> cakns | F26: =INDIRECT(CONCATENATE($L$4,"f",$L$3+17)) -> a small amount of food, esp. when eaten between meals | G26: =RAND() -> 0.9284682081 | H26: 18 | I26: =INDIRECT(CONCATENATE($L$4,"e",$L$3+17)) -> snack
C28: =C1 -> Name: ___________________ | F28: =F1 -> Number: _______________
A30: =A3 -> M | B30: =B3 -> 1 | C30: =C3 -> Week | D30: 18 | E30: Word Scramble
E31: Unscramble the words below, and match each word with its definition.
B32: =B5 -> Part 1
B33: # | C33: Word | D33: Answer | F33: Find the Clue
B34: 1 | C34: =C7 -> essm | F34: =F7 -> an image of a person, object, or view that is produced by using a camera and film
B35: 2 | C35: ent | F35: the part of every 24-hour period when it is dark
B36: 3 | C36: sisopessno | F36: to spend time doing something enjoyable or amusing
B37: 4 | C37: aghrotpoph | F37: used to show that something is possible or may be true
B38: 5 | C38: plya | F38: woven material with spaces which only allow small objects to go through
B39: 6 | C39: noootkeb | F39: a book of plain paper or paper with lines, for writing on
B40: 7 | C40: htign | F40: a condition of disorder and confusion, or something in that condition
B41: 8 | C41: noenttcs | F41: something that you own, or the condition of owning something
B42: 9 | C42: yemba | F42: everything that is contained within something
B44: =B17 -> Part 2
B45: 10 | C45: =C18 -> nru | F45: =F18 -> a large bag used to carry things on your back
B46: 11 | C46: read | F46: =F19 -> to obtain meaning or information by looking at written words or symbols
B47: 12 | C47: urle | F47: =F20 -> to move along, faster than walking, by taking quick steps
B48: 13 | C48: dsen | F48: =F21 -> to say something in a loud voice
B49: 14 | C49: hotsu | F49: =F22 -> an instructionto say what is allowed or not allowed
B50: 15 | C50: akcrucks | F50: =F23 -> done, happening, or moving fast; lasting only a short time
B51: 16 | C51: cuqik | F51: =F24 -> to cause something to go or be taken somewhere without going yourself
B52: 17 | C52: akdosretba | F52: =F25 -> a flat narrow board onj four wheels, moved by pushing one foot on the ground
B53: 18 | C53: cakns | F53: =F26 -> a small amount of food, esp. when eaten between meals

Sheet Cloze and Scramble
C1: Name: ___________________ | F1: Number: _______________
A3: M | B3: ='Cloze Exercises'!B3 -> 1 | C3: Week | D3: ='Cloze Exercises'!D3 -> 18 | E3: Word Scramble
E4: Unscramble the words below, and match each word with its definition.
B5: Part 1
B6: # | C6: Word | D6: Answer | F6: Find the Clue
B7: =B33 -> 1 | C7: ='Word Scramble'!C34 -> essm | F7: ='Word Scramble'!F34 -> an image of a person, object, or view that is produced by using a camera and film
B8: 2 | C8: ='Word Scramble'!C35 -> ent | F8: ='Word Scramble'!F35 -> the part of every 24-hour period when it is dark
B9: 3 | C9: ='Word Scramble'!C36 -> sisopessno | F9: ='Word Scramble'!F36 -> to spend time doing something enjoyable or amusing
B10: 4 | C10: ='Word Scramble'!C37 -> aghrotpoph | F10: ='Word Scramble'!F37 -> used to show that something is possible or may be true
B11: 5 | C11: ='Word Scramble'!C38 -> plya | F11: ='Word Scramble'!F38 -> woven material with spaces which only allow small objects to go through
B12: 6 | C12: ='Word Scramble'!C39 -> noootkeb | F12: ='Word Scramble'!F39 -> a book of plain paper or paper with lines, for writing on
B13: 7 | C13: ='Word Scramble'!C40 -> htign | F13: ='Word Scramble'!F40 -> a condition of disorder and confusion, or something in that condition
B14: 8 | C14: ='Word Scramble'!C41 -> noenttcs | F14: ='Word Scramble'!F41 -> something that you own, or the condition of owning something
B15: 9 | C15: ='Word Scramble'!C42 -> yemba | F15: ='Word Scramble'!F42 -> everything that is contained within something
B17: =B43 -> Part 2
B18: 10 | C18: ='Word Scramble'!C45 -> nru | F18: ='Word Scramble'!F45 -> a large bag used to carry things on your back
B19: 11 | C19: ='Word Scramble'!C46 -> read | F19: ='Word Scramble'!F46 -> to obtain meaning or information by looking at written words or symbols
B20: 12 | C20: ='Word Scramble'!C47 -> urle | F20: ='Word Scramble'!F47 -> to move along, faster than walking, by taking quick steps
B21: 13 | C21: ='Word Scramble'!C48 -> dsen | F21: ='Word Scramble'!F48 -> to say something in a loud voice
B22: 14 | C22: ='Word Scramble'!C49 -> hotsu | F22: ='Word Scramble'!F49 -> an instructionto say what is allowed or not allowed
B23: 15 | C23: ='Word Scramble'!C50 -> akcrucks | F23: ='Word Scramble'!F50 -> done, happening, or moving fast; lasting only a short time
B24: 16 | C24: ='Word Scramble'!C51 -> cuqik | F24: ='Word Scramble'!F51 -> to cause something to go or be taken somewhere without going yourself
B25: 17 | C25: ='Word Scramble'!C52 -> akdosretba | F25: ='Word Scramble'!F52 -> a flat narrow board onj four wheels, moved by pushing one foot on the ground
B26: 18 | C26: ='Word Scramble'!C53 -> cakns | F26: ='Word Scramble'!F53 -> a small amount of food, esp. when eaten between meals
A29: =A3 -> M | B29: ='Word Scramble'!B3 -> 1 | C29: =C3 -> Week | D29: =D3 -> 18 | E29: Cloze Sentences
E30: Choose a word to complete the sentences below:
B31: Part 1
B32: # | C32: Thai | D32: Word | E32: # | F32: Sentence
B33: 1 | C33: ='Cloze Exercises'!C7 -> บางที | D33: ='Cloze Exercises'!D7 -> maybe | E33: ='Cloze Exercises'!E7 -> a) | F33: ='Cloze Exercises'!F7 -> She wrote everything down in her ________.
B34: 2 | C34: ='Cloze Exercises'!C8 -> ความยุ่งเหยิง | D34: ='Cloze Exercises'!D8 -> mess | E34: ='Cloze Exercises'!E8 -> b) | F34: ='Cloze Exercises'!F8 -> It often gets cold after it gets dark here, late at ________.
B35: 3 | C35: ='Cloze Exercises'!C9 -> สุทธิ | D35: ='Cloze Exercises'!D9 -> net | E35: ='Cloze Exercises'!E9 -> c) | F35: ='Cloze Exercises'!F9 -> I often ________ basketball with my friends at school.
B36: 4 | C36: ='Cloze Exercises'!C10 -> เนื้อหา | D36: ='Cloze Exercises'!D10 -> contents | E36: ='Cloze Exercises'!E10 -> d) | F36: ='Cloze Exercises'!F10 -> He opened the cupboard and pulled the ________ onto the floor.
B37: 5 | C37: ='Cloze Exercises'!C11 -> คืน | D37: ='Cloze Exercises'!D11 -> night | E37: ='Cloze Exercises'!E11 -> e) | F37: ='Cloze Exercises'!F11 -> The puppy’s made a ________ on the dining room rug.
B38: 6 | C38: ='Cloze Exercises'!C12 -> สมุดบันทึก | D38: ='Cloze Exercises'!D12 -> notebook | E38: ='Cloze Exercises'!E12 -> f) | F38: ='Cloze Exercises'!F12 -> I'm not sure. ________ I can ride my bike home before it rains.
B39: 7 | C39: ='Cloze Exercises'!C13 -> ถ่ายภาพ | D39: ='Cloze Exercises'!D13 -> photograph | E39: ='Cloze Exercises'!E13 -> g) | F39: ='Cloze Exercises'!F13 -> Stand still and smile so I can take a ________ of you.
B40: 8 | C40: ='Cloze Exercises'!C14 -> เล่น | D40: ='Cloze Exercises'!D14 -> play | E40: ='Cloze Exercises'!E14 -> h) | F40: ='Cloze Exercises'!F14 -> She couldn’t take ________ of the house until the current occupants moved out.
B41: 9 | C41: ='Cloze Exercises'!C15 -> สมบัติ | D41: ='Cloze Exercises'!D15 -> possession | E41: ='Cloze Exercises'!E15 -> i) | F41: ='Cloze Exercises'!F15 -> Hit the ball over the volleyball ________ or you will loose the game.
B43: Part 2
B44: 10 | C44: ='Cloze Exercises'!C18 -> รวดเร็ว | D44: ='Cloze Exercises'!D18 -> quick | E44: ='Cloze Exercises'!E18 -> j) | F44: ='Cloze Exercises'!F18 -> I like to ________ an e-mail to my friend.
B45: 11 | C45: ='Cloze Exercises'!C19 -> อ่าน | D45: ='Cloze Exercises'!D19 -> read | E45: ='Cloze Exercises'!E19 -> k) | F45: ='Cloze Exercises'!F19 -> My favourite ________ is a packet of Lay's crisps.
B46: 12 | C46: ='Cloze Exercises'!C20 -> เครื่องหลังของนักไต่เขา | D46: ='Cloze Exercises'!D20 -> rucksack | E46: ='Cloze Exercises'!E20 -> l) | F46: ='Cloze Exercises'!F20 -> If you break a ________, you are going to be punished for it.
B47: 13 | C47: ='Cloze Exercises'!C21 -> กฎ | D47: ='Cloze Exercises'!D21 -> rule | E47: ='Cloze Exercises'!E21 -> m) | F47: ='Cloze Exercises'!F21 -> You’re back already – that was ________!
B48: 14 | C48: ='Cloze Exercises'!C22 -> วิ่ง | D48: ='Cloze Exercises'!D22 -> run | E48: ='Cloze Exercises'!E22 -> n) | F48: ='Cloze Exercises'!F22 -> He goes on his ________ up and down the ramp.
B49: 15 | C49: ='Cloze Exercises'!C23 -> ส่ง | D49: ='Cloze Exercises'!D23 -> send | E49: ='Cloze Exercises'!E23 -> o) | F49: ='Cloze Exercises'!F23 -> The athelete started to ________ the race quickly around the stadium.
B50: 16 | C50: ='Cloze Exercises'!C24 -> ร้องตะโกน | D50: ='Cloze Exercises'!D24 -> shout | E50: ='Cloze Exercises'!E24 -> p) | F50: ='Cloze Exercises'!F24 -> I often ________ a chapter form a book before I sleep at night.
B51: 17 | C51: ='Cloze Exercises'!C25 -> สเกตบอร์ด | D51: ='Cloze Exercises'!D25 -> skateboard | E51: ='Cloze Exercises'!E25 -> q) | F51: ='Cloze Exercises'!F25 -> 
B52: 18 | C52: ='Cloze Exercises'!C26 -> ขนมขบเคี้ยว | D52: ='Cloze Exercises'!D26 -> snack | E52: ='Cloze Exercises'!E26 -> r) | F52: ='Cloze Exercises'!F26 -> Don't ________ or scream in class. It hurts my ears!

Sheet M3 Sem 1b
A1: Week | B1: Part | C1: Thai | E1: Word | F1: Definition | G1: Sentence | H1: Coursebook | I1: PET in Coursebk | J1: PET only | K1: Pet Word | P1: Week | Q1: Part
A2: 11 | B2: 1 | C2: ความสำเร็จ | D2: noun | E2: achievement | F2: =IFERROR(INDEX('2012'!$E$2:$E$4800,MATCH(E2,'2012'!$D$2:$D$4800,0)),"") -> something very good and difficult that you have succeeded in doing | G2: Getting an 'A' in Ajarn Tim's class is a remarkable achievement. | H2: 1 | M2: Total Words | N2: 180 | P2: 11 | Q2: 1 | R2: =E2&", "&E3&", "&E4&", "&E5&", "&E6&", "&E7 -> achievement, ambition, audience, audition, ballet, ballroom | S2: =C2&", "&C3&", "&C4&", "&C5&", "&C6&", "&C7 -> ความสำเร็จ, ความทะเยอทะยาน, ผู้ฟัง, การได้ยิน, ระบำปลายเท้า, ห้องบอลรูม
A3: 11 | B3: 1 | C3: ความทะเยอทะยาน | D3: noun | E3: ambition | F3: a strong wish to be successful, powerful, or rich | G3: His ambition is ultimately to run his own business. | H3: 1 | I3: 1 | K3: ambition | M3: SB Words in PET | N3: =COUNTIF(I2:I181,1) -> 31 | P3: 11 | Q3: 2 | R3: =E8&", "&E9&", "&E10&", "&E11&", "&E12&", "&E13 -> hairdryer, boast, break a leg, captain, contest, determination | S3: =C8&", "&C9&", "&C10&", "&C11&", "&C12&", "&C13 -> เครื่องเป่าผม, โม้, หักขา, กัปตัน, การประกวด, การกำหนด
A4: 11 | B4: 1 | C4: ผู้ฟัง | D4: noun | E4: audience | F4: the group of people together in one place to watch or listen to a performance | G4: The secret to public speaking is to get the audience on your side. | H4: 1 | I4: 1 | K4: audience | M4: SB % in PET | N4: =N3/N2 -> 0.1722222222 | P4: 11 | Q4: 3 | R4: =E14&", "&E15&", "&E16&", "&E17&", "&E18&", "&E19 -> dishwasher, eclipse, homeless, knee, medal, mention | S4: =C14&", "&C15&", "&C16&", "&C17&", "&C18&", "&C19 -> เครื่องล้างจาน, คราส, ไม่มีที่อยู่อาศัย, เข่า, เหรียญ, กล่าวถึง
A5: 11 | B5: 1 | C5: การได้ยิน | D5: noun | E5: audition | F5: a short performance to show an actor can perform well | G5: His audition went well and he's fairly hopeful about getting the part. | H5: 1 | P5: 12 | Q5: 1 | R5: =E20&", "&E21&", "&E22&", "&E23&", "&E24&", "&E25 -> motivation, overcome, overnight, podium, promise, race | S5: =C20&", "&C21&", "&C22&", "&C23&", "&C24&", "&C25 -> แรงจูงใจ, เอาชนะ, ค้างคืน, แท่น, คำมั่นสัญญา, การแข่งขัน
A6: 11 | B6: 1 | C6: ระบำปลายเท้า | D6: noun | E6: ballet | F6: a type of dancing that tells a story or express an idea | G6: Swan Lake is a ballet about a princess turned into a swan by an evil sorcerer. | H6: 1 | I6: 1 | K6: ballet | M6: M3 Sem 1b | P6: 12 | Q6: 2 | R6: =E26&", "&E27&", "&E28&", "&E29&", "&E30&", "&E31 -> referee, shark, turkey, spectator, talent, system | S6: =C26&", "&C27&", "&C28&", "&C29&", "&C30&", "&C31 -> กรรมการตัดสิน, ปลาฉลาม, ไก่งวง, ผู้ชม, ความสามารถพิเศษ, ระบบ
A7: 11 | B7: 1 | C7: ห้องบอลรูม | D7: noun | E7: ballroom | F7: a large room that is used for dancing | G7: Dancing with the Stars is a TV program filmed in a ballroom where stars dance. | H7: 1 | P7: 12 | Q7: 3 | R7: =E32&", "&E33&", "&E34&", "&E35&", "&E36&", "&E37 -> cartoon, trip over, trophy, wheelchair, ambulance, both | S7: =C32&", "&C33&", "&C34&", "&C35&", "&C36&", "&C37 -> การ์ตูน, เดินทางผ่าน, ถ้วยรางวัล, เก้าอี้เข็น, รถพยาบาล, ทั้งสอง
A8: 11 | B8: 2 | C8: เครื่องเป่าผม | D8: noun | E8: hairdryer | F8: an electrical device which blows out hot air for drying and styling a person's hair | G8: Alexander F. "Beau" Godefroy invented the first hairdryer in France in 1890. | J8: 1 | K8: hairdryer | M8: Added PET words | N8: =COUNTIF(J2:J181,1) -> 106 | P8: 13 | Q8: 1 | R8: =E38&", "&E39&", "&E40&", "&E41&", "&E42&", "&E43 -> confiscate, considerate, suit, fault, fire engine, firefighter | S8: =C38&", "&C39&", "&C40&", "&C41&", "&C42&", "&C43 -> ยึดทรัพย์, เอาใจใส่, สูท, ความผิด, รถดับเพลิง, เจ้าหน้าที่ดับเพลิง
A9: 11 | B9: 2 | C9: โม้ | D9: verb | E9: boast | F9: to speak too proudly or happily about what you have done or what you own | G9: He didn't talk about his excellent exam results because he didn't want to boast. | H9: 1 | P9: 13 | Q9: 2 | R9: =E44&", "&E45&", "&E46&", "&E47&", "&E48&", "&E49 -> furniture, generous, get on with, get your own way, ginger, grain | S9: =C44&", "&C45&", "&C46&", "&C47&", "&C48&", "&C49 -> เฟอร์นิเจอร์, ใจกว้าง, รับกับ, รับทางของคุณเอง, ขิง, เมล็ดข้าว
A10: 11 | B10: 2 | C10: หักขา | D10: exp | E10: break a leg | F10: 'Break a leg' is a well-known idiom in theatre which means "good luck" | G10: Actor Brad Pitt wished the best to Angelina by saying 'I hope you break a leg.' | H10: 1 | M10: PET Words Total | N10: =N3+N8 -> 137 | P10: 13 | Q10: 3 | R10: =E50&", "&E51&", "&E52&", "&E53&", "&E54&", "&E55 -> handcuffs, harm, helmet, ignore, intelligent, introvert | S10: =C50&", "&C51&", "&C52&", "&C53&", "&C54&", "&C55 -> ใส่กุญแจมือ, อันตราย, หมวกนิรภัย, ไม่สนใจ, ฉลาด, คนเก็บตัว
A11: 11 | B11: 2 | C11: กัปตัน | D11: noun | E11: captain | F11: the person in charge of a ship or an aircraft | G11: This is your captain speaking. We expect to be landing in an hour's time. | H11: 1 | I11: 1 | K11: captain | M11: Pet Words % | N11: =N10/N2 -> 0.7611111111 | P11: 14 | Q11: 1 | R11: =E56&", "&E57&", "&E58&", "&E59&", "&E60&", "&E61 -> anyway, marry, mask, outgoing, oven, paramedic | S11: =C56&", "&C57&", "&C58&", "&C59&", "&C60&", "&C61 -> อย่างไรก็ตาม, แต่งงาน, หน้ากาก, ขาออก, เตาอบ, แพทย์
A12: 11 | B12: 2 | C12: การประกวด | D12: noun | E12: contest | F12: a competition to do better than other people, usually in which prizes are given | G12: She's won a lot of beauty contests. | H12: 1 | P12: 14 | Q12: 2 | R12: =E62&", "&E63&", "&E64&", "&E65&", "&E66&", "&E67 -> policeman, refugee, release, replace, selfish, settle down | S12: =C62&", "&C63&", "&C64&", "&C65&", "&C66&", "&C67 -> ตร., ผู้ลี้ภัย, ปล่อย, แทนที่, เห็นแก่ตัว, ปักหลัก
A13: 11 | B13: 2 | C13: การกำหนด | D13: noun | E13: determination | F13: the ability to continue trying to do something, although it is very difficult | G13: You can't help but admire her determination to succeed. | H13: 1 | M13: Nouns | N13: =COUNTIF($D$2:$D$201,"noun") -> 107 | P13: 14 | Q13: 3 | R13: =E68&", "&E69&", "&E70&", "&E71&", "&E72&", "&E73 -> honey, shy, siren, pardon, stubborn, take it easy | S13: =C68&", "&C69&", "&C70&", "&C71&", "&C72&", "&C73 -> น้ำผึ้ง, อาย, ไซเรน, ให้อภัย, ปากแข็ง, ไม่ต้องทำงานหนัก
A14: 11 | B14: 3 | C14: เครื่องล้างจาน | D14: noun | E14: dishwasher | F14: a machine that washes dirty plates, cups, and forks. | G14: Josephine Cochran invented the first dishwasher and patented it in 1886. | H14: 1 | I14: 1 | K14: dishwasher | M14: Verbs | N14: =COUNTIF($D$2:$D$201,"verb") -> 39 | P14: 15 | Q14: 1 | R14: =E74&", "&E75&", "&E76&", "&E77&", "&E78&", "&E79 -> marriage, compete, weak, develop, group, attitude | S14: =C74&", "&C75&", "&C76&", "&C77&", "&C78&", "&C79 -> การแต่งงาน, แข่งขัน, อ่อนแอ, พัฒนา, กลุ่ม, ท่าที
A15: 11 | B15: 3 | C15: คราส | D15: noun | E15: eclipse | F15: when the sun disappears from view while the moon is moving between it and the Earth | G15: On Wednesday there will be a total eclipse of the sun. | H15: 1 | M15: Adjectives | N15: =COUNTIF($D$2:$D$201,"adj") -> 25 | P15: 15 | Q15: 2 | R15: =E80&", "&E81&", "&E82&", "&E83&", "&E84&", "&E85 -> lung, launch, nowadays, offshore, therefore, while | S15: =C80&", "&C81&", "&C82&", "&C83&", "&C84&", "&C85 -> ปอด, ยิง, ในปัจจุบันนี้, ห่างจากฝั่ง, จึง, ในขณะที่
A16: 11 | B16: 3 | C16: ไม่มีที่อยู่อาศัย | D16: adj | E16: homeless | F16: without a home | G16: Accommodation needs to be found for thousands of homeless families. | H16: 1 | M16: Adverbs | N16: =COUNTIF($D$2:$D$201,"adv") -> 4 | P16: 15 | Q16: 3 | R16: =E86&", "&E87&", "&E88&", "&E89&", "&E90&", "&E91 -> wind, energy, include, recycling, postage, inhabitant | S16: =C86&", "&C87&", "&C88&", "&C89&", "&C90&", "&C91 -> ลม, พลังงาน, ประกอบด้วย, การรีไซเคิล, ค่าไปรษณีย์, ชาวบ้าน
A17: 11 | B17: 3 | C17: เข่า | D17: noun | E17: knee | F17: the middle joint of the leg, which allows it to bend | G17: He went down on his knee and asked her to marry him. | J17: 1 | K17: knee | M17: Pronouns | N17: =COUNTIF($D$2:$D$201,"pron") -> 2 | P17: 16 | Q17: 1 | R17: =E92&", "&E93&", "&E94&", "&E95&", "&E96&", "&E97 -> embarrassing, deserve, refuse, perform, topic, storm | S17: =C92&", "&C93&", "&C94&", "&C95&", "&C96&", "&C97 -> น่าอาย, สมควรจะได้, ปฏิเสธ, ปฏิบัติการ, หัวข้อ, พายุ
A18: 11 | B18: 3 | C18: เหรียญ | D18: noun | E18: medal | F18: a small metal disc, with words or a picture on it, which is given as a reward | G18: He was awarded a medal for bravery. | H18: 1 | M18: Prepositions | N18: =COUNTIF($D$2:$D$201,"prep") -> 0 | P18: 16 | Q18: 2 | R18: =E98&", "&E99&", "&E100&", "&E101&", "&E102&", "&E103 -> how, conclusion, foreigner, please, stairs, teenage | S18: =C98&", "&C99&", "&C100&", "&C101&", "&C102&", "&C103 -> อย่างไร, ข้อสรุป, ชาวต่างชาติ, กรุณา, บันได, วัยรุ่น
A19: 11 | B19: 3 | C19: กล่าวถึง | D19: verb | E19: mention | F19: to speak about something quickly, giving little detail or using few words | G19: Did she happen to mention whether she would be coming? | H19: 1 | I19: 1 | K19: mention | M19: Conjunctions | N19: =COUNTIF($D$2:$D$201,"conj") -> 1 | P19: 16 | Q19: 3 | R19: =E104&", "&E105&", "&E106&", "&E107&", "&E108&", "&E109 -> telegram, glasses, pastry, bull, injure, century | S19: =C104&", "&C105&", "&C106&", "&C107&", "&C108&", "&C109 -> โทรเลข, แว่นตา, ขนมปิ้ง, วัว, ทำร้าย, ศตวรรษ
A20: 12 | B20: 1 | C20: แรงจูงใจ | D20: noun | E20: motivation | F20: enthusiasm for doing something | G20: He's a bright enough student, but he lacks motivation to study. | H20: 1 | M20: Expressions | N20: =COUNTIF($D$2:$D$201,"exp") -> 2 | P20: 17 | Q20: 1 | R20: =E110&", "&E111&", "&E112&", "&E113&", "&E114&", "&E115 -> knit, recycled, offer, quit, signature, electric | S20: =C110&", "&C111&", "&C112&", "&C113&", "&C114&", "&C115 -> ถัก, ใช้แล้ว, เสนอ, เลิก, ลายเซ็น, ไฟฟ้า
A21: 12 | B21: 1 | C21: เอาชนะ | D21: verb | E21: overcome | F21: to defeat or succeed in controlling or dealing with something | G21: Eventually she managed to overcome her shyness in class. | H21: 1 | P21: 17 | Q21: 2 | R21: =E116&", "&E117&", "&E118&", "&E119&", "&E120&", "&E121 -> lemonade, fee, lump, banana, scissors, fax | S21: =C116&", "&C117&", "&C118&", "&C119&", "&C120&", "&C121 -> น้ำมะนาว, ค่าธรรมเนียม, ก้อน, กล้วย, กรรไกร, แฟกซ์
A22: 12 | B22: 1 | C22: ค้างคืน | D22: adj | E22: overnight | F22: for or during the night | G22: You can stay overnight if you want to. | H22: 1 | I22: 1 | K22: overnight | P22: 17 | Q22: 3 | R22: =E122&", "&E123&", "&E124&", "&E125&", "&E126&", "&E127 -> aim, him, chest, object, duck, worry | S22: =C122&", "&C123&", "&C124&", "&C125&", "&C126&", "&C127 -> มุ่ง, เขา, หน้าอก, วัตถุ, เป็ด, กังวล
A23: 12 | B23: 1 | C23: แท่น | D23: noun | E23: podium | F23: a raised area on which a person stands in front of an audience | G23: Tears ran down her face as she stood on the winner's podium. | H23: 1 | P23: 18 | Q23: 1 | R23: =E128&", "&E129&", "&E130&", "&E131&", "&E132&", "&E133 -> asleep, subway, delivery, self-service, generation, blow | S23: =C128&", "&C129&", "&C130&", "&C131&", "&C132&", "&C133 -> หลับ, รถไฟใต้ดิน, ส่ง, บริการตัวเอง, รุ่น, ระเบิด
A24: 12 | B24: 1 | C24: คำมั่นสัญญา | D24: verb | E24: promise | F24: to tell someone that you will certainly do something | G24: "Will you promise to call me as soon as you arrive?", his mother asked. | H24: 1 | I24: 1 | K24: promise | P24: 18 | Q24: 2 | R24: =E134&", "&E135&", "&E136&", "&E137&", "&E138&", "&E139 -> quay, defend, colleague, lavatory, recover, important | S24: =C134&", "&C135&", "&C136&", "&C137&", "&C138&", "&C139 -> ท่าเรือ, รักษา, เพื่อนร่วมงาน, ห้องน้ำ, กู้, สำคัญ
A25: 12 | B25: 1 | C25: การแข่งขัน | D25: noun | E25: race | F25: a competition in which all try to be the fastest and to finish first | G25: They're taking part in a race to the top of Mount Everest. | H25: 1 | I25: 1 | K25: race | P25: 18 | Q25: 3 | R25: =E140&", "&E141&", "&E142&", "&E143&", "&E144&", "&E145 -> illness, orchestra, impossible, composition, introduce, camel | S25: =C140&", "&C141&", "&C142&", "&C143&", "&C144&", "&C145 -> โรคภัยไข้เจ็บ, วงออเคสตรา, เป็นไปไม่ได้, ส่วนประกอบ, แนะนำ, อูฐ
A26: 12 | B26: 2 | C26: กรรมการตัดสิน | D26: noun | E26: referee | F26: a person who is in charge of a sports game and ensures rules are followed | G26: Liverpool only lost the game because the referee was biased. | H26: 1 | P26: 19 | Q26: 1 | R26: =E146&", "&E147&", "&E148&", "&E149&", "&E150&", "&E151 -> disabled, account, access, annoy, network, succeed | S26: =C146&", "&C147&", "&C148&", "&C149&", "&C150&", "&C151 -> พิการ, บัญชี, เข้า, รบกวน, เครือข่าย, ประสบความสำเร็จ
A27: 12 | B27: 2 | C27: ปลาฉลาม | D27: noun | E27: shark | F27: a large fish that has sharp teeth and a fin which is seen above the water | G27: Sharks have five to 15 rows of teeth in each jaw | H27: 1 | I27: 1 | K27: shark | P27: 19 | Q27: 2 | R27: =E152&", "&E153&", "&E154&", "&E155&", "&E156&", "&E157 -> lively, enter, café, glad, profession, commercial | S27: =C152&", "&C153&", "&C154&", "&C155&", "&C156&", "&C157 -> ร่าเริง, เข้า, คาเฟ่, ดีใจ, อาชีพ, เชิงพาณิชย์
A28: 12 | B28: 2 | C28: ไก่งวง | D28: noun | E28: turkey | F28: a large North American bird grown for food, or the flesh of this bird | G28: The normal Thanksgiving turkey is filled with a bread-based stuffing and roasted. | J28: 1 | K28: turkey | P28: 19 | Q28: 3 | R28: =E158&", "&E159&", "&E160&", "&E161&", "&E162&", "&E163 -> department, government, moment, brush, reason, classical | S28: =C158&", "&C159&", "&C160&", "&C161&", "&C162&", "&C163 -> แผนก, รัฐบาล, ขณะ, แปรง, เหตุผล, คลาสสิก
A29: 12 | B29: 2 | C29: ผู้ชม | D29: noun | E29: spectator | F29: a person who watches an activity, especially a sports event, without taking part | G29: They won 4–0 in front of every spectator in the stadium. | H29: 1 | P29: 20 | Q29: 1 | R29: =E164&", "&E165&", "&E166&", "&E167&", "&E168&", "&E169 -> campsite, situated, hill, folk, apologise, permission | S29: =C164&", "&C165&", "&C166&", "&C167&", "&C168&", "&C169 -> บริเวณตั้งแคมป์, ตั้งอยู่, เนินเขา, พื้นบ้าน, ขอโทษ, การอนุญาต
A30: 12 | B30: 2 | C30: ความสามารถพิเศษ | D30: noun | E30: talent | F30: a natural ability to be good at something, especially without being taught | G30: Beyonce's talent for music showed at an early age. | H30: 1 | I30: 1 | K30: talent | P30: 20 | Q30: 2 | R30: =E170&", "&E171&", "&E172&", "&E173&", "&E174&", "&E175 -> fill, interrupt, time, soft, phone, tiny | S30: =C170&", "&C171&", "&C172&", "&C173&", "&C174&", "&C175 -> ใส่, ขัดจังหวะ, เวลา, อ่อน, โทรศัพท์, จิ๋ว
A31: 12 | B31: 2 | C31: ระบบ | D31: noun | E31: system | F31: a set of connected things or devices which operate together | G31: The ancient Romans first the invented central heating system in 100AD. | J31: 1 | K31: system | P31: 20 | Q31: 3 | R31: =E176&", "&E177&", "&E178&", "&E179&", "&E180&", "&E181 -> wheel, contain, adult, advise, build, distance | S31: =C176&", "&C177&", "&C178&", "&C179&", "&C180&", "&C181 -> ล้อ, บรรจุ, ผู้ใหญ่, แนะนำ, สร้าง, ระยะทาง
A32: 12 | B32: 3 | C32: การ์ตูน | D32: noun | E32: cartoon | F32: a drawing that tells a joke or makes a humorous political criticism | G32: The first Mickey Mouse cartoon, Steamboat Willie, was made in 1928. | J32: 1 | K32: cartoon
A33: 12 | B33: 3 | C33: เดินทางผ่าน | D33: verb | E33: trip over | F33: to lose your balance after knocking your foot against something when walking | G33: That cable is dangerous. Someone might trip over it. | H33: 1 | S33: Extra -
A34: 12 | B34: 3 | C34: ถ้วยรางวัล | D34: noun | E34: trophy | F34: given to the winner of a competition or race, and often returned after a year | G34: He's an excellent snooker player, but he's never won a major trophy. | H34: 1
A35: 12 | B35: 3 | C35: เก้าอี้เข็น | D35: noun | E35: wheelchair | F35: a chair on wheels that people who are unable to walk use for moving around | G35: Many handicapped people need to use a wheelchair to get around town. | H35: 1 | I35: 1 | K35: wheelchair
A36: 12 | B36: 3 | C36: รถพยาบาล | D36: noun | E36: ambulance | F36: a special vehicle used to take sick or injured people to hospital | G36: An ambulance crew was called to his home, but he was dead by the time they arrived. | H36: 1 | I36: 1 | K36: ambulance
A37: 12 | B37: 3 | C37: ทั้งสอง | D37: pron | E37: both | F37: referring to two people or things together | G37: Are both of us invited, or just you? | H37: 1 | I37: 1 | K37: both
A38: 13 | B38: 1 | C38: ยึดทรัพย์ | D38: verb | E38: confiscate | F38: to take a possession away from someone when you have the right to do so | G38: The police are going to confiscate his passport to stop him from leaving the country. | H38: 1
A39: 13 | B39: 1 | C39: เอาใจใส่ | D39: adj | E39: considerate | F39: kind and helpful | G39: It wasn't very considerate of you to drink all the milk. | H39: 1
A40: 13 | B40: 1 | C40: สูท | D40: noun | E40: suit | F40: a jacket and trousers or a jacket and skirt that are made from the same material | G40: All the businessmen were wearing pinstripe suits. | J40: 1 | K40: suit
A41: 13 | B41: 1 | C41: ความผิด | D41: noun | E41: fault | F41: a mistake, especially something for which you are to blame | G41: She believes it was the doctor's fault that Peter died. | H41: 1 | I41: 1 | K41: fault
A42: 13 | B42: 1 | C42: รถดับเพลิง | D42: noun | E42: fire engine | F42: a large vehicle that carries firefighters and their equipment to a fire | G42: The first recorded fire engine used in London was made by John Lofting in 1690. | H42: 1
A43: 13 | B43: 1 | C43: เจ้าหน้าที่ดับเพลิง | D43: noun | E43: firefighter | F43: a person whose job is to stop fires from burning | G43: A firefighter helmet is usually made of fiberglass and weighs 2.5 kilogrammes. | H43: 1 | I43: 1 | K43: firefighter
A44: 13 | B44: 2 | C44: เฟอร์นิเจอร์ | D44: noun | E44: furniture | F44: items in a house or other building to make it suitable and comfortable for living | G44: They have a lot of antique chairs and other furniture. | H44: 1 | I44: 1 | K44: furniture
A45: 13 | B45: 2 | C45: ใจกว้าง | D45: adj | E45: generous | F45: willing to give money, help, kindness, more than is usual | G45: It was most generous of you to lend me the money. | H45: 1 | I45: 1 | K45: generous
A46: 13 | B46: 2 | C46: รับกับ | D46: verb | E46: get on with | F46: to start or continue doing something, especially work | G46: I suppose I could get on with the ironing while I'm waiting. | H46: 1
A47: 13 | B47: 2 | C47: รับทางของคุณเอง | D47: verb | E47: get your own way | F47: to persuade other people to allow you to do what you want | G47: Mum and dad give you everything. You always seem to get your own way. | H47: 1
A48: 13 | B48: 2 | C48: ขิง | D48: noun | E48: ginger | F48: spicy root of a tropical plant that is used in cooking or preserved in sugar | G48: Ginger cultivation began in South Asia and has since spread to East Africa. | H48: 1
A49: 13 | B49: 2 | C49: เมล็ดข้าว | D49: noun | E49: grain | F49: a seed or seeds from a plant, especially a plant like a grass such as rice or wheat | G49: Grain is one of the main exports of the American Midwest. | H49: 1
A50: 13 | B50: 3 | C50: ใส่กุญแจมือ | D50: noun | E50: handcuffs | F50: two metal or plastic rings joined by a short chain that lock around a prisoner's wrists | G50: She was taken to the police station in handcuffs. | H50: 1
A51: 13 | B51: 3 | C51: อันตราย | D51: noun | E51: harm | F51: physical or other injury or damage | G51: Both deny conspiring to cause actual bodily harm. | H51: 1
A52: 13 | B52: 3 | C52: หมวกนิรภัย | D52: noun | E52: helmet | F52: a strong hard hat that covers and protects the head | G52: When you ride a motorbike, you should wear a crash helmet. | H52: 1 | I52: 1 | K52: helmet
A53: 13 | B53: 3 | C53: ไม่สนใจ | D53: verb | E53: ignore | F53: to intentionally not listen or give attention to | G53: She can be really irritating but I try to ignore her. | H53: 1
A54: 13 | B54: 3 | C54: ฉลาด | D54: adj | E54: intelligent | F54: showing able to learn and understand things easily | G54: Helen had a few intelligent iedas to share on the subject. | H54: 1 | I54: 1 | K54: intelligent
A55: 13 | B55: 3 | C55: คนเก็บตัว | D55: noun | E55: introvert | F55: someone who is shy, quiet, and unable to make friends easily | G55: He is not outgoing but more of an introvert, so I don't think he will work well in sales. | H55: 1
A56: 14 | B56: 1 | C56: อย่างไรก็ตาม | D56: adv | E56: anyway | F56: whatever else is happening, without considering other things | G56: Of course I don't mind taking you home. I'm going that way anyway. | J56: 1 | K56: anyway
A57: 14 | B57: 1 | C57: แต่งงาน | D57: verb | E57: marry | F57: to become the legally accepted husband or wife of someone in an official or religious ceremony | G57: Men tend to marry later than women. | H57: 1 | I57: 1 | K57: marry
A58: 14 | B58: 1 | C58: หน้ากาก | D58: noun | E58: mask | F58: a covering for all or part of the face which protects, hides or decorates it | G58: Each of the bank robbers wore a mask throughout the raid. | H58: 1
A59: 14 | B59: 1 | C59: ขาออก | D59: adj | E59: outgoing | F59: friendly and energetic and finding it easy and enjoyable to be with others | G59: Sales reps need to be outgoing, because they are constantly meeting customers. | H59: 1
A60: 14 | B60: 1 | C60: เตาอบ | D60: noun | E60: oven | F60: the part of a cooker with a door, which is used to cook food | G60: Place the cake in the oven at 200°C. | H60: 1 | I60: 1 | K60: oven
A61: 14 | B61: 1 | C61: แพทย์ | D61: noun | E61: paramedic | F61: a person who is trained to do medical work, especially in an emergency, but who is not a doctor or nurse | G61: A hospital paramedic in the United States earns about 1.2 million baht per year. | H61: 1
A62: 14 | B62: 2 | C62: ตร. | D62: noun | E62: policeman | F62: a male member of a police force | G62: The average age for a policeman in the U.S. is 25. | H62: 1 | I62: 1 | K62: policeman
A63: 14 | B63: 2 | C63: ผู้ลี้ภัย | D63: noun | E63: refugee | F63: a person who has escaped from their own country for political, religious, or economic reasons or because of a war | G63: Every refugee who flees across the boarder seeks asylum. | H63: 1
A64: 14 | B64: 2 | C64: ปล่อย | D64: verb | E64: release | F64: to give freedom or free movement to someone or something | G64: The judge will release her from prison after serving one year of a two-year sentence. | H64: 1
A65: 14 | B65: 2 | C65: แทนที่ | D65: verb | E65: replace | F65: to take the place of something | G65: The Toyota factory is going to replace most of its workers with robots. | H65: 1 | I65: 1 | K65: replace
A66: 14 | B66: 2 | C66: เห็นแก่ตัว | D66: adj | E66: selfish | F66: someone who only thinks of his/her own advantage | G66: The judge told him: "Your attitude shows a selfish disregard for others." | H66: 1
A67: 14 | B67: 2 | C67: ปักหลัก | D67: verb | E67: settle down | F67: to become familiar with a place and to feel happy and confident in it | G67: She seemed to quickly settle down and get to know the students in the new school. | H67: 1
A68: 14 | B68: 3 | C68: น้ำผึ้ง | D68: noun | E68: honey | F68: a sweet, sticky, yellow substance made by bees and used as food | G68: Natural honey is said to contain excellent antibacterial properties. | J68: 1 | K68: honey
A69: 14 | B69: 3 | C69: อาย | D69: adj | E69: shy | F69: nervous and uncomfortable with other people | G69: He was too shy to ask her to dance with him. | H69: 1 | I69: 1 | K69: shy
A70: 14 | B70: 3 | C70: ไซเรน | D70: noun | E70: siren | F70: a device for making a loud warning noise | G70: When the air raid siren went off people ran to their shelters. | H70: 1
A71: 14 | B71: 3 | C71: ให้อภัย | D71: verb | E71: pardon | F71: said when wishing to be forgiven for something said or done. | G71: Pardon me interrupting, but there's a client to see you. | J71: 1 | K71: pardon
A72: 14 | B72: 3 | C72: ปากแข็ง | D72: adj | E72: stubborn | F72: describes someone who is determined to do what they want and refuses to do anything else | G72: They have massive rows because they're both so stubborn. | H72: 1
A73: 14 | B73: 3 | C73: ไม่ต้องทำงานหนัก | D73: verb | E73: take it easy | F73: to relax and not use too much energy | G73: I wasn't feeling too good, so I thought I'd take it easy for a couple of days. | H73: 1
A74: 15 | B74: 1 | C74: การแต่งงาน | D74: noun | E74: marriage | F74: a legally accepted relationship between two people in which they live together | G74: She has two daughters by her first marriage. | J74: 1 | K74: marriage
A75: 15 | B75: 1 | C75: แข่งขัน | D75: verb | E75: compete | F75: to try to be more successful than someone or something else | G75: It's difficult for a small shop to compete with the big supermarkets. | J75: 1 | K75: compete
A76: 15 | B76: 1 | C76: อ่อนแอ | D76: adj | E76: weak | F76: not strong, or not strong enough to work, last, succeed, persuade, or be effective | G76: It's not surprising you feel weak if you haven't eaten properly for days. | H76: 1 | I76: 1 | K76: weak
A77: 15 | B77: 1 | C77: พัฒนา | D77: verb | E77: develop | F77: to grow or change into a more advanced, larger or stronger form | G77: The fear is that these minor clashes may develop into all-out confrontation. | H77: 1 | I77: 1 | K77: develop
A78: 15 | B78: 1 | C78: กลุ่ม | D78: noun | E78: group | F78: a number of people or things that are put together or considered as a unit | G78: I'm meeting a group of friends for dinner tonight. | H78: 1 | I78: 1 | K78: group
A79: 15 | B79: 1 | C79: ท่าที | D79: noun | E79: attitude | F79: a feeling or opinion about something or someone | G79: He has a very bad attitude towards work. | J79: 1 | K79: attitude
A80: 15 | B80: 2 | C80: ปอด | D80: noun | E80: lung | F80: either of the two organs in the chest with which people and some animals breathe | G80: Lung cancer is uncontrolled abnormal cell growth that line air passages. | J80: 1 | K80: lung
A81: 15 | B81: 2 | C81: ยิง | D81: noun | E81: launch | F81: an event to celebrate or introduce something new | G81: Illness prevented her attending the launch party for her latest novel. | H81: 1
A82: 15 | B82: 2 | C82: ในปัจจุบันนี้ | D82: adv | E82: nowadays | F82: at the present time, in comparison to the past | G82: Nowadays, I bake my own bread rather than buy it as I used to years ago. | H82: 1 | I82: 1 | K82: nowadays
A83: 15 | B83: 2 | C83: ห่างจากฝั่ง | D83: adj | E83: offshore | F83: away from or at a distance from the coast | G83: The wind was blowing across the sea, far offshore. | H83: 1
A84: 15 | B84: 2 | C84: จึง | D84: adv | E84: therefore | F84: for that reason | G84: We were unable to get funding and therefore had to abandon the project. | H84: 1 | I84: 1 | K84: therefore
A85: 15 | B85: 2 | C85: ในขณะที่ | D85: conj | E85: while | F85: during the time that, or at the same time as | G85: I read it while you were drying your hair. | H85: 1
A86: 15 | B86: 3 | C86: ลม | D86: noun | E86: wind | F86: a current of air moving approximately horizontally, especially one strong enough to be felt | G86: There isn't enough wind to fly a kite. | H86: 1 | I86: 1 | K86: wind
A87: 15 | B87: 3 | C87: พลังงาน | D87: noun | E87: energy | F87: the power from something such as electricity or oil, which provide light and heat | G87: Since I started eating more healthily I've got so much more energy. | H87: 1
A88: 15 | B88: 3 | C88: ประกอบด้วย | D88: verb | E88: include | F88: to contain something as a part of something else | G88: The bill will include sales tax and service. | J88: 1 | K88: include
A89: 15 | B89: 3 | C89: การรีไซเคิล | D89: noun | E89: recycling | F89: the process of collecting and changing old paper, glass, plastic, etc. so that it can be used again | G89: Wongpanit in Phitsanulok encourages the recycling of used products. | J89: 1 | K89: recycling
A90: 15 | B90: 3 | C90: ค่าไปรษณีย์ | D90: noun | E90: postage | F90: the money that you pay for sending letters and parcels through the post | G90: Please pay 300 baht, plus 80 baht for postage so we can mail the item to your home. | J90: 1 | K90: postage
A91: 15 | B91: 3 | C91: ชาวบ้าน | D91: noun | E91: inhabitant | F91: a person or animal that lives in a particular place | G91: Each inhabitant in inner Bangkok has access to the skytrain. | J91: 1 | K91: inhabitant
A92: 16 | B92: 1 | C92: น่าอาย | D92: adj | E92: embarrassing | F92: feeling ashamed or shy | G92: My most embarrassing moment was mwwting a woman whose name I couldn't remember. | J92: 1 | K92: embarrassing
A93: 16 | B93: 1 | C93: สมควรจะได้ | D93: verb | E93: deserve | F93: to have earned something because of the way you have behaved | G93: After all that hard work, you deserve a holiday. | J93: 1 | K93: deserve
A94: 16 | B94: 1 | C94: ปฏิเสธ | D94: verb | E94: refuse | F94: to say that you will not do or accept something | G94: He asked me to give him another loan, but I had to refuse since I had no money. | J94: 1 | K94: refuse
A95: 16 | B95: 1 | C95: ปฏิบัติการ | D95: verb | E95: perform | F95: to do an action or piece of work | G95: Computers can perform a variety of tasks. | J95: 1 | K95: perform
A96: 16 | B96: 1 | C96: หัวข้อ | D96: noun | E96: topic | F96: a subject which is discussed, written about or studied | G96: Our discussion ranged over the main topic, that of the hole in the ozone layer. | J96: 1 | K96: topic
A97: 16 | B97: 1 | C97: พายุ | D97: noun | E97: storm | F97: an extreme weather condition with very strong wind, heavy rain, and often thunder and lightning | G97: A lot of trees were blown down in the recent storm. | J97: 1 | K97: storm
A98: 16 | B98: 2 | C98: อย่างไร | D98: adv | E98: how | F98: in what way, or by what methods | G98: I was horrified to hear about how she had been treated. | J98: 1 | K98: how
A99: 16 | B99: 2 | C99: ข้อสรุป | D99: noun | E99: conclusion | F99: the final part of something | G99: I found the conclusion at the end of the film rather irritating. | J99: 1 | K99: conclusion
A100: 16 | B100: 2 | C100: ชาวต่างชาติ | D100: noun | E100: foreigner | F100: a person who comes from another country | G100: Jon is a foreigner. He isn't from this country but comes from Ireland. | J100: 1 | K100: foreigner
A101: 16 | B101: 2 | C101: กรุณา | D101: exp | E101: please | F101: used to make a request more polite, or make it stronger or urgent | G101: Could I have two cups of coffee and a tea, please? | J101: 1 | K101: please
A102: 16 | B102: 2 | C102: บันได | D102: noun | E102: stairs | F102: a set of steps that lead from one level of a building to another | G102: I had to climb a steep flight of stairs to her front door. | J102: 1 | K102: stairs
A103: 16 | B103: 2 | C103: วัยรุ่น | D103: noun | E103: teenage | F103: a young person between 13 and 19 years old | G103: The magazine is aimed at the teenager and young adult audience. | J103: 1 | K103: teenage
A104: 16 | B104: 3 | C104: โทรเลข | D104: noun | E104: telegram | F104: a piece of paper with a message sent by telegraph in the past | G104: A diplomatic telegram is the communication between an embassy and its country. | J104: 1 | K104: telegram
A105: 16 | B105: 3 | C105: แว่นตา | D105: noun | E105: glasses | F105: two small pieces of special glass or plastic in a frame worn in front of the eyes to improve sight | G105: Peter needs to wear reading glasses when looking at a computer screen. | J105: 1 | K105: glasses
A106: 16 | B106: 3 | C106: ขนมปิ้ง | D106: noun | E106: pastry | F106: food made from a mixture of flour, fat, and water, and baked | G106: Ann makes delicious pastry. You should try her apple pie. | J106: 1 | K106: pastry
A107: 16 | B107: 3 | C107: วัว | D107: noun | E107: bull | F107: a male cow, or the male of particular animals such as the elephant or the whale | G107: They did not see the sign by the gate saying 'Beware of the bull'. | J107: 1 | K107: bull
A108: 16 | B108: 3 | C108: ทำร้าย | D108: verb | E108: injure | F108: to hurt or cause physical harm to a person or animal | G108: He is worried that he will will injure his back if he lifts the heavy weights. | J108: 1 | K108: injure
A109: 16 | B109: 3 | C109: ศตวรรษ | D109: noun | E109: century | F109: a period of 100 years | G109: The city centre has scarcely changed in over a century. | J109: 1 | K109: century
A110: 17 | B110: 1 | C110: ถัก | D110: verb | E110: knit | F110: to make clothes, etc. by using two long needles to connect wool or another type of thread into joined rows | G110: She's pregnant and is going to knit baby clothes. | J110: 1 | K110: knit
A111: 17 | B111: 1 | C111: ใช้แล้ว | D111: adj | E111: recycled | F111: having been used before and then put through a process so that it can form a new product | G111: This newspaper is made of recycled paper. | J111: 1 | K111: recycled
A112: 17 | B112: 1 | C112: เสนอ | D112: verb | E112: offer | F112: to ask someone if they would like to have something | G112: I feel bad that I didn't offer any food to them. | J112: 1 | K112: offer
A113: 17 | B113: 1 | C113: เลิก | D113: verb | E113: quit | F113: to stop doing something or leave a job or a place | G113: Would you quit your job if you inherited lots of money? | J113: 1 | K113: quit
A114: 17 | B114: 1 | C114: ลายเซ็น | D114: noun | E114: signature | F114: your name written by yourself, always in the same way, usually to show that something has been written or agreed by you | G114: If you agree with the contract, put your signature at the end of the paper. | J114: 1 | K114: signature
A115: 17 | B115: 1 | C115: ไฟฟ้า | D115: adj | E115: electric | F115: using electricity for power | G115: To boil water easily, use an electric kettle. | J115: 1 | K115: electric
A116: 17 | B116: 2 | C116: น้ำมะนาว | D116: noun | E116: lemonade | F116: a drink made with the juice of lemons, water, and sugar | G116: The suffix '-ade' is used for carbonated soft drinks, such as cherryade or lemonade. | J116: 1 | K116: lemonade
A117: 17 | B117: 2 | C117: ค่าธรรมเนียม | D117: noun | E117: fee | F117: an amount of money charged for a service or for the use of something | G117: We had to take out money from the bank to pay the university entrance fee. | J117: 1 | K117: fee
A118: 17 | B118: 2 | C118: ก้อน | D118: noun | E118: lump | F118: a piece of a solid substance, usually with no particular shape | G118: Would you like one lump of sugar or two in your tea? | J118: 1 | K118: lump
A119: 17 | B119: 2 | C119: กล้วย | D119: noun | E119: banana | F119: a long, curved fruit with a yellow skin and soft, sweet, white flesh inside | G119: A banana split is an ice cream -based dessert, served in a long dish called a boat. | J119: 1 | K119: banana
A120: 17 | B120: 2 | C120: กรรไกร | D120: noun | E120: scissors | F120: a device used for cutting materials, consisting of two sharp blades which are joined in the middle | G120: Could you pass me the scissors, please? I need to cut open this plastic bag. | J120: 1 | K120: scissors
A121: 17 | B121: 2 | C121: แฟกซ์ | D121: noun | E121: fax | F121: a document that travels in electronic form along a phone line and is then printed on paper | G121: I'll send you a fax with the details of the proposal. | J121: 1 | K121: fax
A122: 17 | B122: 3 | C122: มุ่ง | D122: noun | E122: aim | F122: a result that your plans or actions are intended to achieve | G122: My main aim in life is to be a good husband and father. | J122: 1 | K122: aim
A123: 17 | B123: 3 | C123: เขา | D123: pron | E123: him | F123: used, usually after a verb or preposition, to refer to a man, boy or male animal | G123: If you see Kevin give him my love. | J123: 1 | K123: him
A124: 17 | B124: 3 | C124: หน้าอก | D124: noun | E124: chest | F124: the upper front part of the body between the stomach and the neck | G124: His shirt was open to the waist revealing a very hairy chest. | J124: 1 | K124: chest
A125: 17 | B125: 3 | C125: วัตถุ | D125: noun | E125: object | F125: a thing that you can see or touch but that is not usually a living animal, plant or person | G125: Look, there's a strange object in the sky! | J125: 1 | K125: object
A126: 17 | B126: 3 | C126: เป็ด | D126: noun | E126: duck | F126: a bird that lives by water, has webbed feet (= feet with skin between the toes), a short neck and a large beak | G126: My favourite Chinese meal is roast duck. | J126: 1 | K126: duck
A127: 17 | B127: 3 | C127: กังวล | D127: verb | E127: worry | F127: to think about problems or unpleasant things that might happen in a way that makes you feel unhappy and frightened | G127: Try not to worry. There's nothing you can do to change the situation. | J127: 1 | K127: worry
A128: 18 | B128: 1 | C128: หลับ | D128: adj | E128: asleep | F128: sleeping or not awake | G128: I fell asleep as soon as my head hit the pillow. | J128: 1 | K128: asleep
A129: 18 | B129: 1 | C129: รถไฟใต้ดิน | D129: noun | E129: subway | F129: an underground passage that allows people on foot to cross a busy road | G129: I had to walk in the subway in order to cross the busy road. | J129: 1 | K129: subway
A130: 18 | B130: 1 | C130: ส่ง | D130: noun | E130: delivery | F130: the act of taking goods, letters, parcels, etc. to people's houses or places of work | G130: We expect to take delivery of our new car next week. | J130: 1 | K130: delivery
A131: 18 | B131: 1 | C131: บริการตัวเอง | D131: noun | E131: self-service | F131: not being served by an employee but collecting goods or food yourself | G131: Sizzler restaurants have delicious a self-service salad bars. | J131: 1 | K131: self-service
A132: 18 | B132: 1 | C132: รุ่น | D132: noun | E132: generation | F132: all the people of about the same age within a society or within a particular family | G132: The younger generation smoke less than their parents did. | J132: 1 | K132: generation
A133: 18 | B133: 1 | C133: ระเบิด | D133: verb | E133: blow | F133: to move and make currents of air to move | G133: I wish you wouldn't blow smoke in my face. | J133: 1 | K133: blow
A134: 18 | B134: 2 | C134: ท่าเรือ | D134: noun | E134: quay | F134: a long structure, usually built of stone, where boats can be tied up to take on and off their goods | G134: Passengers will get off the ferry as soon as it comes along the quay in UK. | J134: 1 | K134: quay
A135: 18 | B135: 2 | C135: รักษา | D135: verb | E135: defend | F135: to protect someone or something against attack or criticism | G135: White blood cells help defend the body against infection. | J135: 1 | K135: defend
A136: 18 | B136: 2 | C136: เพื่อนร่วมงาน | D136: noun | E136: colleague | F136: one of a group of people who work together | G136: We're entertaining a colleague from Ben's office tonight. | J136: 1 | K136: colleague
A137: 18 | B137: 2 | C137: ห้องน้ำ | D137: noun | E137: lavatory | F137: a room equipped with a toilet and sink | G137: I went to the lavatory to use the toilet and wash my face. | J137: 1 | K137: lavatory
A138: 18 | B138: 2 | C138: กู้ | D138: verb | E138: recover | F138: to get back something lost, especially health, ability, possessions, etc | G138: It took her a long while to recover from her heart operation. | J138: 1 | K138: recover
A139: 18 | B139: 2 | C139: สำคัญ | D139: adj | E139: important | F139: necessary or of great value | G139: He's not amazingly handsome, but he's nice and that's more important. | J139: 1 | K139: important
A140: 18 | B140: 3 | C140: โรคภัยไข้เจ็บ | D140: noun | E140: illness | F140: a disease of the body or mind | G140: He died at home after a long illness. | J140: 1 | K140: illness
A141: 18 | B141: 3 | C141: วงออเคสตรา | D141: noun | E141: orchestra | F141: a large group of musicians who play together and are led by a conductor | G141: She's a cellist in the City of Birmingham Symphony Orchestra. | J141: 1 | K141: orchestra
A142: 18 | B142: 3 | C142: เป็นไปไม่ได้ | D142: adj | E142: impossible | F142: an action or event that cannot normally happen | G142: It was impossible to sleep because of the noise. | J142: 1 | K142: impossible
A143: 18 | B143: 3 | C143: ส่วนประกอบ | D143: noun | E143: composition | F143: the process or skill of writing music | G143: This concerto is one of her earlier/later compositions. | J143: 1 | K143: composition
A144: 18 | B144: 3 | C144: แนะนำ | D144: verb | E144: introduce | F144: to put something into use, operation, or a place for the first time | G144: The government is unlikely to introduce the new unpopular legislation. | J144: 1 | K144: introduce
A145: 18 | B145: 3 | C145: อูฐ | D145: noun | E145: camel | F145: a large animal that lives in the desert and has one or two humps on its back | G145: A camel, or “ship of the desert”, can carry heavy loads in hot climates. | J145: 1 | K145: camel
A146: 19 | B146: 1 | C146: พิการ | D146: adj | E146: disabled | F146: not having one or more of the physical or mental abilities that most people have | G146: The accident left him severely disabled. | J146: 1 | K146: disabled
A147: 19 | B147: 1 | C147: บัญชี | D147: noun | E147: account | F147: an arrangement with a bank to keep your money there and to allow you to take it out when you need to | G147: I paid the money into my bank account this morning. | J147: 1 | K147: account
A148: 19 | B148: 1 | C148: เข้า | D148: noun | E148: access | F148: the method or possibility of getting near to a place or person, or the right to use or look at something | G148: The only access to the village is by boat. | J148: 1 | K148: access
A149: 19 | B149: 1 | C149: รบกวน | D149: verb | E149: annoy | F149: to make someone angry | G149: It is starting to annoy me when people want a tip as well as a service charge. | J149: 1 | K149: annoy
A150: 19 | B150: 1 | C150: เครือข่าย | D150: noun | E150: network | F150: a large system consisting of many similar parts that are connected together to allow movement or communication | G150: Massive investment is needed to modernize the country's phone network. | J150: 1 | K150: network
A151: 19 | B151: 1 | C151: ประสบความสำเร็จ | D151: verb | E151: succeed | F151: achieve something and obtain the results that you wanted | G151: You need to be pretty tough to succeed in the property world. | J151: 1 | K151: succeed
A152: 19 | B152: 2 | C152: ร่าเริง | D152: adj | E152: lively | F152: having or showing a lot of energy and enthusiasm | G152: It's hard work teaching a class of lively children. | J152: 1 | K152: lively
A153: 19 | B153: 2 | C153: เข้า | D153: verb | E153: enter | F153: to come or go into a particular place | G153: The police are going to enter the building through the side door. | J153: 1 | K153: enter
A154: 19 | B154: 2 | C154: คาเฟ่ | D154: noun | E154: café | F154: a small restaurant where simple meals and drinks are served | G154: There's a little café on the corner that serves very good coffee. | H154: 1
A155: 19 | B155: 2 | C155: ดีใจ | D155: adj | E155: glad | F155: pleased and happy | G155: I'm glad to know the parcel arrived safely. | J155: 1 | K155: glad
A156: 19 | B156: 2 | C156: อาชีพ | D156: noun | E156: profession | F156: any type of work that needs special training or a particular skill | G156: He left the teaching profession in 2009 to set up his own business. | J156: 1 | K156: profession
A157: 19 | B157: 2 | C157: เชิงพาณิชย์ | D157: adj | E157: commercial | F157: related to buying and selling things | G157: The commercial future of the company looks very promising. | J157: 1 | K157: commercial
A158: 19 | B158: 3 | C158: แผนก | D158: noun | E158: department | F158: a part of an organization that deals with a particular area of study or work | G158: The accounts department are going to prepare the tax returns for this year. | J158: 1 | K158: department
A159: 19 | B159: 3 | C159: รัฐบาล | D159: noun | E159: government | F159: the group of people who officially control a country | G159: The government is expected to announce its tax proposals today. | J159: 1 | K159: government
A160: 19 | B160: 3 | C160: ขณะ | D160: noun | E160: moment | F160: a very short period of time | G160: Can you wait a moment? | J160: 1 | K160: moment
A161: 19 | B161: 3 | C161: แปรง | D161: noun | E161: brush | F161: an object with short pieces of stiff hair used for cleaning, tidying, or painting | G161: You'll need a stiff brush to scrape off the rust. | J161: 1 | K161: brush
A162: 19 | B162: 3 | C162: เหตุผล | D162: noun | E162: reason | F162: the cause of an event or situation or something which provides an excuse or explanation | G162: The reason for the disaster was engine failure, not human error. | J162: 1 | K162: reason
A163: 19 | B163: 3 | C163: คลาสสิก | D163: adj | E163: classical | F163: describes music that is considered to be part of a long especially formal tradition and to be of lasting value | G163: Do you prefer classical music like Mozart and Mahler, or pop? | J163: 1 | K163: classical
A164: 20 | B164: 1 | C164: บริเวณตั้งแคมป์ | D164: noun | E164: campsite | F164: a piece of land where people on holiday can camp | G164: The campsite is in a beautiful location next to the beach. | J164: 1 | K164: campsite
A165: 20 | B165: 1 | C165: ตั้งอยู่ | D165: adj | E165: situated | F165: in a particular position | G165: The school is situated near to the station. | J165: 1 | K165: situated
A166: 20 | B166: 1 | C166: เนินเขา | D166: noun | E166: hill | F166: an area of land that is higher than the surrounding land | G166: In the summer, the shepherds move their sheep up onto that hill over there. | J166: 1 | K166: hill
A167: 20 | B167: 1 | C167: พื้นบ้าน | D167: noun | E167: folk | F167: people, especially those of a particular group or type | G167: Ordinary folk can't afford cars like that. | J167: 1 | K167: folk
A168: 20 | B168: 1 | C168: ขอโทษ | D168: verb | E168: apologise | F168: to tell someone that you are sorry for having done something that has caused them problems or unhappiness | G168: Trains may be subject to delay. We apologise for any inconvenience caused. | J168: 1 | K168: apologise
A169: 20 | B169: 1 | C169: การอนุญาต | D169: noun | E169: permission | F169: something people are allowed to do by another authority | G169: Official permission has been granted for more building near the river. | J169: 1 | K169: permission
A170: 20 | B170: 2 | C170: ใส่ | D170: verb | E170: fill | F170: to make or become full; to use empty space | G170: I am going to fill the bucket with fresh water. | J170: 1 | K170: fill
A171: 20 | B171: 2 | C171: ขัดจังหวะ | D171: verb | E171: interrupt | F171: to stop a person from speaking for a short period by something you say or do | G171: We interrupt this normal broadcast to give you a news flash. | J171: 1 | K171: interrupt
A172: 20 | B172: 2 | C172: เวลา | D172: noun | E172: time | F172: the part of existence that is measured in minutes, days, or years | G172: He wants to spend more time with his family. | J172: 1 | K172: time
A173: 20 | B173: 2 | C173: อ่อน | D173: adj | E173: soft | F173: things, especially parts of the body, that are not hard or rough and feel pleasant and smooth when touched | G173: Soft tissue, such as flesh, allows X-rays through. | J173: 1 | K173: soft
A174: 20 | B174: 2 | C174: โทรศัพท์ | D174: noun | E174: phone | F174: a device which uses electrical or radio signals to speak with someone in another place with a similar device | G174: We speak on the phone about twice a week. | J174: 1 | K174: phone
A175: 20 | B175: 2 | C175: จิ๋ว | D175: adj | E175: tiny | F175: extremely small | G175: I'm sorry I got here a tiny bit late after the meeting started. | J175: 1 | K175: tiny
A176: 20 | B176: 3 | C176: ล้อ | D176: noun | E176: wheel | F176: a circular object connected at the centre to a bar, which is used for making vehicles move | G176: He lost control of his car when a front wheel hit a stone and the tire burst. | J176: 1 | K176: wheel
A177: 20 | B177: 3 | C177: บรรจุ | D177: verb | E177: contain | F177: to have something inside or include something as a part | G177: How much liquid do you think this bottle might contain? | J177: 1 | K177: contain
A178: 20 | B178: 3 | C178: ผู้ใหญ่ | D178: noun | E178: adult | F178: a person or animal that has grown to full size and strength | G178: An adult under English law is someone over 18 years old. | J178: 1 | K178: adult
A179: 20 | B179: 3 | C179: แนะนำ | D179: verb | E179: advise | F179: to give someone advice | G179: His doctor will always advise him against smoking. | J179: 1 | K179: advise
A180: 20 | B180: 3 | C180: สร้าง | D180: verb | E180: build | F180: make something by putting bricks or other materials together | G180: Contractors have started to build new houses on waste land near the town. | J180: 1 | K180: build
A181: 20 | B181: 3 | C181: ระยะทาง | D181: noun | E181: distance | F181: the amount of space between two places or things | G181: He travels quite a distance to work every day. | J181: 1 | K181: distance

Sheet M1 Sem 1b
A1: Week | B1: Part | C1: Thai | D1: Type | E1: Word | F1: Definition | G1: Sentence | H1: Coursebook | I1: PET in Coursebk | J1: PET only | K1: Pet Word | P1: Week | Q1: Part
A2: 11 | B2: 1 | C2: โรยตัว | D2: noun | E2: abseiling | F2: to go down a slope, holding to a rope which is fastened to the slope's top | G2: She went abseiling down the rock face. | H2: 1 | I2: 1 | K2: again | M2: Total Words | N2: 180 | P2: 11 | Q2: 1 | R2: =E2&", "&E3&", "&E4&", "&E5&", "&E6&", "&E7 -> abseiling, climate, band, figure, black, blond | S2: =C2&", "&C3&", "&C4&", "&C5&", "&C6&", "&C7 -> โรยตัว, ถุง, วงดนตรี, เลข, สีดำ, สีบลอนด์
A3: 11 | B3: 1 | C3: ถุง | D3: noun | E3: climate | F3: the general weather conditions usually found in a particular place | G3: My parents like the warm, dry climate of Arizona. | H3: 1 | I3: 1 | K3: climate | M3: SB Words in PET | N3: =COUNTIF(I2:I181,1) -> 135 | P3: 11 | Q3: 2 | R3: =E8&", "&E9&", "&E10&", "&E11&", "&E12&", "&E13 -> dentist, blue, brilliant, brown, bus, stop | S3: =C8&", "&C9&", "&C10&", "&C11&", "&C12&", "&C13 -> ทันตแพทย์, สีน้ำเงิน, สุกใส, สีน้ำตาล, รถบัส, หยุด
A4: 11 | B4: 1 | C4: วงดนตรี | D4: noun | E4: band | F4: a group of musicians who play modern music together | G4: Potato is a great Thai rock band. | H4: 1 | I4: 1 | K4: band | M4: SB % in PET | N4: =N3/N2 -> 0.75 | P4: 11 | Q4: 3 | R4: =E14&", "&E15&", "&E16&", "&E17&", "&E18&", "&E19 -> californian, cap, class, come, cricket, crisps | S4: =C14&", "&C15&", "&C16&", "&C17&", "&C18&", "&C19 -> แคลิฟอร์เนีย, ฝาครอบ, ชั้น, มา, จิ้งหรีด, มันฝรั่งทอดกรอบ
A5: 11 | B5: 1 | C5: เลข | D5: noun | E5: figure | F5: the symbol for a number or an amount expressed in numbers | G5: Can you read this figure? Is it a three or an eight? | J5: 1 | K5: figure | P5: 12 | Q5: 1 | R5: =E20&", "&E21&", "&E22&", "&E23&", "&E24&", "&E25 -> dark, digital, camera, dog, drink, exactly | S5: =C20&", "&C21&", "&C22&", "&C23&", "&C24&", "&C25 -> มืด, ดิจิตอล, กล้อง, สุนัข, ดื่ม, อย่างแน่นอน
A6: 11 | B6: 1 | C6: สีดำ | D6: adj | E6: black | F6: the darkest color there is, like night | G6: He was dressed all in black. | H6: 1 | I6: 1 | K6: black | M6: M1 Sem 1b | P6: 12 | Q6: 2 | R6: =E26&", "&E27&", "&E28&", "&E29&", "&E30&", "&E31 -> eye, fair, complexion, freckles, green, hair | S6: =C26&", "&C27&", "&C28&", "&C29&", "&C30&", "&C31 -> ตา, ธรรม, ผิว, กระ, สีเขียว, ผม
A7: 11 | B7: 1 | C7: สีบลอนด์ | D7: adj | E7: blond | F7: pale yellow or golden | G7: Do you think she’s a natural blonde, or is her hair bleached? | H7: 1 | P7: 12 | Q7: 3 | R7: =E32&", "&E33&", "&E34&", "&E35&", "&E36&", "&E37 -> hang, hurry, locker, long, last, math | S7: =C32&", "&C33&", "&C34&", "&C35&", "&C36&", "&C37 -> แขวน, รีบเร่ง, ห้องเย็น, ยาว, ล่าสุด, คณิตศาสตร์
A8: 11 | B8: 2 | C8: ทันตแพทย์ | D8: noun | E8: dentist | F8: a person whose job is treating people’s teeth | G8: My teeth are hurting. I think I must go to a dentist. | H8: 1 | I8: 1 | K8: dentist | M8: Added PET words | N8: =COUNTIF(J2:J181,1) -> 8 | P8: 13 | Q8: 1 | R8: =E38&", "&E39&", "&E40&", "&E41&", "&E42&", "&E43 -> mobile, nickname, orange, juice, pencil, case | S8: =C38&", "&C39&", "&C40&", "&C41&", "&C42&", "&C43 -> มือถือ, ชื่อเล่น, สีส้ม, น้ำผลไม้, ดินสอ, กรณี
A9: 11 | B9: 2 | C9: สีน้ำเงิน | D9: adj | E9: blue | F9: of the colour of the sky without clouds on a bright day, or a darker or lighter type of this | G9: The sky is a beautiful shade of blue. | H9: 1 | I9: 1 | K9: blue | P9: 13 | Q9: 2 | R9: =E44&", "&E45&", "&E46&", "&E47&", "&E48&", "&E49 -> pet, plump, red, short, skiing, slim | S9: =C44&", "&C45&", "&C46&", "&C47&", "&C48&", "&C49 -> สัตว์เลี้ยง, อวบ, สีแดง, สั้น, เล่นสกี, บาง
A10: 11 | B10: 2 | C10: สุกใส | D10: adj | E10: brilliant | F10: very good | G10: Armstrong was one of the most brilliant musicians in jazz. | H10: 1 | I10: 1 | K10: brilliant | M10: PET Words Total | N10: =N3+N8 -> 143 | P10: 13 | Q10: 3 | R10: =E50&", "&E51&", "&E52&", "&E53&", "&E54&", "&E55 -> small, star, sign, suntan, swimming, tall | S10: =C50&", "&C51&", "&C52&", "&C53&", "&C54&", "&C55 -> เล็ก, ดาว, ลงชื่อ, ผิวเกรียมเพราะถูกแดด, ว่ายน้ำ, สูง
A11: 11 | B11: 2 | C11: สีน้ำตาล | D11: adj | E11: brown | F11: the color of chocolate or earth | G11: He was wearing a brown shirt. | H11: 1 | I11: 1 | K11: brown | M11: Pet Words % | N11: =N10/N2 -> 0.7944444444 | P11: 14 | Q11: 1 | R11: =E56&", "&E57&", "&E58&", "&E59&", "&E60&", "&E61 -> water polo, what's up, white, you'll never guess, bin, carton | S11: =C56&", "&C57&", "&C58&", "&C59&", "&C60&", "&C61 -> โปโลน้ำ, เป็นไงบ้าง, ขาว, คุณจะไม่คิดว่า, ถัง, กล่องกระดาษ
A12: 11 | B12: 2 | C12: รถบัส | D12: noun | E12: bus | F12: a large vehicle in which people are driven from one place to another | G12: The tour bus was the easiest way to see the area. | H12: 1 | I12: 1 | K12: bus | P12: 14 | Q12: 2 | R12: =E62&", "&E63&", "&E64&", "&E65&", "&E66&", "&E67 -> glass, packaging, paper, plastic, recyclable, reduce | S12: =C62&", "&C63&", "&C64&", "&C65&", "&C66&", "&C67 -> แก้ว, บรรจุภัณฑ์, กระดาษ, พลาสติก, รีไซเคิล, ลด
A13: 11 | B13: 2 | C13: หยุด | D13: verb | E13: stop | F13: to finish doing something that you were doing | G13: When do you think the snow will stop? | H13: 1 | I13: 1 | K13: stop | M13: Nouns | N13: =COUNTIF($D$2:$D$201,"noun") -> 105 | P13: 14 | Q13: 3 | R13: =E68&", "&E69&", "&E70&", "&E71&", "&E72&", "&E73 -> rubbish, polystyrene, tray, tube, few, little | S13: =C68&", "&C69&", "&C70&", "&C71&", "&C72&", "&C73 -> ขยะมูลฝอย, สไตรีน, ถาด, หลอด, สองสาม, น้อย
A14: 11 | B14: 3 | C14: แคลิฟอร์เนีย | D14: adj | E14: californian | F14: someone who lives and works in California, USA. | G14: Most people in Hollywood are Californians. | H14: 1 | M14: Verbs | N14: =COUNTIF($D$2:$D$201,"verb") -> 32 | P14: 15 | Q14: 1 | R14: =E74&", "&E75&", "&E76&", "&E77&", "&E78&", "&E79 -> lot, any, bottle, bread, butter, cheese | S14: =C74&", "&C75&", "&C76&", "&C77&", "&C78&", "&C79 -> มาก, ใด, ขวด, ขนมปัง, เนย, ชีส
A15: 11 | B15: 3 | C15: ฝาครอบ | D15: noun | E15: cap | F15: a soft, light hat, esp. one with a curved part sticking out at the front | G15: My uncle must have a hundred baseball caps to choose from. | H15: 1 | I15: 1 | K15: cap | M15: Adjectives | N15: =COUNTIF($D$2:$D$201,"adj") -> 32 | P15: 15 | Q15: 2 | R15: =E80&", "&E81&", "&E82&", "&E83&", "&E84&", "&E85 -> cup, cupboard, egg, enough, flour, food | S15: =C80&", "&C81&", "&C82&", "&C83&", "&C84&", "&C85 -> ถ้วย, ตู้, ไข่, พอ, แป้ง, อาหาร
A16: 11 | B16: 3 | C16: ชั้น | D16: noun | E16: class | F16: a group of students, taught together in a particular subject at school | G16: I am in class M1. | H16: 1 | I16: 1 | K16: class | M16: Adverbs | N16: =COUNTIF($D$2:$D$201,"adv") -> 5 | P16: 15 | Q16: 3 | R16: =E86&", "&E87&", "&E88&", "&E89&", "&E90&", "&E91 -> fork, bomb, half, ingredient, afford, lunch | S16: =C86&", "&C87&", "&C88&", "&C89&", "&C90&", "&C91 -> ส้อม, วางระเบิด, ครึ่ง, ส่วนผสม, จ่าย, อาหารกลางวัน
A17: 11 | B17: 3 | C17: มา | D17: verb | E17: come | F17: to move or travel towards the speaker or with the speaker | G17: Tomorrow, my uncle will come here from Bangkok. | H17: 1 | I17: 1 | K17: come | M17: Pronouns | N17: =COUNTIF($D$2:$D$201,"pron") -> 1 | P17: 16 | Q17: 1 | R17: =E92&", "&E93&", "&E94&", "&E95&", "&E96&", "&E97 -> many, milk, packet, plate, rice, sugar | S17: =C92&", "&C93&", "&C94&", "&C95&", "&C96&", "&C97 -> หลาย, นม, ห่อ, จาน, ข้าว, น้ำตาล
A18: 11 | B18: 3 | C18: จิ้งหรีด | D18: noun | E18: cricket | F18: a team sport popular in England, played with a small, hard ball and a bat | G18: We all went to the village green to play the old English game of cricket together. | H18: 1 | M18: Prepositions | N18: =COUNTIF($D$2:$D$201,"prep") -> 3 | P18: 16 | Q18: 2 | R18: =E98&", "&E99&", "&E100&", "&E101&", "&E102&", "&E103 -> salt, sandwich, some, spoon, strawberry, demonstration | S18: =C98&", "&C99&", "&C100&", "&C101&", "&C102&", "&C103 -> เกลือ, แซนด์วิช, บาง, ช้อน, สตรอเบอร์รี่, สาธิต
A19: 11 | B19: 3 | C19: มันฝรั่งทอดกรอบ | D19: noun | E19: crisps | F19: a very thin slice of potato fried until stiff, and sometimes flavored | G19: Lays are greazt tasty crisps or potato chips. | H19: 1 | M19: Conjunctions | N19: =COUNTIF($D$2:$D$201,"conj") -> 0 | P19: 16 | Q19: 3 | R19: =E104&", "&E105&", "&E106&", "&E107&", "&E108&", "&E109 -> sweets, after, alright, ask, bike, bring | S19: =C104&", "&C105&", "&C106&", "&C107&", "&C108&", "&C109 -> ขนม, หลังจาก, เป็นไร, ถาม, จักรยาน, นำมาซึ่ง
A20: 12 | B20: 1 | C20: มืด | D20: adj | E20: dark | F20: with little or no light | G20: It was too dark to see much of anything. | H20: 1 | I20: 1 | K20: dark | M20: Expressions | N20: =COUNTIF($D$2:$D$201,"exp") -> 2 | P20: 17 | Q20: 1 | R20: =E110&", "&E111&", "&E112&", "&E113&", "&E114&", "&E115 -> cheat, chew, gum, classroom, day, attract | S20: =C110&", "&C111&", "&C112&", "&C113&", "&C114&", "&C115 -> โกง, เคี้ยว, เหงือก, ห้องเรียน, วัน, ดึงดูดใจ
A21: 12 | B21: 1 | C21: ดิจิตอล | D21: adj | E21: digital | F21: recording or showing information in the form of numbers, esp. 0 and 1 | G21: The old movie was re-released with digital sound. | H21: 1 | I21: 1 | K21: digital | P21: 17 | Q21: 2 | R21: =E116&", "&E117&", "&E118&", "&E119&", "&E120&", "&E121 -> during, eat, guess, homework, jewellery, laptop | S21: =C116&", "&C117&", "&C118&", "&C119&", "&C120&", "&C121 -> ในระหว่าง, กิน, เดา, การบ้าน, เครื่องเพชรพลอย, แล็ปท็อป
A22: 12 | B22: 1 | C22: กล้อง | D22: noun | E22: camera | F22: a device for taking photographs or making films or television programmes | G22: Smile while I take your photo with my camera. | H22: 1 | I22: 1 | K22: camera | P22: 17 | Q22: 3 | R22: =E122&", "&E123&", "&E124&", "&E125&", "&E126&", "&E127 -> late, leave, curry, look, loud, makeup | S22: =C122&", "&C123&", "&C124&", "&C125&", "&C126&", "&C127 -> สาย, ออกจาก, แกง, มอง, ดัง, แต่งหน้า
A23: 12 | B23: 1 | C23: สุนัข | D23: noun | E23: dog | F23: an animal with four legs, commonly kept as a pet, and sometimes used to guard things | G23: It is said that a dog is man's best friend. | H23: 1 | I23: 1 | K23: dog | P23: 18 | Q23: 1 | R23: =E128&", "&E129&", "&E130&", "&E131&", "&E132&", "&E133 -> maybe, mess, net, contents, night, notebook | S23: =C128&", "&C129&", "&C130&", "&C131&", "&C132&", "&C133 -> บางที, ความยุ่งเหยิง, สุทธิ, เนื้อหา, คืน, สมุดบันทึก
A24: 12 | B24: 1 | C24: ดื่ม | D24: noun | E24: drink | F24: an amount of liquid which is taken into the body through the mouth | G24: Would you like a drink, tea or coffee? | H24: 1 | I24: 1 | K24: drink | P24: 18 | Q24: 2 | R24: =E134&", "&E135&", "&E136&", "&E137&", "&E138&", "&E139 -> photograph, play, possession, quick, read, rucksack | S24: =C134&", "&C135&", "&C136&", "&C137&", "&C138&", "&C139 -> ถ่ายภาพ, เล่น, สมบัติ, รวดเร็ว, อ่าน, เครื่องหลังของนักไต่เขา
A25: 12 | B25: 1 | C25: อย่างแน่นอน | D25: adv | E25: exactly | F25: in a complete and correct way; not more or less than a particular amount | G25: Make sure you measure the window exactly, otherwise the shade won’t fit. | H25: 1 | P25: 18 | Q25: 3 | R25: =E140&", "&E141&", "&E142&", "&E143&", "&E144&", "&E145 -> rule, run, send, shout, skateboard, snack | S25: =C140&", "&C141&", "&C142&", "&C143&", "&C144&", "&C145 -> กฎ, วิ่ง, ส่ง, ร้องตะโกน, สเกตบอร์ด, ขนมขบเคี้ยว
A26: 12 | B26: 2 | C26: ตา | D26: noun | E26: eye | F26: one of the pair of organs of seeing in the faces of humans and animals | G26: She looked at me with her green eyes. | H26: 1 | I26: 1 | K26: eye | P26: 19 | Q26: 1 | R26: =E146&", "&E147&", "&E148&", "&E149&", "&E150&", "&E151 -> surf, tell, text, thing, husband, tidy | S26: =C146&", "&C147&", "&C148&", "&C149&", "&C150&", "&C151 -> ท่อง, บอก, ข้อความ, สิ่ง, สามี, เรียบร้อย
A27: 12 | B27: 2 | C27: ธรรม | D27: adj | E27: fair | F27: treating someone in a way that is right or reasonable according to the rules | G27: All he asks is a fair chance to prove his innocence. | H27: 1 | I27: 1 | K27: fair | P27: 19 | Q27: 2 | R27: =E152&", "&E153&", "&E154&", "&E155&", "&E156&", "&E157 -> jail, trainers, turn off, uniform, until, use | S27: =C152&", "&C153&", "&C154&", "&C155&", "&C156&", "&C157 -> คุก, การฝึกอบรม, ปิดสวิตช์, เหมือนกัน, จนกระทั่ง, ใช้
A28: 12 | B28: 2 | C28: ผิว | D28: noun | E28: complexion | F28: the color or appearance of the skin of a person’s face | G28: Use Pinds cream to get a smooth white complexion on your face. | H28: 1 | P28: 19 | Q28: 3 | R28: =E158&", "&E159&", "&E160&", "&E161&", "&E162&", "&E163 -> valuable, wear, almost, average, billion, bizarre | S28: =C158&", "&C159&", "&C160&", "&C161&", "&C162&", "&C163 -> มีคุณค่า, สวม, เกือบจะ, เฉลี่ย, พันล้าน, แปลกประหลาด
A29: 12 | B29: 2 | C29: กระ | D29: noun | E29: freckles | F29: a small pale brown spot on the skin, usually on the face | G29: The brothers were in their early teens, and both had reddish hair and freckles. | H29: 1 | P29: 20 | Q29: 1 | R29: =E164&", "&E165&", "&E166&", "&E167&", "&E168&", "&E169 -> cry, dexterity, dish, doorbell, fact, finger | S29: =C164&", "&C165&", "&C166&", "&C167&", "&C168&", "&C169 -> ร้องไห้, ความชำนาญ, จาน, ออด, ความจริง, นิ้ว
A30: 12 | B30: 2 | C30: สีเขียว | D30: adj | E30: green | F30: the color that is a mixture of blue and yellow; the color of grass | G30: The grass is a beautiful shade of green. | H30: 1 | I30: 1 | K30: green | P30: 20 | Q30: 2 | R30: =E170&", "&E171&", "&E172&", "&E173&", "&E174&", "&E175 -> grow, index, meal, meat, onion, peel | S30: =C170&", "&C171&", "&C172&", "&C173&", "&C174&", "&C175 -> ขึ้น, ดัชนี, อาหาร, เนื้อ, หอม, เปลือก
A31: 12 | B31: 2 | C31: ผม | D31: noun | E31: hair | F31: the mass of thin thread-like structures on the head or body part | G31: I have to get my hair cut this week. | H31: 1 | I31: 1 | K31: hair | P31: 20 | Q31: 3 | R31: =E176&", "&E177&", "&E178&", "&E179&", "&E180&", "&E181 -> pickle, seaside, sensitive, shape, sleep, spicy | S31: =C176&", "&C177&", "&C178&", "&C179&", "&C180&", "&C181 -> ดอง, ริมทะเล, รู้สึกไว, รูปร่าง, นอน, รสเผ็ดร้อน
A32: 12 | B32: 3 | C32: แขวน | D32: verb | E32: hang | F32: to fasten or support something at the top leaving the other parts free to move | G32: I plan to hang this picture in the hall. | H32: 1 | I32: 1 | K32: hang
A33: 12 | B33: 3 | C33: รีบเร่ง | D33: verb | E33: hurry | F33: to move or do things more quickly than normal or to make someone do this | G33: We have to hurry if we’re going to make it there in time. | H33: 1 | I33: 1 | K33: hurry | S33: Extra
A34: 12 | B34: 3 | C34: ห้องเย็น | D34: noun | E34: locker | F34: a tall, metal cabinet in which someone can lock his or her possessions | G34: When you change clothes, place your old clothes in your locker. | H34: 1 | I34: 1 | K34: locker
A35: 12 | B35: 3 | C35: ยาว | D35: adj | E35: long | F35: being a distance between two points that is more than average or usual | G35: There was a long line at the post office. | H35: 1 | I35: 1 | K35: long
A36: 12 | B36: 3 | C36: ล่าสุด | D36: noun | E36: last | F36: the person or thing after everyone or everything else | G36: Heather was the last to go to bed and the first to get up. | H36: 1 | I36: 1 | K36: last
A37: 12 | B37: 3 | C37: คณิตศาสตร์ | D37: noun | E37: math | F37: short for mathematics; the science of numbers and their relationships | G37: I calculate the answer using a math formula. | H37: 1
A38: 13 | B38: 1 | C38: มือถือ | D38: adj | E38: mobile | F38: able to move easily or be easily moved | G38: The Marines are a highly mobile force and can get anywhere fast. | H38: 1 | I38: 1 | K38: mobile
A39: 13 | B39: 1 | C39: ชื่อเล่น | D39: noun | E39: nickname | F39: an informal name for someone, often based on the person's characteristic | G39: My name is Apasit, but my nickname is MegaBite. | H39: 1
A40: 13 | B40: 1 | C40: สีส้ม | D40: noun | E40: orange | F40: a round, orange-colored fruit that is valued mainly for its sweet juice | G40: I peel an orange before I eat this orange-coloured fruit. | H40: 1 | I40: 1 | K40: orange
A41: 13 | B41: 1 | C41: น้ำผลไม้ | D41: noun | E41: juice | F41: the liquid that comes from fruit or vegetables | G41: On a hot day, I like to drink some apple juice. | H41: 1 | I41: 1 | K41: juice
A42: 13 | B42: 1 | C42: ดินสอ | D42: noun | E42: pencil | F42: a thin tube-shaped device for writing or drawing in light gray | G42: Use a pencil so you can rub out mistakes easily. | H42: 1 | I42: 1 | K42: pencil
A43: 13 | B43: 1 | C43: กรณี | D43: noun | E43: case | F43: a container used for protecting or storing things | G43: Pack your suitcase with clothes before you fly away on holiday. | H43: 1 | I43: 1 | K43: case
A44: 13 | B44: 2 | C44: สัตว์เลี้ยง | D44: noun | E44: pet | F44: an animal that is kept in the home as a companion and treated affectionately | G44: She has an lovely pet. It's a dog called Rover. | H44: 1 | I44: 1 | K44: pet
A45: 13 | B45: 2 | C45: อวบ | D45: adj | E45: plump | F45: having a pleasantly soft rounded body or shape | G45: The berries are plump and juicy. | H45: 1
A46: 13 | B46: 2 | C46: สีแดง | D46: adj | E46: red | F46: the color of fresh blood | G46: He cut his finger and red blood spilled onto his clothes. | H46: 1 | I46: 1 | K46: red
A47: 13 | B47: 2 | C47: สั้น | D47: adj | E47: short | F47: small in length, distance or height | G47: She doesn't have long hair. She has short hair. | H47: 1 | I47: 1 | K47: short
A48: 13 | B48: 2 | C48: เล่นสกี | D48: noun | E48: skiing | F48: using a pair of long, narrow pieces, fastened to boots in order to move over snow | G48: We went skiing down the beautiful, white, snowy mountain. | H48: 1
A49: 13 | B49: 2 | C49: บาง | D49: adj | E49: slim | F49: attractively thin | G49: Miss Thailand was not short and fat. She was tall and slim. | H49: 1 | I49: 1 | K49: slim
A50: 13 | B50: 3 | C50: เล็ก | D50: adj | E50: small | F50: less in size or amount than is average | G50: Those jackets come in small, medium, and large sizes. | H50: 1 | I50: 1 | K50: small
A51: 13 | B51: 3 | C51: ดาว | D51: noun | E51: star | F51: a large ball of burning gas in space, seen from Earth as a point of light at night | G51: The Pole Star is the brightest star in the sky. | H51: 1 | I51: 1 | K51: star
A52: 13 | B52: 3 | C52: ลงชื่อ | D52: noun | E52: sign | F52: a written or printed mark that has a standard meaning | G52: The sign says 'No entry'. | H52: 1 | I52: 1 | K52: sign
A53: 13 | B53: 3 | C53: ผิวเกรียมเพราะถูกแดด | D53: noun | E53: suntan | F53: darker skin color that results from being in the sun | G53: He played on the neach and got a really dark suntan. | H53: 1
A54: 13 | B54: 3 | C54: ว่ายน้ำ | D54: noun | E54: swimming | F54: a time when you swim | G54: I enjoy swimming in the sea. | H54: 1 | I54: 1 | K54: swimming
A55: 13 | B55: 3 | C55: สูง | D55: adj | E55: tall | F55: of more than average height, or of a particular height | G55: The Empire State Building is a very tall building. | H55: 1 | I55: 1 | K55: tall
A56: 14 | B56: 1 | C56: โปโลน้ำ | D56: noun | E56: water polo | F56: a game in water where two teamsputt the ball into the other's goal | G56: Let's jump into the pool with the ball and play a game of water polo. | H56: 1
A57: 14 | B57: 1 | C57: เป็นไงบ้าง | D57: exp | E57: what's up | F57: an expression about someone's health, similar to 'How are you?' | G57: Hi, man. How are you. What's up? | H57: 1
A58: 14 | B58: 1 | C58: ขาว | D58: adj | E58: white | F58: of a colour like that of snow, milk or bone | G58: Some people like red wine, but I prefer white wine. | H58: 1 | I58: 1 | K58: white
A59: 14 | B59: 1 | C59: คุณจะไม่คิดว่า | D59: exp | E59: you'll never guess | F59: an expression used to introduce a suprising fact | G59: You'll never guess. All of us got an 'A' in Aj.Tim's class. | H59: 1
A60: 14 | B60: 1 | C60: ถัง | D60: noun | E60: bin | F60: a trash can (US) is used for depositing rubbish | G60: Throw that old paper into the bin. We don't need it anymore. | H60: 1 | I60: 1 | K60: bin
A61: 14 | B61: 1 | C61: กล่องกระดาษ | D61: noun | E61: carton | F61: a container made from cardboard or plastic for drinks | G61: I went to 7-11 and bought a carton of orange juice this morning. | H61: 1
A62: 14 | B62: 2 | C62: แก้ว | D62: noun | E62: glass | F62: a hard transparent material, used to make windows | G62: She poured some milk into a glass. | H62: 1 | I62: 1 | K62: glass
A63: 14 | B63: 2 | C63: บรรจุภัณฑ์ | D63: noun | E63: packaging | F63: used to protect products for distribution | G63: It came shrink-wrapped in its original packaging. | H63: 1
A64: 14 | B64: 2 | C64: กระดาษ | D64: noun | E64: paper | F64: a thin, material made from wood used for writing letters or books | G64: Put some of your good ideas down on a sheet of paper or in your notebooks. | H64: 1 | I64: 1 | K64: paper
A65: 14 | B65: 2 | C65: พลาสติก | D65: adj | E65: plastic | F65: an artificial substance, shaped when soft, made form an oil base | G65: I bought Coca Cola in a plastic bottle. | H65: 1 | I65: 1 | K65: plastic
A66: 14 | B66: 2 | C66: รีไซเคิล | D66: adj | E66: recyclable | F66: able to be re-used | G66: Are plastic bottles recyclable or do they go in the garbage? | H66: 1
A67: 14 | B67: 2 | C67: ลด | D67: verb | E67: reduce | F67: to make something smaller in size, amount, degree, importance | G67: The prices have been reduced. Now they are lower than ever! | H67: 1 | I67: 1 | K67: reduce
A68: 14 | B68: 3 | C68: ขยะมูลฝอย | D68: noun | E68: rubbish | F68: waste material or things that are no longer wanted or needed | G68: I cleaned my bedroom and threw out a lot of rubbish that I didn't need anymore. | H68: 1 | I68: 1 | K68: rubbish
A69: 14 | B69: 3 | C69: สไตรีน | D69: noun | E69: polystyrene | F69: a light white plastic used to protect delicate objects inside containers | G69: Each year, six billion plastic, polystyrene, and paper cups are used, but few are recycled. | H69: 1
A70: 14 | B70: 3 | C70: ถาด | D70: noun | E70: tray | F70: a flat container, with slightly raised edges, for carrying food and drinks | G70: She set the tray down between them. | H70: 1
A71: 14 | B71: 3 | C71: หลอด | D71: noun | E71: tube | F71: a long hollow cylinder used for containing liquids or gases | G71: Can you pass me the tube of toothpaste? I need to brush my teeth. | H71: 1 | I71: 1 | K71: tube
A72: 14 | B72: 3 | C72: สองสาม | D72: adj | E72: few | F72: a small number, not many, or not enough | G72: He is one of the few (people) I can trust to keep a secret. | H72: 1 | I72: 1 | K72: few
A73: 14 | B73: 3 | C73: น้อย | D73: adj | E73: little | F73: small in size or amount, or brief in time | G73: They have very little money. | H73: 1 | I73: 1 | K73: little
A74: 15 | B74: 1 | C74: มาก | D74: noun | E74: lot | F74: a large amount or number of something | G74: I saved a lot of money with those coupons | H74: 1 | I74: 1 | K74: lot
A75: 15 | B75: 1 | C75: ใด | D75: adj | E75: any | F75: used in negative statements and questions) some, or even the smallest amount (of) | G75: There wasn't any snow on the ground this winter. | H75: 1 | I75: 1 | K75: any
A76: 15 | B76: 1 | C76: ขวด | D76: noun | E76: bottle | F76: a container for liquids, usually made of glass or plastic, with a narrow neck | G76: Perfume is usually sold in very distinct and special-looking bottles. | H76: 1 | I76: 1 | K76: bottle
A77: 15 | B77: 1 | C77: ขนมปัง | D77: noun | E77: bread | F77: a basic food made from flour, water, and yeast mixed together and baked | G77: I usually have a slice of toasted bread and a boiled egg for breakfast. | H77: 1 | I77: 1 | K77: bread
A78: 15 | B78: 1 | C78: เนย | D78: noun | E78: butter | F78: a pale yellow solid containing fat from cream, used in cooking | G78: We use a lot of butter on bread when making sandwiches. | H78: 1 | I78: 1 | K78: butter
A79: 15 | B79: 1 | C79: ชีส | D79: noun | E79: cheese | F79: a type of solid food made from milk | G79: I’d like a pizza with extra cheese, please. | H79: 1 | I79: 1 | K79: cheese
A80: 15 | B80: 2 | C80: ถ้วย | D80: noun | E80: cup | F80: a small, round container with a handle, used for hot drinks such as tea | G80: Would you like a cup of coffee? | H80: 1 | I80: 1 | K80: cup
A81: 15 | B81: 2 | C81: ตู้ | D81: noun | E81: cupboard | F81: a piece of furniture with a door behind which is space for storing things | G81: I put all my plates into the kitchen cupboard, and close the doors. | H81: 1 | I81: 1 | K81: cupboard
A82: 15 | B82: 2 | C82: ไข่ | D82: noun | E82: egg | F82: an oval, rounded object from which a baby bird is born | G82: A traditional English breakfast is bacon and egg. | H82: 1 | I82: 1 | K82: egg
A83: 15 | B83: 2 | C83: พอ | D83: adv | E83: enough | F83: as much as is necessary; in the amount needed | G83: Do we have enough lettuce for a salad? | H83: 1 | I83: 1 | K83: enough
A84: 15 | B84: 2 | C84: แป้ง | D84: noun | E84: flour | F84: powder made from grain, esp. wheat, used for making bread, cakes, pasta, pastry, | G84: Add two cups of flour with an egg to make a pancake. | H84: 1 | I84: 1 | K84: flour
A85: 15 | B85: 2 | C85: อาหาร | D85: noun | E85: food | F85: something that people and animals eat, or plants absorb, to keep them alive | G85: There were a lot of frozen food in the refrigerator. | H85: 1 | I85: 1 | K85: food
A86: 15 | B86: 3 | C86: ส้อม | D86: noun | E86: fork | F86: a small object with three or four points to pick up food | G86: Europeans usually eat with a knife and a fork. | H86: 1 | I86: 1 | K86: fork
A87: 15 | B87: 3 | C87: วางระเบิด | D87: noun | E87: bomb | F87: a weapon that explodes | G87: The bomb went off, destroying cars and breaking windows. | J87: 1 | K87: bomb
A88: 15 | B88: 3 | C88: ครึ่ง | D88: pron | E88: half | F88: either of the two equal parts that make up a whole | G88: Fifty percent of the students are Thai and the other half are Japanese. | H88: 1 | I88: 1 | K88: half
A89: 15 | B89: 3 | C89: ส่วนผสม | D89: noun | E89: ingredient | F89: one of the parts in a mixture | G89: Stir all the ingredients into the water to make the stew. | H89: 1
A90: 15 | B90: 3 | C90: จ่าย | D90: verb | E90: afford | F90: to have enough money or time to buy, keep, or do something | G90: I don’t know how he can afford a new car. | H90: 1 | I90: 1 | K90: afford
A91: 15 | B91: 3 | C91: อาหารกลางวัน | D91: noun | E91: lunch | F91: a meal eaten in the middle of the day | G91: Lunch is the meal I eat in the middle of the day at noon. | H91: 1 | I91: 1 | K91: lunch
A92: 16 | B92: 1 | C92: หลาย | D92: adj | E92: many | F92: a large number (of), or a lot (of) | G92: Many people bought tickets for the concert. | H92: 1 | I92: 1 | K92: many
A93: 16 | B93: 1 | C93: นม | D93: noun | E93: milk | F93: the white liquid produced esp. by cows which people drink | G93: Would you like milk and sugar in your coffee? | H93: 1 | I93: 1 | K93: milk
A94: 16 | B94: 1 | C94: ห่อ | D94: noun | E94: packet | F94: a small package or envelope, or a collection of things in it | G94: I went to the shop to buy a packet of Lay's crisps. | H94: 1 | I94: 1 | K94: packet
A95: 16 | B95: 1 | C95: จาน | D95: noun | E95: plate | F95: a flat, round dish that you eat from or serve food from | G95: Dominic helped himself to a plate of spaghetti. | H95: 1 | I95: 1 | K95: plate
A96: 16 | B96: 1 | C96: ข้าว | D96: noun | E96: rice | F96: the small seeds of of grass, eaten as food | G96: Rice is grown in paddy fields, and is the staple diet for half the world's population. | H96: 1 | I96: 1 | K96: rice
A97: 16 | B97: 1 | C97: น้ำตาล | D97: noun | E97: sugar | F97: a sweet substance from plants to make food and drinks sweet | G97: Sugar is used to make food taste sweeter. | H97: 1 | I97: 1 | K97: sugar
A98: 16 | B98: 2 | C98: เกลือ | D98: noun | E98: salt | F98: white substance, found in sea water to add flavor to food | G98: Add salt and pepper to season the food to suit your taste. | H98: 1 | I98: 1 | K98: salt
A99: 16 | B99: 2 | C99: แซนด์วิช | D99: noun | E99: sandwich | F99: slices or pieces of meat between two pieces of bread | G99: Many American children eat peanut butter and jelly sandwiches for lunch. | H99: 1 | I99: 1 | K99: sandwich
A100: 16 | B100: 2 | C100: บาง | D100: adj | E100: some | F100: an amount not known or not stated, or being a part of something | G100: We didn't finish everything but we did get some things done. | H100: 1 | I100: 1 | K100: some
A101: 16 | B101: 2 | C101: ช้อน | D101: noun | E101: spoon | F101: a round hollow shape with a handle for mixing and eating food | G101: I use a spoon to eat my morning ceral breakfast. | H101: 1 | I101: 1 | K101: spoon
A102: 16 | B102: 2 | C102: สตรอเบอร์รี่ | D102: noun | E102: strawberry | F102: a small juicy red fruit with small brown seeds on its surface | G102: I like fresh red strawberry ice cream with cream on a hot summer day. | H102: 1 | I102: 1 | K102: strawberry
A103: 16 | B103: 2 | C103: สาธิต | D103: noun | E103: demonstration | F103: showing someone how to do something or how something works | G103: Let me give you a demonstration of how the camera works. | J103: 1 | K103: demonstration
A104: 16 | B104: 3 | C104: ขนม | D104: noun | E104: sweets | F104: a sweet food made from sugar or chocolate (US candy) | G104: My dentist told me to stay away from sweets, candy, and sugary food. | H104: 1
A105: 16 | B105: 3 | C105: หลังจาก | D105: prep | E105: after | F105: following in time, place, or order | G105: Repeat these words after me. | H105: 1 | I105: 1 | K105: after
A106: 16 | B106: 3 | C106: เป็นไร | D106: adj | E106: alright | F106: all things are in order and correct | G106: He didn't hurt himself. He is alright. | H106: 1 | I106: 1 | K106: alright
A107: 16 | B107: 3 | C107: ถาม | D107: verb | E107: ask | F107: to put a question to someone, or to request an answer from someone | G107: Can I ask you a question? | H107: 1 | I107: 1 | K107: ask
A108: 16 | B108: 3 | C108: จักรยาน | D108: noun | E108: bike | F108: a bicycle or motorbike | G108: He rides his Yamaha bike to school. | H108: 1 | I108: 1 | K108: bike
A109: 16 | B109: 3 | C109: นำมาซึ่ง | D109: verb | E109: bring | F109: to take or carry someone or something to a place or a person | G109: Please come here and bring that book with you. | H109: 1 | I109: 1 | K109: bring
A110: 17 | B110: 1 | C110: โกง | D110: verb | E110: cheat | F110: to behave in a dishonest way in order to get what you want | G110: Don't cheat or people will never trust you again. | H110: 1 | I110: 1 | K110: cheat
A111: 17 | B111: 1 | C111: เคี้ยว | D111: verb | E111: chew | F111: to crush food into smaller, softer pieces with the teeth so that it is easier to swallow | G111: The steak was tough and hard to chew. | H111: 1
A112: 17 | B112: 1 | C112: เหงือก | D112: noun | E112: gum | F112: a sticky substance from plants, used for sticking things together | G112: Most teachers dont allow their students to chew gum in class. | H112: 1 | I112: 1 | K112: gum
A113: 17 | B113: 1 | C113: ห้องเรียน | D113: noun | E113: classroom | F113: a room where groups of students are taught | G113: Students stood up as the teacher entered the classroom. | H113: 1 | I113: 1 | K113: classroom
A114: 17 | B114: 1 | C114: วัน | D114: noun | E114: day | F114: a period of 24 hours, from one day to the next | G114: We leave on vacation the day after tomorrow. | H114: 1 | I114: 1 | K114: day
A115: 17 | B115: 1 | C115: ดึงดูดใจ | D115: verb | E115: attract | F115: to cause something to come toward something else | G115: The tennis championship will attract a lot of tourists to the city. | J115: 1 | K115: attract
A116: 17 | B116: 2 | C116: ในระหว่าง | D116: prep | E116: during | F116: from the beginning to the end of a particular period | G116: They work during the night and sleep by day. | H116: 1 | I116: 1 | K116: during
A117: 17 | B117: 2 | C117: กิน | D117: verb | E117: eat | F117: to put food into the mouth, chew it, and swallow it | G117: I usually eat a hamburger for lunch. | H117: 1 | I117: 1 | K117: eat
A118: 17 | B118: 2 | C118: เดา | D118: verb | E118: guess | F118: to give an answer to a question when you do not have all the facts | G118: I didn’t know the answer, so I had to guess. | H118: 1 | I118: 1 | K118: guess
A119: 17 | B119: 2 | C119: การบ้าน | D119: noun | E119: homework | F119: studying that students do at home to prepare for school | G119: The teacher told us to read chapter five for homework. | H119: 1 | I119: 1 | K119: homework
A120: 17 | B120: 2 | C120: เครื่องเพชรพลอย | D120: noun | E120: jewellery | F120: decorative objects worn on clothes or the body (US 'jewelry') | G120: A lot of people don't want to go to the high street chains to buy their jewellery. | H120: 1 | I120: 1 | K120: jewellery
A121: 17 | B121: 2 | C121: แล็ปท็อป | D121: noun | E121: laptop | F121: a computer small and light enough to be carried around | G121: If I had a laptop, I could work on the bus. | H121: 1 | I121: 1 | K121: laptop
A122: 17 | B122: 3 | C122: สาย | D122: adv | E122: late | F122: happening or being near the end of a period or in the recent past | G122: He won't be home on time. I expect him to come late this evening. | H122: 1 | I122: 1 | K122: late
A123: 17 | B123: 3 | C123: ออกจาก | D123: verb | E123: leave | F123: to go away from someone or something, for a short time or permanently | G123: The bus will leave in 5 minutes. | H123: 1 | I123: 1 | K123: leave
A124: 17 | B124: 3 | C124: แกง | D124: noun | E124: curry | F124: food from India, cooked in a spicy sauce | G124: Indian food often consists of curry and other spices. | J124: 1 | K124: curry
A125: 17 | B125: 3 | C125: มอง | D125: verb | E125: look | F125: to direct your eyes in order to see | G125: Come and look at what I’ve found. | H125: 1 | I125: 1 | K125: look
A126: 17 | B126: 3 | C126: ดัง | D126: adj | E126: loud | F126: having or producing a large amount of sound | G126: It was noisy. They were playing loud music last night. | H126: 1 | I126: 1 | K126: loud
A127: 17 | B127: 3 | C127: แต่งหน้า | D127: noun | E127: makeup | F127: colors used to improve the face's appearance | G127: She always wears a lot of makeup when she performs on stage. | H127: 1
A128: 18 | B128: 1 | C128: บางที | D128: adv | E128: maybe | F128: used to show that something is possible or may be true | G128: I'm not sure. Maybe I can ride my bike home before it rains. | H128: 1 | I128: 1 | K128: maybe
A129: 18 | B129: 1 | C129: ความยุ่งเหยิง | D129: noun | E129: mess | F129: a condition of disorder and confusion, or something in that condition | G129: The puppy’s made a mess on the dining room rug. | H129: 1
A130: 18 | B130: 1 | C130: สุทธิ | D130: noun | E130: net | F130: woven material with spaces which only allow small objects to go through | G130: Hit the ball over the volleyball net or you will loose the game. | H130: 1 | I130: 1 | K130: net
A131: 18 | B131: 1 | C131: เนื้อหา | D131: noun | E131: contents | F131: everything that is contained within something | G131: He opened the cupboard and pulled the contents onto the floor. | J131: 1 | K131: contents
A132: 18 | B132: 1 | C132: คืน | D132: noun | E132: night | F132: the part of every 24-hour period when it is dark | G132: It often gets cold after it gets dark here, late at night. | H132: 1 | I132: 1 | K132: night
A133: 18 | B133: 1 | C133: สมุดบันทึก | D133: noun | E133: notebook | F133: a book of plain paper or paper with lines, for writing on | G133: She wrote everything down in her notebook. | H133: 1 | I133: 1 | K133: notebook
A134: 18 | B134: 2 | C134: ถ่ายภาพ | D134: noun | E134: photograph | F134: an image of a person, object, or view that is produced by using a camera and film | G134: Stand still and smile so I can take a photograph of you. | H134: 1 | I134: 1 | K134: photograph
A135: 18 | B135: 2 | C135: เล่น | D135: verb | E135: play | F135: to spend time doing something enjoyable or amusing | G135: I often play basketball with my friends at school. | H135: 1 | I135: 1 | K135: play
A136: 18 | B136: 2 | C136: สมบัติ | D136: noun | E136: possession | F136: something that you own, or the condition of owning something | G136: She couldn’t take possession of the house until the current occupants moved out. | H136: 1
A137: 18 | B137: 2 | C137: รวดเร็ว | D137: adj | E137: quick | F137: done, happening, or moving fast; lasting only a short time | G137: You’re back already – that was quick! | H137: 1 | I137: 1 | K137: quick
A138: 18 | B138: 2 | C138: อ่าน | D138: verb | E138: read | F138: to obtain meaning or information by looking at written words or symbols | G138: I often read a chapter form a book before I sleep at night. | H138: 1 | I138: 1 | K138: read
A139: 18 | B139: 2 | C139: เครื่องหลังของนักไต่เขา | D139: noun | E139: rucksack | F139: a large bag used to carry things on your back | G139: If you go hiking, pack your rugsack with warm clothes and food for your journey. | H139: 1
A140: 18 | B140: 3 | C140: กฎ | D140: verb | E140: rule | F140: an instructionto say what is allowed or not allowed | G140: If you break a rule, you are going to be punished for it. | H140: 1 | I140: 1 | K140: rule
A141: 18 | B141: 3 | C141: วิ่ง | D141: verb | E141: run | F141: to move along, faster than walking, by taking quick steps | G141: The athelete started to run the race quickly around the stadium. | H141: 1 | I141: 1 | K141: run
A142: 18 | B142: 3 | C142: ส่ง | D142: verb | E142: send | F142: to cause something to go or be taken somewhere without going yourself | G142: I like to send an e-mail to my friend. | H142: 1 | I142: 1 | K142: send
A143: 18 | B143: 3 | C143: ร้องตะโกน | D143: verb | E143: shout | F143: to say something in a loud voice | G143: Don't shout or scream in class. It hurts my ears! | H143: 1 | I143: 1 | K143: shout
A144: 18 | B144: 3 | C144: สเกตบอร์ด | D144: noun | E144: skateboard | F144: a flat narrow board onj four wheels, moved by pushing one foot on the ground | G144: He goes on his skateboard up and down the ramp. | H144: 1 | I144: 1 | K144: skateboard
A145: 18 | B145: 3 | C145: ขนมขบเคี้ยว | D145: noun | E145: snack | F145: a small amount of food, esp. when eaten between meals | G145: My favourite snack is a packet of Lay's crisps. | H145: 1 | I145: 1 | K145: snack
A146: 19 | B146: 1 | C146: ท่อง | D146: verb | E146: surf | F146: to use a long, narrow board to ride waves toward a beach | G146: People love to surf the waves off the coast of California. | H146: 1
A147: 19 | B147: 1 | C147: บอก | D147: verb | E147: tell | F147: to say something to someone, often giving them information or instructions | G147: Can you tell me how to get to the bus station? | H147: 1 | I147: 1 | K147: tell
A148: 19 | B148: 1 | C148: ข้อความ | D148: noun | E148: text | F148: written or printed material | G148: The text is based on Irish legends. | H148: 1 | I148: 1 | K148: text
A149: 19 | B149: 1 | C149: สิ่ง | D149: noun | E149: thing | F149: a device, product, or part of nature that is not named | G149: What is that thing they have on sale in the stores today? | H149: 1 | I149: 1 | K149: thing
A150: 19 | B150: 1 | C150: สามี | D150: noun | E150: husband | F150: the man to whom a woman is married; a married man | G150: He isn't my boyfriend. We got married last year, so now he is my husband. | J150: 1 | K150: husband
A151: 19 | B151: 1 | C151: เรียบร้อย | D151: verb | E151: tidy | F151: having everything ordered and arranged in the right place | G151: Go to upstairs and tidy your bedroom. It's a mess at the moment. | H151: 1 | I151: 1 | K151: tidy
A152: 19 | B152: 2 | C152: คุก | D152: noun | E152: jail | F152: a place where criminals are kept as a punishment for their crimes or while waiting for trial | G152: He was sentenced to six months in jail. | J152: 1 | K152: jail
A153: 19 | B153: 2 | C153: การฝึกอบรม | D153: noun | E153: trainers | F153: a type of light comfortable shoe that is suitable for playing sport (US sneaker) | G153: Put on your trainers so you won't slip and fall when you play tennis. | H153: 1 | I153: 1 | K153: trainers
A154: 19 | B154: 2 | C154: ปิดสวิตช์ | D154: verb | E154: turn off | F154: to disconnect power to a device. | G154: Turn off the TV and go to bed. | H154: 1
A155: 19 | B155: 2 | C155: เหมือนกัน | D155: noun | E155: uniform | F155: a set of clothes woen by members of the same organization, such as a school | G155: The school uniform differs between public and private schools in Thailand. | H155: 1 | I155: 1 | K155: uniform
A156: 19 | B156: 2 | C156: จนกระทั่ง | D156: prep | E156: until | F156: up to the stated time | G156: I was awake until 2 o'clock in the morning. | H156: 1 | I156: 1 | K156: until
A157: 19 | B157: 2 | C157: ใช้ | D157: verb | E157: use | F157: to put something into your service for a purpose | G157: Do you know how to use a computer? | H157: 1 | I157: 1 | K157: use
A158: 19 | B158: 3 | C158: มีคุณค่า | D158: adj | E158: valuable | F158: important, useful, or beneficial | G158: Niekro was named the most valuable player in baseball. | H158: 1
A159: 19 | B159: 3 | C159: สวม | D159: verb | E159: wear | F159: to have clothing or jewelry on your body | G159: I wear my school uniform at school, but only jeans and a T-shirt on weekends. | H159: 1 | I159: 1 | K159: wear
A160: 19 | B160: 3 | C160: เกือบจะ | D160: adv | E160: almost | F160: nearly but not quite | G160: We were bitten by mosquitoes almost every night. | H160: 1 | I160: 1 | K160: almost
A161: 19 | B161: 3 | C161: เฉลี่ย | D161: noun | E161: average | F161: a standard or level that is considered to be typical or usual | G161: The quality of her work is well above average. | H161: 1 | I161: 1 | K161: average
A162: 19 | B162: 3 | C162: พันล้าน | D162: noun | E162: billion | F162: The amount of one thousand million, or 1,000,000,000 | G162: Congress cut spending by $255 billion, or 255,000,000,000 dollars. | H162: 1
A163: 19 | B163: 3 | C163: แปลกประหลาด | D163: noun | E163: bizarre | F163: strange and unusual | G163: That party was too strange and bizarre for me! | H163: 1
A164: 20 | B164: 1 | C164: ร้องไห้ | D164: verb | E164: cry | F164: to produce tears as the result of unhappiness or pain | G164: She was sad. I heard her cry in her room. | H164: 1 | I164: 1 | K164: cry
A165: 20 | B165: 1 | C165: ความชำนาญ | D165: noun | E165: dexterity | F165: the ability to use the hands skillfully in doing something | G165: Playing with blocks improves a child’s manual dexterity. | H165: 1
A166: 20 | B166: 1 | C166: จาน | D166: noun | E166: dish | F166: a round, flat container with a raised edge, used for serving or holding food | G166: The food is on the dish. | H166: 1 | I166: 1 | K166: dish
A167: 20 | B167: 1 | C167: ออด | D167: noun | E167: doorbell | F167: an electrical device with a button that makes a noise when pressed | G167: He rang the doorbell twice, but no one heard him. | H167: 1
A168: 20 | B168: 1 | C168: ความจริง | D168: noun | E168: fact | F168: something known to have happened or to exist | G168: It is a well-known fact that the earth is round. | H168: 1 | I168: 1 | K168: fact
A169: 20 | B169: 1 | C169: นิ้ว | D169: noun | E169: finger | F169: any of the long thin separate parts of the hand, especially those which are not thumbs | G169: I cut my finger when I was chopping onions. | H169: 1 | I169: 1 | K169: finger
A170: 20 | B170: 2 | C170: ขึ้น | D170: verb | E170: grow | F170: to increase in size or amount, or to become more advanced or developed | G170: Plant a seed and water it, and it will grow into a beautiful plant. | H170: 1 | I170: 1 | K170: grow
A171: 20 | B171: 2 | C171: ดัชนี | D171: noun | E171: index | F171: a number used to show the value of something by comparing it to something else | G171: A currency index is the average of one currency compared to others. | H171: 1 | I171: 1 | K171: index
A172: 20 | B172: 2 | C172: อาหาร | D172: noun | E172: meal | F172: an occasion when food is served or eaten, esp. breakfast, lunch, or dinner, or the food itself on such an occasion | G172: Breakfast is the most important meal of the day. | H172: 1 | I172: 1 | K172: meal
A173: 20 | B173: 2 | C173: เนื้อ | D173: noun | E173: meat | F173: the flesh of an animal when it is used for food | G173: Minced meat is used to make hamburgers. | H173: 1 | I173: 1 | K173: meat
A174: 20 | B174: 2 | C174: หอม | D174: noun | E174: onion | F174: a plant with a round, edible root having a strong smell and flavor | G174: An onion has many layers and often makes you cry when you chop it. | H174: 1 | I174: 1 | K174: onion
A175: 20 | B175: 2 | C175: เปลือก | D175: verb | E175: peel | F175: to remove the skin of fruit and vegetables | G175: Peel the apple so the skin layer comes off. | H175: 1 | I175: 1 | K175: peel
A176: 20 | B176: 3 | C176: ดอง | D176: verb | E176: pickle | F176: a cucumber that has been preserved in a salty, spicy, or vinegary liquid. | G176: Traditional hamburgers always have a pickle on top of the dressing. | H176: 1
A177: 20 | B177: 3 | C177: ริมทะเล | D177: noun | E177: seaside | F177: a place near the ocean or sea | G177: Pattaya is a popular seaside town. | H177: 1 | I177: 1 | K177: seaside
A178: 20 | B178: 3 | C178: รู้สึกไว | D178: adj | E178: sensitive | F178: having or showing awareness and understanding, esp. of other people’s feelings and needs | G178: I care, and I am very sensitive to the suffering of others. | H178: 1
A179: 20 | B179: 3 | C179: รูปร่าง | D179: noun | E179: shape | F179: the particular physical form or appearance of something | G179: The birthday cake for Luis was in the shape of a heart. | H179: 1 | I179: 1 | K179: shape
A180: 20 | B180: 3 | C180: นอน | D180: verb | E180: sleep | F180: to be in a resting state in which the body is not active and the mind is unconscious | G180: I was too excited to sleep much that night. | H180: 1 | I180: 1 | K180: sleep
A181: 20 | B181: 3 | C181: รสเผ็ดร้อน | D181: adj | E181: spicy | F181: flavored with spices that are hot to the taste | G181: I love to eat hot and spicy Mexican food. | H181: 1

Sheet M1 Sem 1a
A1: Week | B1: Part | C1: Thai | D1: Type | E1: Word | F1: Definition | G1: Sentence | H1: Coursebook | I1: PET in Coursebk | J1: PET only | K1: Pet Word | P1: Week | Q1: Part
A2: 1 | B2: 1 | C2: อีกครั้ง | D2: adv | E2: again | F2: once more, or as before | G2: Could you spell your name again, please? | H2: 1 | I2: 1 | J2: =IF(H2=1,"",1) ->  | K2: =IFERROR(INDEX(PET!$D$2:$D$2628,MATCH(E2,PET!$D$2:$D$2628,0)),"") -> again | M2: Total Words | N2: 180 | P2: 1 | Q2: 1 | R2: =E2&", "&E3&", "&E4&", "&E5&", "&E6&", "&E7 -> again, country, everybody, favourite, friend, funny | S2: =C2&", "&C3&", "&C4&", "&C5&", "&C6&", "&C7 -> อีกครั้ง, ประเทศ, ทุกคน, ที่ชื่นชอบ, เพื่อน, ตลก
A3: 1 | B3: 1 | C3: ประเทศ | D3: noun | E3: country | F3: an area of land that has its own government or army. | G3: Sri Lanka is my native country. | H3: 1 | I3: 1 | K3: country | M3: SB Words in PET | N3: =COUNTIF(I2:I181,1) -> 148 | P3: 1 | Q3: 2 | R3: =E8&", "&E9&", "&E10&", "&E11&", "&E12&", "&E13 -> good morning, guy, hello, pen-friend, sorry, identical | S3: =C8&", "&C9&", "&C10&", "&C11&", "&C12&", "&C13 -> ดีตอนเช้า, ครับ, สวัสดี, ปากกาเพื่อน, ขอโทษ, เหมือนกัน
A4: 1 | B4: 1 | C4: ทุกคน | D4: pron | E4: everybody | F4: every person | G4: I've received replies from everybody but Jane. | H4: 1 | I4: 1 | K4: everybody | M4: SB % in PET | N4: =N3/N2 -> 0.8222222222 | P4: 1 | Q4: 3 | R4: =E14&", "&E15&", "&E16&", "&E17&", "&E18&", "&E19 -> island, key, later, Mrs, name, nationality | S4: =C14&", "&C15&", "&C16&", "&C17&", "&C18&", "&C19 -> เกาะ, คีย์, ต่อมา, นาง, ชื่อ, สัญชาติ
A5: 1 | B5: 1 | C5: ที่ชื่นชอบ | D5: adj | E5: favourite | F5: best liked or most enjoyed | G5: "What's your favourite colour?" "Green." | H5: 1 | I5: 1 | K5: favourite | P5: 2 | Q5: 1 | R5: =E20&", "&E21&", "&E22&", "&E23&", "&E24&", "&E25 -> room, save, soon, surname, right, twin | S5: =C20&", "&C21&", "&C22&", "&C23&", "&C24&", "&C25 -> ห้อง, ประหยัด, ในไม่ช้า, นามสกุล, ถูกต้อง, ฝาแฝด
A6: 1 | B6: 1 | C6: เพื่อน | D6: noun | E6: friend | F6: a person who you know well but who is not a member of your family | G6: She's my best friend. We've known each other since we were five. | H6: 1 | I6: 1 | K6: friend | M6: M1 Sem 1a | P6: 2 | Q6: 2 | R6: =E26&", "&E27&", "&E28&", "&E29&", "&E30&", "&E31 -> welcome, afraid, age, angry, aunt, bored | S6: =C26&", "&C27&", "&C28&", "&C29&", "&C30&", "&C31 -> ยินดีต้อนรับ, กลัว, อายุ, โกรธ, ป้า, เบื่อ
A7: 1 | B7: 1 | C7: ตลก | D7: adj | E7: funny | F7: amusing; causing laughter | G7: Jerome is so funny. | H7: 1 | I7: 1 | K7: funny | P7: 2 | Q7: 3 | R7: =E32&", "&E33&", "&E34&", "&E35&", "&E36&", "&E37 -> brother, child, children, cold, cousin, daughter | S7: =C32&", "&C33&", "&C34&", "&C35&", "&C36&", "&C37 -> พี่ชาย, เด็ก, เด็ก ๆ, เย็น, ลูกพี่ลูกน้อง, ลูกสาว
A8: 1 | B8: 2 | C8: ดีตอนเช้า | D8: exp | E8: good morning | F8: used for greeting someone in the morning | G8: Good morning, how are you? | H8: 1 | M8: Added PET words | N8: =COUNTIF(J2:J181,1) -> 4 | P8: 3 | Q8: 1 | R8: =E38&", "&E39&", "&E40&", "&E41&", "&E42&", "&E43 -> eye, father, form, grandma, grandpa, happy | S8: =C38&", "&C39&", "&C40&", "&C41&", "&C42&", "&C43 -> ดวงตา, พ่อ, ฟอร์ม, ยาย, คุณปู่, ยินดี
A9: 1 | B9: 2 | C9: ครับ | D9: noun | E9: guy | F9: a man | G9: Three guys and three girls left the room. | H9: 1 | I9: 1 | K9: guy | P9: 3 | Q9: 2 | R9: =E44&", "&E45&", "&E46&", "&E47&", "&E48&", "&E49 -> here, hot, hungry, fine, iced tea, listen | S9: =C44&", "&C45&", "&C46&", "&C47&", "&C48&", "&C49 -> ที่นี่, ร้อน, หิว, ปรับ, ชาเย็น, ฟัง
A10: 1 | B10: 2 | C10: สวัสดี | D10: exp | E10: hello | F10: used when meeting or greeting someone | G10: "Hello, Paul," she said, "I haven’t seen you for months." | H10: 1 | M10: PET Words Total | N10: =N3+N8 -> 152 | P10: 3 | Q10: 3 | R10: =E50&", "&E51&", "&E52&", "&E53&", "&E54&", "&E55 -> too, meet, mother, other, parent, place | S10: =C50&", "&C51&", "&C52&", "&C53&", "&C54&", "&C55 -> เกินไป, พบ, แม่, อื่น ๆ, พ่อแม่, สถานที่
A11: 1 | B11: 2 | C11: ปากกาเพื่อน | D11: noun | E11: pen-friend | F11: someone who you write friendly letters to regularly, but you have never met | G11: I write once a month to my pen-friend in Korea. | J11: 1 | K11: pen-friend | M11: Pet Words % | N11: =N10/N2 -> 0.8444444444 | P11: 4 | Q11: 1 | R11: =E56&", "&E57&", "&E58&", "&E59&", "&E60&", "&E61 -> sad, sister, radio, talk, that , those | S11: =C56&", "&C57&", "&C58&", "&C59&", "&C60&", "&C61 -> เสียใจ, น้องสาว, ไซออน, คุย, ที่, เหล่านั้น
A12: 1 | B12: 2 | C12: ขอโทษ | D12: adj | E12: sorry | F12: feeling bad because you have caused trouble or difficulty to someone else | G12: I’m really sorry (that) I forgot about our appointment yesterday. | H12: 1 | I12: 1 | K12: sorry | P12: 4 | Q12: 2 | R12: =E62&", "&E63&", "&E64&", "&E65&", "&E66&", "&E67 -> tired, uncle, water, bone, body, calcium | S12: =C62&", "&C63&", "&C64&", "&C65&", "&C66&", "&C67 -> เหนื่อย, ลุง, น้ำ, กระดูก, ร่างกาย, แคลเซียม
A13: 1 | B13: 2 | C13: เหมือนกัน | D13: adj | E13: identical | F13: exactly the same, or very similar | G13: The test is identical to the one you took last year. | H13: 1 | M13: Nouns | N13: =COUNTIF($D$2:$D$201,"noun") -> 107 | P13: 4 | Q13: 3 | R13: =E68&", "&E69&", "&E70&", "&E71&", "&E72&", "&E73 -> carbohydrate, fat, fibre, healthy, high, iron | S13: =C68&", "&C69&", "&C70&", "&C71&", "&C72&", "&C73 -> คาร์โบไฮเดรต, ไขมัน, ไฟเบอร์, แข็งแรง, สูง, เหล็ก
A14: 1 | B14: 3 | C14: เกาะ | D14: noun | E14: island | F14: a piece of land completely surrounded by water | G14: Singapore is an island. | H14: 1 | I14: 1 | K14: island | M14: Verbs | N14: =COUNTIF($D$2:$D$201,"verb") -> 20 | P14: 5 | Q14: 1 | R14: =E74&", "&E75&", "&E76&", "&E77&", "&E78&", "&E79 -> bean, nut, nutrient, mineral, protein, rich | S14: =C74&", "&C75&", "&C76&", "&C77&", "&C78&", "&C79 -> ถั่ว, นอต, สารอาหาร, แร่, โปรตีน, รวย
A15: 1 | B15: 3 | C15: คีย์ | D15: noun | E15: key | F15: a piece of metal cut into a special shape, used for opening or closing a lock | G15: I put the key into the ignition. | H15: 1 | I15: 1 | K15: key | M15: Adjectives | N15: =COUNTIF($D$2:$D$201,"adj") -> 36 | P15: 5 | Q15: 2 | R15: =E80&", "&E81&", "&E82&", "&E83&", "&E84&", "&E85 -> vitamin, attic, bathroom, bedroom, book, box | S15: =C80&", "&C81&", "&C82&", "&C83&", "&C84&", "&C85 -> วิตามิน, ห้องเพดาน, ห้องอาบน้ำ, ห้องนอน, หนังสือ, กล่อง
A16: 1 | B16: 3 | C16: ต่อมา | D16: adv | E16: later | F16: at a time in the future or after the time you have mentioned | G16: He was successful later in his career. | H16: 1 | I16: 1 | K16: later | M16: Adverbs | N16: =COUNTIF($D$2:$D$201,"adv") -> 9 | P16: 5 | Q16: 3 | R16: =E86&", "&E87&", "&E88&", "&E89&", "&E90&", "&E91 -> capital, city, cat, chair, desk, dining | S16: =C86&", "&C87&", "&C88&", "&C89&", "&C90&", "&C91 -> เมืองหลวง, เมือง, แมว, เก้าอี้, เคาน์เตอร์, รับประทานอาหาร
A17: 1 | B17: 3 | C17: นาง | D17: noun | E17: Mrs | F17: a title for a married woman, used before the family name or full name | G17: Hello, Mrs. Taylor, how are you today? | H17: 1 | I17: 1 | K17: Mrs | M17: Pronouns | N17: =COUNTIF($D$2:$D$201,"pron") -> 2 | P17: 6 | Q17: 1 | R17: =E92&", "&E93&", "&E94&", "&E95&", "&E96&", "&E97 -> downstairs, foot, fox, fridge, game, great | S17: =C92&", "&C93&", "&C94&", "&C95&", "&C96&", "&C97 -> ข้างล่าง, เท้า, จิ้งจอก, ตู้เย็น, เกม, ยิ่งใหญ่
A18: 1 | B18: 3 | C18: ชื่อ | D18: noun | E18: name | F18: the word or words that a person, thing or place is known by | G18: Hello, my name is Beth. | H18: 1 | I18: 1 | K18: name | M18: Prepositions | N18: =COUNTIF($D$2:$D$201,"prep") -> 4 | P18: 6 | Q18: 2 | R18: =E98&", "&E99&", "&E100&", "&E101&", "&E102&", "&E103 -> hour, house, in, kitchen, knife, lamp | S18: =C98&", "&C99&", "&C100&", "&C101&", "&C102&", "&C103 -> ชั่วโมง, บ้าน, ใน, ครัว, มีด, โคมไฟ
A19: 1 | B19: 3 | C19: สัญชาติ | D19: noun | E19: nationality | F19: the state of belonging to a particular country or being a citizen of a particular nation | G19: "What’s your nationality?" "I’m from Brazil." | H19: 1 | I19: 1 | K19: nationality | M19: Conjunctions | N19: =COUNTIF($D$2:$D$201,"conj") -> 0 | P19: 6 | Q19: 3 | R19: =E104&", "&E105&", "&E106&", "&E107&", "&E108&", "&E109 -> leaf, living, man, match, mouse, now | S19: =C104&", "&C105&", "&C106&", "&C107&", "&C108&", "&C109 -> ใบไม้, มีชีวิตอยู่, คน, การแข่งขัน, เม้าส์, ขณะนี้
A20: 2 | B20: 1 | C20: ห้อง | D20: noun | E20: room | F20: an area within a building that has its own walls, floor, ceiling, and door | G20: The house has a laundry room. | H20: 1 | I20: 1 | K20: room | M20: Expressions | N20: =COUNTIF($D$2:$D$201,"exp") -> 2 | P20: 7 | Q20: 1 | R20: =E110&", "&E111&", "&E112&", "&E113&", "&E114&", "&E115 -> on, over, party, person, printer, ready | S20: =C110&", "&C111&", "&C112&", "&C113&", "&C114&", "&C115 -> บน, มากกว่า, พรรค, คน, เครื่องพิมพ์, พร้อมแล้ว
A21: 2 | B21: 1 | C21: ประหยัด | D21: verb | E21: save | F21: to stop someone or something from being killed, injured or destroyed | G21: She jumped into the pool and saved the child from drowning. | H21: 1 | I21: 1 | K21: save | P21: 7 | Q21: 2 | R21: =E116&", "&E117&", "&E118&", "&E119&", "&E120&", "&E121 -> real, reception, thick, rug, bag, shower | S21: =C116&", "&C117&", "&C118&", "&C119&", "&C120&", "&C121 -> จริง, การรับ, หนา, พรม, ที่ลุ่ม, ฝักบัว
A22: 2 | B22: 1 | C22: ในไม่ช้า | D22: adv | E22: soon | F22: in or within a short time; before long; quickly | G22: She'll soon be here. | H22: 1 | I22: 1 | K22: soon | M22: Words for M1 | N22: =180*4 -> 720 | P22: 7 | Q22: 3 | R22: =E122&", "&E123&", "&E124&", "&E125&", "&E126&", "&E127 -> silly, sofa, table, tennis, telephone, tooth | S22: =C122&", "&C123&", "&C124&", "&C125&", "&C126&", "&C127 -> โง่, โซฟา, ตาราง, เทนนิส, โทรศัพท์, ฟัน
A23: 2 | B23: 1 | C23: นามสกุล | D23: noun | E23: surname | F23: the name that you share with other members of your family; last name | G23: My name is Bond. James Bond. Bond is my surname. | H23: 1 | I23: 1 | K23: surname | M23: Nouns | N23: =N13+'M1 Sem 1b'!N13+'M1 Sem 2a'!N13+'M1 Sem 2b'!N13 -> 425 | P23: 8 | Q23: 1 | R23: =E128&", "&E129&", "&E130&", "&E131&", "&E132&", "&E133 -> toy, under, upstairs, virtual, wardrobe, watch | S23: =C128&", "&C129&", "&C130&", "&C131&", "&C132&", "&C133 -> ของเล่น, ภายใต้, ชั้นบน, เสมือน, ตู้เสื้อผ้า, ชม
A24: 2 | B24: 1 | C24: ถูกต้อง | D24: adv | E24: right | F24: correct, true, or exact | G24: My watch has stopped – do you have the right time? | H24: 1 | I24: 1 | K24: right | M24: Verbs | N24: =N14+'M1 Sem 1b'!N14+'M1 Sem 2a'!N14+'M1 Sem 2b'!N14 -> 128 | P24: 8 | Q24: 2 | R24: =E134&", "&E135&", "&E136&", "&E137&", "&E138&", "&E139 -> wife, woman, bad, big, become, buckle | S24: =C134&", "&C135&", "&C136&", "&C137&", "&C138&", "&C139 -> ภรรยา, หญิง, ไม่ดี, ใหญ่, กลายเป็น, หัวเข็มขัด
A25: 2 | B25: 1 | C25: ฝาแฝด | D25: noun | E25: twin | F25: either of two children born to the same mother on the same occasion | G25: My brother is the same age as me. He is my twin brother. | H25: 1 | I25: 1 | K25: twin | M25: Adjectives | N25: =N15+'M1 Sem 1b'!N15+'M1 Sem 2a'!N15+'M1 Sem 2b'!N15 -> 116 | P25: 8 | Q25: 3 | R25: =E140&", "&E141&", "&E142&", "&E143&", "&E144&", "&E145 -> building, door, alphabet, fear, feel, floor | S25: =C140&", "&C141&", "&C142&", "&C143&", "&C144&", "&C145 -> อาคาร, ประตู, ตัวอักษร, กลัว, รู้สึก, ชั้น
A26: 2 | B26: 2 | C26: ยินดีต้อนรับ | D26: verb | E26: welcome | F26: expression to show pleasure when meeting someone | G26: Hello and welcome to the party. | H26: 1 | I26: 1 | K26: welcome | M26: Adverbs | N26: =N16+'M1 Sem 1b'!N16+'M1 Sem 2a'!N16+'M1 Sem 2b'!N16 -> 27 | P26: 9 | Q26: 1 | R26: =E146&", "&E147&", "&E148&", "&E149&", "&E150&", "&E151 -> heart, hen, home, indoor, ladder, lay | S26: =C146&", "&C147&", "&C148&", "&C149&", "&C150&", "&C151 -> หัวใจ, ไก่, บ้าน, ในร่ม, กระได, ปู
A27: 2 | B27: 2 | C27: กลัว | D27: adj | E27: afraid | F27: feeling fear, or feeling anxiety about the possible results | G27: She was afraid, but never thought of quitting. | H27: 1 | I27: 1 | K27: afraid | M27: Pronouns | N27: =N17+'M1 Sem 1b'!N17+'M1 Sem 2a'!N17+'M1 Sem 2b'!N17 -> 5 | P27: 9 | Q27: 2 | R27: =E152&", "&E153&", "&E154&", "&E155&", "&E156&", "&E157 -> love, luck, ladybird, magpie, new, pick | S27: =C152&", "&C153&", "&C154&", "&C155&", "&C156&", "&C157 -> ความรัก, โชคดี, เต่าทอง, นกกางเขน, ใหม่, เลือก
A28: 2 | B28: 2 | C28: อายุ | D28: noun | E28: age | F28: period of time someone has been alive or existed | G28: At age 24 he won a starring role in his first movie. | H28: 1 | I28: 1 | K28: age | M28: Prepositions | N28: =N18+'M1 Sem 1b'!N18+'M1 Sem 2a'!N18+'M1 Sem 2b'!N18 -> 10 | P28: 9 | Q28: 3 | R28: =E158&", "&E159&", "&E160&", "&E161&", "&E162&", "&E163 -> put, quiz, rhyme, row, safe, say | S28: =C158&", "&C159&", "&C160&", "&C161&", "&C162&", "&C163 -> ใส่, ทดสอบ, สัมผัส, แถว, ปลอดภัย, พูด
A29: 2 | B29: 2 | C29: โกรธ | D29: adj | E29: angry | F29: the feeling people get when something is unfair or bad happens | G29: He was upset and angry that he didn't pass the test. | H29: 1 | I29: 1 | K29: angry | M29: Conjunctions | N29: =N19+'M1 Sem 1b'!N19+'M1 Sem 2a'!N19+'M1 Sem 2b'!N19 -> 3 | P29: 10 | Q29: 1 | R29: =E164&", "&E165&", "&E166&", "&E167&", "&E168&", "&E169 -> saying, shoe, shut, spot, stick, straight | S29: =C164&", "&C165&", "&C166&", "&C167&", "&C168&", "&C169 -> คำพูด, รองเท้า, ปิด, จุด, ติด, ตรง
A30: 2 | B30: 2 | C30: ป้า | D30: noun | E30: aunt | F30: the sister of someone’s mother or father, or the wife of someone’s uncle | G30: My father's sister is my aunt. | H30: 1 | I30: 1 | K30: aunt | M30: Expressions | N30: =N20+'M1 Sem 1b'!N20+'M1 Sem 2a'!N20+'M1 Sem 2b'!N20 -> 6 | P30: 10 | Q30: 2 | R30: =E170&", "&E171&", "&E172&", "&E173&", "&E174&", "&E175 -> street, sweet, teenager, think, touch, umbrella | S30: =C170&", "&C171&", "&C172&", "&C173&", "&C174&", "&C175 -> ถนน, หวาน, วัยโจ๋, คิด, สัมผัส, ร่ม
A31: 2 | B31: 2 | C31: เบื่อ | D31: adj | E31: bored | F31: feeling tired and unhappy because something is not interesting | G31: He was getting bored doing the same thing every day. | H31: 1 | I31: 1 | K31: bored | P31: 10 | Q31: 3 | R31: =E176&", "&E177&", "&E178&", "&E179&", "&E180&", "&E181 -> unlucky, walk, wish, wood, word, search | S31: =C176&", "&C177&", "&C178&", "&C179&", "&C180&", "&C181 -> โชคร้าย, เดิน, ต้องการ, เนื้อไม้, คำ, ค้นหา
A32: 2 | B32: 3 | C32: พี่ชาย | D32: noun | E32: brother | F32: a male who has the same parents as another person | G32: I have a younger brother and an older sister in my family. | H32: 1 | I32: 1 | K32: brother
A33: 2 | B33: 3 | C33: เด็ก | D33: noun | E33: child | F33: a person from the time of birth until he or she is an adult | G33: Jan has a three-year-old child and two school-age children. | H33: 1 | I33: 1 | K33: child | S33: Extra - Nationalities
A34: 2 | B34: 3 | C34: เด็ก ๆ | D34: noun | E34: children | F34: plural of child | G34: Tom has 3 children; two daughters and a son. | H34: 1 | S34: American
A35: 2 | B35: 3 | C35: เย็น | D35: adj | E35: cold | F35: having a low temperature, not hot or warm | G35: I forgot my gloves and my hands are getting cold. | H35: 1 | I35: 1 | K35: cold | S35: Australia
A36: 2 | B36: 3 | C36: ลูกพี่ลูกน้อง | D36: noun | E36: cousin | F36: a child of a person’s aunt or uncle | G36: Jimmy and Sue are my uncle's children. They are my cousins. | H36: 1 | I36: 1 | K36: cousin | S36: Australian
A37: 2 | B37: 3 | C37: ลูกสาว | D37: noun | E37: daughter | F37: a female child in relation to her parents | G37: We have a son and a daughter. | H37: 1 | I37: 1 | K37: daughter | S37: Belgian
A38: 3 | B38: 1 | C38: ดวงตา | D38: noun | E38: eye | F38: one of the pair of organs of seeing in the faces of humans and animals | G38: She is looking at me with her green eyes. | H38: 1 | I38: 1 | K38: eye | S38: Brazilian
A39: 3 | B39: 1 | C39: พ่อ | D39: noun | E39: father | F39: a male parent | G39: My father retired seven years ago. | H39: 1 | I39: 1 | K39: father | S39: British
A40: 3 | B40: 1 | C40: ฟอร์ม | D40: noun | E40: form | F40: a paper on which answers to questions can be written | G40: Fill out an application form and we will let you know if a job opens up. | H40: 1 | I40: 1 | K40: form | S40: Canada
A41: 3 | B41: 1 | C41: ยาย | D41: noun | E41: grandma | F41: the mother of a person’s father or mother | G41: My grandma on my mother's side is 82 years old. | H41: 1 | I41: 1 | K41: grandma | S41: Canadian
A42: 3 | B42: 1 | C42: คุณปู่ | D42: noun | E42: grandpa | F42: the father of a person's mother or father | G42: My grandpa is a retired army colonel. | H42: 1 | I42: 1 | K42: grandpa | S42: China
A43: 3 | B43: 1 | C43: ยินดี | D43: adj | E43: happy | F43: feeling, showing, or causing pleasure or satisfaction | G43: People want movies to have happy endings. | H43: 1 | I43: 1 | K43: happy | S43: Chinese
A44: 3 | B44: 2 | C44: ที่นี่ | D44: adv | E44: here | F44: in, at, or to this place | G44: I’ve lived here in Phitsanulok all my life. | H44: 1 | I44: 1 | K44: here | S44: England
A45: 3 | B45: 2 | C45: ร้อน | D45: adj | E45: hot | F45: having a high temperature | G45: It’s hotter in Singapore than it is here. | H45: 1 | I45: 1 | K45: hot | S45: France
A46: 3 | B46: 2 | C46: หิว | D46: adj | E46: hungry | F46: feeling the need to eat because you have not eaten yet | G46: I am always hungry and need to eat when I get home from school. | H46: 1 | I46: 1 | K46: hungry | S46: French
A47: 3 | B47: 2 | C47: ปรับ | D47: adj | E47: fine | F47: very good or very well; satisfactory or satisfactorily | G47: I was sick last night, but I am fine this morning. | H47: 1 | I47: 1 | K47: fine | S47: Ireland
A48: 3 | B48: 2 | C48: ชาเย็น | D48: noun | E48: iced tea | F48: a form of cold tea, usually served in a glass with ice | G48: Would you like a cold drink, such as coco cola or iced tea? | H48: 1 | S48: Irish
A49: 3 | B49: 2 | C49: ฟัง | D49: verb | E49: listen | F49: to give attention to something you can hear or to a person who is speaking | G49: Can you really listen to music while you do your homework? | H49: 1 | I49: 1 | K49: listen | S49: Italian
A50: 3 | B50: 3 | C50: เกินไป | D50: adv | E50: too | F50: more than is needed or wanted; more than is suitable or enough | G50: There were (far) too many people for such a small room. | H50: 1 | I50: 1 | K50: too | S50: Italy
A51: 3 | B51: 3 | C51: พบ | D51: verb | E51: meet | F51: to see and speak to someone for the first time | G51: They’re meeting with their advisers to work out a new plan. | H51: 1 | I51: 1 | K51: meet | S51: Japan
A52: 3 | B52: 3 | C52: แม่ | D52: noun | E52: mother | F52: a female parent | G52: My mother was 20 when I was born. | H52: 1 | I52: 1 | K52: mother | S52: Japanese
A53: 3 | B53: 3 | C53: อื่น ๆ | D53: pron | E53: other | F53: the second of two things, or the item that is left from a group | G53: Hold the racket in one hand and the ball in the other. | H53: 1 | I53: 1 | K53: other | S53: Scottish
A54: 3 | B54: 3 | C54: พ่อแม่ | D54: noun | E54: parent | F54: a person who gives birth to or raises a child | G54: His parents live in Phitsanulok. | H54: 1 | I54: 1 | K54: parent | S54: Spain
A55: 3 | B55: 3 | C55: สถานที่ | D55: noun | E55: place | F55: an area, a building, or a city, town, or village | G55: Airports are usually busy places. | H55: 1 | I55: 1 | K55: place | S55: Spanish
A56: 4 | B56: 1 | C56: เสียใจ | D56: adj | E56: sad | F56: showing, feeling, or causing unhappiness or regret | G56: I’ve just heard the saddest news. | H56: 1 | I56: 1 | K56: sad | S56: the USA
A57: 4 | B57: 1 | C57: น้องสาว | D57: noun | E57: sister | F57: a female who has the same parents as another person | G57: John has a younger sister and an older brother. | H57: 1 | I57: 1 | K57: sister | S57: Brit
A58: 4 | B58: 1 | C58: ไซออน | D58: noun | E58: radio | F58: a piece of electronic equipment used for listening to radio broadcasts | G58: I listen to the radio in the morning to get the weather report. | J58: 1 | K58: radio | S58: Briton
A59: 4 | B59: 1 | C59: คุย | D59: verb | E59: talk | F59: to say words aloud, usually to give or exchange information; to speak | G59: I talked with Carol on the phone yesterday. | H59: 1 | I59: 1 | K59: talk | S59: Africa
A60: 4 | B60: 1 | C60: ที่ | D60: adj | E60: that | F60: refer to a person or object separated from the speaker by distance or time | G60: This peach isn’t ripe – can I have that one (= the one farther away) on the table? | H60: 1 | S60: African
A61: 4 | B61: 1 | C61: เหล่านั้น | D61: adj | E61: those | F61: plural of 'that' | G61: Those houses are huge. | H61: 1 | I61: 1 | K61: those | S61: Jamaca
A62: 4 | B62: 2 | C62: เหนื่อย | D62: adj | E62: tired | F62: in need of rest or sleep | G62: I had been up all night with the baby and was really tired. | H62: 1 | I62: 1 | K62: tired | S62: Jamacan
A63: 4 | B63: 2 | C63: ลุง | D63: noun | E63: uncle | F63: the brother of someone’s mother or father, or the husband of someone’s aunt | G63: My aunt and uncle moved to Arizona when they retired. | H63: 1 | I63: 1 | K63: uncle | S63: Pakistan
A64: 4 | B64: 2 | C64: น้ำ | D64: noun | E64: water | F64: a clear, colorless liquid that is necessary for life | G64: I’m boiling water to make some more coffee. | H64: 1 | I64: 1 | K64: water | S64: Pakistani
A65: 4 | B65: 2 | C65: กระดูก | D65: noun | E65: bone | F65: hard pieces that form the skeleton of a body | G65: She had broken a bone in her foot. | H65: 1 | I65: 1 | K65: bone | S65: India
A66: 4 | B66: 2 | C66: ร่างกาย | D66: noun | E66: body | F66: the whole physical structure that forms a person or animal | G66: A good diet and plenty of exercise will help you keep your body healthy. | H66: 1 | I66: 1 | K66: body | S66: Indian
A67: 4 | B67: 2 | C67: แคลเซียม | D67: noun | E67: calcium | F67: a chemical element which is present in teeth, bones and chalk | G67: The body needs calcium to maintain strong bones. | H67: 1
A68: 4 | B68: 3 | C68: คาร์โบไฮเดรต | D68: noun | E68: carbohydrate | F68: a substance, such as sugar or starch, which provide the body with energy | G68: Breads, cereals, and pastas are all examples of carbohydrates. | H68: 1
A69: 4 | B69: 3 | C69: ไขมัน | D69: adj | E69: fat | F69: having a lot of flesh on the body | G69: She has put on a lot of weight and looks quite fat now. | H69: 1 | I69: 1 | K69: fat
A70: 4 | B70: 3 | C70: ไฟเบอร์ | D70: noun | E70: fibre | F70: a piece of clothing that covers the lower part of the body from the waist to the feet | G70: Natural fibres such as cotton tend to be cooler. | H70: 1
A71: 4 | B71: 3 | C71: แข็งแรง | D71: adj | E71: healthy | F71: strong and well | G71: The walk has given her a healthy appetite. | H71: 1
A72: 4 | B72: 3 | C72: สูง | D72: adj | E72: high | F72: a large distance from top to bottom or a long way above the ground | G72: Mount Everest is the highest mountain in the world. | H72: 1 | I72: 1 | K72: high
A73: 4 | B73: 3 | C73: เหล็ก | D73: noun | E73: iron | F73: a silver-colored, metal element used in making steel, and found in blood | G73: Iron rusts easily. | H73: 1 | I73: 1 | K73: iron
A74: 5 | B74: 1 | C74: ถั่ว | D74: noun | E74: bean | F74: a seed, or the pod containing seeds, of various climbing plants, eaten as a vegetable | G74: String beans grow best upwards. | H74: 1 | I74: 1 | K74: bean
A75: 5 | B75: 1 | C75: นอต | D75: noun | E75: nut | F75: the dry fruit of particular trees which grows in a hard shell and can often be eaten | G75: Squirrels like to eat nuts. | H75: 1 | I75: 1 | K75: nut
A76: 5 | B76: 1 | C76: สารอาหาร | D76: noun | E76: nutrient | F76: any substance that plants or animals need in order to live and grow | G76: Oranges contain many nutrients that help our body grow. | H76: 1
A77: 5 | B77: 1 | C77: แร่ | D77: noun | E77: mineral | F77: a valuable or useful chemical substance which is formed naturally in the ground | G77: A mineral regulates the growth of bones and hormones, keeping us healthy. | H77: 1 | I77: 1 | K77: mineral
A78: 5 | B78: 1 | C78: โปรตีน | D78: noun | E78: protein | F78: any chemical that are a necessary part of the cells of all living things | G78: If you're training in the gym, your body needs extra protein to recover and grow. | H78: 1
A79: 5 | B79: 1 | C79: รวย | D79: adj | E79: rich | F79: having a lot of money or valuable possessions; wealthy | G79: The United States is one of the world’s richest nations. | H79: 1 | I79: 1 | K79: rich
A80: 5 | B80: 2 | C80: วิตามิน | D80: noun | E80: vitamin | F80: any natural substances obtained from food that are necessary for growth and health | G80: Meat, fish, fruit, and vegetables contain vitamins, such as A, C, or D. | H80: 1
A81: 5 | B81: 2 | C81: ห้องเพดาน | D81: noun | E81: attic | F81: a space in a house just under the roof, often used for storing things | G81: Winter clothes are often stored in boxes up in the attic of a house. | H81: 1
A82: 5 | B82: 2 | C82: ห้องอาบน้ำ | D82: noun | E82: bathroom | F82: a room with a toilet and a place to wash your hands, with a bathtub or a shower | G82: Our bathroom is the warmest room in the house. | H82: 1 | I82: 1 | K82: bathroom
A83: 5 | B83: 2 | C83: ห้องนอน | D83: noun | E83: bedroom | F83: a room with a bed or beds for sleeping | G83: The quietest room in the house is the bedroom, where I can relax and sleep at night. | H83: 1 | I83: 1 | K83: bedroom
A84: 5 | B84: 2 | C84: หนังสือ | D84: noun | E84: book | F84: an object with pages of text fastened along one edge and fixed inside two covers | G84: The artist’s sketch books filled several shelves. | H84: 1 | I84: 1 | K84: book
A85: 5 | B85: 2 | C85: กล่อง | D85: noun | E85: box | F85: a square or rectangular container with stiff sides and sometimes a lid | G85: On Valentine's Day, many people give their closest friend a box of chocolates. | H85: 1 | I85: 1 | K85: box
A86: 5 | B86: 3 | C86: เมืองหลวง | D86: noun | E86: capital | F86: a city which is the centre of government of a country | G86: The capital city of Japan is Tokyo. | H86: 1 | I86: 1 | K86: capital
A87: 5 | B87: 3 | C87: เมือง | D87: noun | E87: city | F87: a large town or any town in the UK which has a cathedral (= large, important church) | G87: Some people like to live in a small village, but I like to live in a big city. | H87: 1 | I87: 1 | K87: city
A88: 5 | B88: 3 | C88: แมว | D88: noun | E88: cat | F88: a small, furry animal with four legs and a tail, often kept as a pet | G88: My aunt loves to look after small kittens and other cats. | H88: 1 | I88: 1 | K88: cat
A89: 5 | B89: 3 | C89: เก้าอี้ | D89: noun | E89: chair | F89: a seat for one person, which has a back, usually four legs, and sometimes two arms | G89: You don't need to stand when there is a chair to sit down on. | H89: 1 | I89: 1 | K89: chair
A90: 5 | B90: 3 | C90: เคาน์เตอร์ | D90: noun | E90: desk | F90: a type of table for working at, usually one with drawers | G90: Tommy sits at the desk in front of me in English. | H90: 1 | I90: 1 | K90: desk
A91: 5 | B91: 3 | C91: รับประทานอาหาร | D91: adj | E91: dining | F91: a room or activity where the evening meal is served. | G91: Let's go to the dining room to eat dinner. | H91: 1 | I91: 1 | K91: dining
A92: 6 | B92: 1 | C92: ข้างล่าง | D92: adv | E92: downstairs | F92: to or on a lower floor of a building, especially the ground floor | G92: I left out of bed and ran downstairs to see who was kncoking at the door. | H92: 1 | I92: 1 | K92: downstairs
A93: 6 | B93: 1 | C93: เท้า | D93: noun | E93: foot | F93: the part of the body at the bottom of the leg on which a person or animal stands | G93: I’ve got a blister on my left foot. | H93: 1 | I93: 1 | K93: foot
A94: 6 | B94: 1 | C94: จิ้งจอก | D94: noun | E94: fox | F94: a wild mammal with a pointed face and ears, a wide furry tail, and often red-brown fur | G94: A fox who had smelled the chickens came out of the woods into the yard. | H94: 1
A95: 6 | B95: 1 | C95: ตู้เย็น | D95: noun | E95: fridge | F95: a large piece of equipment to preserve food at a cold temperature | G95: We keep the milk cool in the fridge. | H95: 1 | I95: 1 | K95: fridge
A96: 6 | B96: 1 | C96: เกม | D96: noun | E96: game | F96: an entertaining activity, esp. one played by children, or a sports competition | G96: The kids are playing a computer game. | H96: 1 | I96: 1 | K96: game
A97: 6 | B97: 1 | C97: ยิ่งใหญ่ | D97: adj | E97: great | F97: large in amount, size or degree | G97: There was a great deal of (= a lot of) excitement in the classroom before lunch. | H97: 1 | I97: 1 | K97: great
A98: 6 | B98: 2 | C98: ชั่วโมง | D98: noun | E98: hour | F98: a period of 60 minutes | G98: 7-11 shops are open 24 hours a day. | H98: 1 | I98: 1 | K98: hour
A99: 6 | B99: 2 | C99: บ้าน | D99: noun | E99: house | F99: a building which people, usually one family, live in | G99: One day, I am going to live in a big house, with my own garden. | H99: 1 | I99: 1 | K99: house
A100: 6 | B100: 2 | C100: ใน | D100: prep | E100: in | F100: In as a preposition describes a relationship of place between nouns in a sentence. | G100: When I went in the room, I saw the dog. | H100: 1 | I100: 1 | K100: in
A101: 6 | B101: 2 | C101: ครัว | D101: noun | E101: kitchen | F101: a room where food is kept, prepared and cooked and where the dishes are washed | G101: I cook all my meals in the kitchen. | H101: 1 | I101: 1 | K101: kitchen
A102: 6 | B102: 2 | C102: มีด | D102: noun | E102: knife | F102: a tool used for cutting and spreading food or other substances, or as a weapon | G102: I took a plastic knife and fork to the picnic. | H102: 1 | I102: 1 | K102: knife
A103: 6 | B103: 2 | C103: โคมไฟ | D103: noun | E103: lamp | F103: a device for giving light, esp. one with a covering that the light shines through or around | G103: When it gets dark, I turn on my desk lamp so I can read my book. | H103: 1 | I103: 1 | K103: lamp
A104: 6 | B104: 3 | C104: ใบไม้ | D104: noun | E104: leaf | F104: any flat, usually green parts of a plant that are joined at one end to the stem or branch | G104: By early November it’s getting cold so almost every leaf falls from each tree. | H104: 1 | I104: 1 | K104: leaf
A105: 6 | B105: 3 | C105: มีชีวิตอยู่ | D105: adj | E105: living | F105: the room in a house or apartment where people sit or relax together but do not sleep | G105: I watch TV together with my family in the living room. | H105: 1 | I105: 1 | K105: living
A106: 6 | B106: 3 | C106: คน | D106: noun | E106: man | F106: an adult male human being | G106: The gas company sent a man to fix the heating system. | H106: 1 | I106: 1 | K106: man
A107: 6 | B107: 3 | C107: การแข่งขัน | D107: noun | E107: match | F107: covered with a special chemical at one end which burns when rubbed | G107: He lit a match to start a fire. | H107: 1 | I107: 1 | K107: match
A108: 6 | B108: 3 | C108: เม้าส์ | D108: noun | E108: mouse | F108: a small mammal with short fur, a pointed face, and a long tail | G108: She screamed when she saw a mouse run across the kitchen floor. | H108: 1 | I108: 1 | K108: mouse
A109: 6 | B109: 3 | C109: ขณะนี้ | D109: adv | E109: now | F109: at the present time, not in the past or future | G109: She used to work in an office, but now she works at home. | H109: 1 | I109: 1 | K109: now
A110: 7 | B110: 1 | C110: บน | D110: prep | E110: on | F110: something in a position above something else | G110: There is snow on the ground. | H110: 1 | I110: 1 | K110: on
A111: 7 | B111: 1 | C111: มากกว่า | D111: prep | E111: over | F111: above or higher than something else | G111: The horse jumped over the fence. | H111: 1 | I111: 1 | K111: over
A112: 7 | B112: 1 | C112: พรรค | D112: noun | E112: party | F112: a social gathering at which people talk, eat, drink, and enjoy themselves | G112: Sally is having a birthday party at her place tonight. | H112: 1 | I112: 1 | K112: party
A113: 7 | B113: 1 | C113: คน | D113: noun | E113: person | F113: a man, woman, or child | G113: Neil Armstrong was the first person to set foot on the moon. | H113: 1 | I113: 1 | K113: person
A114: 7 | B114: 1 | C114: เครื่องพิมพ์ | D114: noun | E114: printer | F114: a machine connected to a computer that prints onto paper using ink | G114: After I write documents on my computer, I use a laser printer to publish them. | H114: 1
A115: 7 | B115: 1 | C115: พร้อมแล้ว | D115: adj | E115: ready | F115: prepared and suitable for action or use | G115: The twins are getting ready for bed. | H115: 1 | I115: 1 | K115: ready
A116: 7 | B116: 2 | C116: จริง | D116: adj | E116: real | F116: existing in fact; not imaginary | G116: This is a true story about real people. | H116: 1 | I116: 1 | K116: real
A117: 7 | B117: 2 | C117: การรับ | D117: noun | E117: reception | F117: a formal party at which important people are welcomed | G117: After the wedding, the guests went to have dinner at the reception. | H117: 1 | I117: 1 | K117: reception
A118: 7 | B118: 2 | C118: หนา | D118: adj | E118: thick | F118: having a large distance between two sides | G118: The walls are a foot thick. | J118: 1 | K118: thick
A119: 7 | B119: 2 | C119: พรม | D119: noun | E119: rug | F119: a shaped piece of thick cloth for covering part of a floor | G119: The rug we bought for the living-room has a beautiful red and gold pattern. | H119: 1
A120: 7 | B120: 2 | C120: ที่ลุ่ม | D120: noun | E120: bag | F120: a container of paper or plastic, open at the top, used to hold things | G120: I put all my groceries in a shopping bag. | H120: 1 | I120: 1 | K120: bag
A121: 7 | B121: 2 | C121: ฝักบัว | D121: noun | E121: shower | F121: a water device where you stand under to wash your whole body | G121: He stays in the shower until there is no more hot water! | H121: 1 | I121: 1 | K121: shower
A122: 7 | B122: 3 | C122: โง่ | D122: adj | E122: silly | F122: showing a lack of thought or judgment; not showing much intelligence | G122: I watched another silly, crazy movie last night. | H122: 1 | I122: 1 | K122: silly
A123: 7 | B123: 3 | C123: โซฟา | D123: noun | E123: sofa | F123: a long soft seat with a back and usually arms for more than 1 person to sit | G123: He lay down on the sofa in the living room and watched TV. | H123: 1 | I123: 1 | K123: sofa
A124: 7 | B124: 3 | C124: ตาราง | D124: noun | E124: table | F124: a piece of furniture that has a flat top supported by legs | G124: We ate our meals sitting around a large dining room table. | H124: 1 | I124: 1 | K124: table
A125: 7 | B125: 3 | C125: เทนนิส | D125: noun | E125: tennis | F125: a game played by two or four people use rackets to hit a small ball across a center net | G125: Roger Federer has won many tennis tournaments at Wimbeldon. | H125: 1 | I125: 1 | K125: tennis
A126: 7 | B126: 3 | C126: โทรศัพท์ | D126: noun | E126: telephone | F126: a device for speaking to someone in another place by means of electrical signals | G126: AIS is a big telephone company. | H126: 1 | I126: 1 | K126: telephone
A127: 7 | B127: 3 | C127: ฟัน | D127: noun | E127: tooth | F127: one of the hard white objects in the mouth, used for biting and chewing | G127: I have a sore tooth so I should go to see a dentist. | H127: 1
A128: 8 | B128: 1 | C128: ของเล่น | D128: noun | E128: toy | F128: an object for children to play with | G128: When I was young, I played with a toy train set. | H128: 1 | I128: 1 | K128: toy
A129: 8 | B129: 1 | C129: ภายใต้ | D129: prep | E129: under | F129: in or to a position below or lower than something else | G129: Our dog hides under the bed whenever we have a lightning storm. | H129: 1 | I129: 1 | K129: under
A130: 8 | B130: 1 | C130: ชั้นบน | D130: adv | E130: upstairs | F130: towards or on the highest floor or floors of a building | G130: When I am tired, I climb upstairs to go to the bedroom and sleep. | H130: 1 | I130: 1 | K130: upstairs
A131: 8 | B131: 1 | C131: เสมือน | D131: adj | E131: virtual | F131: seeming real in effect or essence | G131: She was a virtual unknown before this movie. | H131: 1
A132: 8 | B132: 1 | C132: ตู้เสื้อผ้า | D132: noun | E132: wardrobe | F132: a tall cupboard in which to hang clothes | G132: I hang all my shirts in a wardrobe. | H132: 1
A133: 8 | B133: 1 | C133: ชม | D133: verb | E133: watch | F133: to look at something for a period of time | G133: He spent the evening watching an old movie on TV. | H133: 1 | I133: 1 | K133: watch
A134: 8 | B134: 2 | C134: ภรรยา | D134: noun | E134: wife | F134: the woman to whom a man is married; a married woman | G134: I have been married to my wife for the past 17 years. | H134: 1 | I134: 1 | K134: wife
A135: 8 | B135: 2 | C135: หญิง | D135: noun | E135: woman | F135: an adult female human being | G135: A man often suffers more from high blood pressure than a woman. | H135: 1 | I135: 1 | K135: woman
A136: 8 | B136: 2 | C136: ไม่ดี | D136: adj | E136: bad | F136: unpleasant; causing difficulties or harm | G136: Flights were delayed because of bad weather. | H136: 1 | I136: 1 | K136: bad
A137: 8 | B137: 2 | C137: ใหญ่ | D137: adj | E137: big | F137: large in size or amount | G137: Do you have these shoes in a bigger size? | H137: 1 | I137: 1 | K137: big
A138: 8 | B138: 2 | C138: กลายเป็น | D138: verb | E138: become | F138: to start to be | G138: Do you want to change and become a British citizen? | H138: 1 | I138: 1 | K138: become
A139: 8 | B139: 2 | C139: หัวเข็มขัด | D139: noun | E139: buckle | F139: a fastener for a belt | G139: I waer a black belt with a silver buckle. | H139: 1
A140: 8 | B140: 3 | C140: อาคาร | D140: noun | E140: building | F140: a structure with walls and a roof | G140: Many buildings were badly damaged or destroyed by the earthquake. | H140: 1 | I140: 1 | K140: building
A141: 8 | B141: 3 | C141: ประตู | D141: noun | E141: door | F141: a flat hotizontal object used to close the entrance to something such as a room | G141: I’ll meet you at the main door of the library. | H141: 1 | I141: 1 | K141: door
A142: 8 | B142: 3 | C142: ตัวอักษร | D142: noun | E142: alphabet | F142: a set of letters arranged in a fixed order which is used for writing a language | G142: The English alphabet has 26 letters, while the Thai has 44. | J142: 1 | K142: alphabet
A143: 8 | B143: 3 | C143: กลัว | D143: noun | E143: fear | F143: an unpleasant emotion when frightened or worried by danger or pain | G143: Even when the boat was rocked by waves, the boy showed no fear. | H143: 1 | I143: 1 | K143: fear
A144: 8 | B144: 3 | C144: รู้สึก | D144: verb | E144: feel | F144: to experience or be aware of something emotional or physical | G144: She said she didn’t want anyone to feel sorry for her. | H144: 1 | I144: 1 | K144: feel
A145: 8 | B145: 3 | C145: ชั้น | D145: noun | E145: floor | F145: the flat surface that you walk on when you are inside a building | G145: There were no chairs, so the children sat on the floor. | H145: 1 | I145: 1 | K145: floor
A146: 9 | B146: 1 | C146: หัวใจ | D146: noun | E146: heart | F146: the organ in your chest that sends the blood around your body | G146: The heart pumps blood around the body in 60–80 beats per minute (bpm). | H146: 1 | I146: 1 | K146: heart
A147: 9 | B147: 1 | C147: ไก่ | D147: noun | E147: hen | F147: an adult female chicken that is often kept for its eggs, or the female of any bird | G147: On average, 3 hens will produce 2 eggs a day. | H147: 1
A148: 9 | B148: 1 | C148: บ้าน | D148: noun | E148: home | F148: the house, apartment, etc. where you live, especially with your famil | G148: After school, I go home to see my mum and dad. | H148: 1 | I148: 1 | K148: home
A149: 9 | B149: 1 | C149: ในร่ม | D149: adj | E149: indoor | F149: situated inside a building | G149: Tommy lives in a big mansion that has an indoor swimming pool. | H149: 1 | I149: 1 | K149: indoor
A150: 9 | B150: 1 | C150: กระได | D150: noun | E150: ladder | F150: two vertical bars joined by a set of horizontal steps used for climbing up and down | G150: I climbed the ladder to paint high up on the wall. | H150: 1 | I150: 1 | K150: ladder
A151: 9 | B151: 1 | C151: ปู | D151: verb | E151: lay | F151: to put something down, esp. into a flat or horizontal position | G151: He lay down on the sandy beach. | H151: 1 | I151: 1 | K151: lay
A152: 9 | B152: 2 | C152: ความรัก | D152: verb | E152: love | F152: strong affection for someone, often combined with a strong romantic attraction | G152: "I love you and want to marry you, Emily," he said. | H152: 1 | I152: 1 | K152: love
A153: 9 | B153: 2 | C153: โชคดี | D153: noun | E153: luck | F153: when good things beyond your own control happen to you. | G153: I hope you do well so I wish you the best of luck for your exams. | H153: 1 | I153: 1 | K153: luck
A154: 9 | B154: 2 | C154: เต่าทอง | D154: noun | E154: ladybird | F154: a small red beetle which is round and has black spots | G154: Look at that red and black ladybird bug walking on that leaf. | H154: 1
A155: 9 | B155: 2 | C155: นกกางเขน | D155: noun | E155: magpie | F155: a bird with black-and-white feathers and a long tail | G155: The noisy magpies are birds with black and white feathers. | H155: 1
A156: 9 | B156: 2 | C156: ใหม่ | D156: adj | E156: new | F156: recently created or having started to exist recently | G156: She’s always thinking of new ideas. | H156: 1 | I156: 1 | K156: new
A157: 9 | B157: 2 | C157: เลือก | D157: verb | E157: pick | F157: to take some things and leave others; to choose | G157: We finally picked February 14 as the date for our wedding. | H157: 1 | I157: 1 | K157: pick
A158: 9 | B158: 3 | C158: ใส่ | D158: verb | E158: put | F158: to move something or someone into the stated place, position or direction | G158: She put her coffee cup on the table. | H158: 1 | I158: 1 | K158: put
A159: 9 | B159: 3 | C159: ทดสอบ | D159: noun | E159: quiz | F159: a game or competition in which you answer questions | G159: We had a history quiz today. | H159: 1 | I159: 1 | K159: quiz
A160: 9 | B160: 3 | C160: สัมผัส | D160: noun | E160: rhyme | F160: to have the same final sound, or to use words that have the same final sound | G160: "Love" and "above" have the same ending sound. These words rhyme. | H160: 1
A161: 9 | B161: 3 | C161: แถว | D161: noun | E161: row | F161: a line of things arranged next to each other | G161: I want to sit in the front row of seats. | H161: 1 | I161: 1 | K161: row
A162: 9 | B162: 3 | C162: ปลอดภัย | D162: adj | E162: safe | F162: free from danger or harm, or not causing danger or harm | G162: Be careful and have a safe trip. | H162: 1 | I162: 1 | K162: safe
A163: 9 | B163: 3 | C163: พูด | D163: verb | E163: say | F163: to speak or pronounce words | G163: The child could say her ABCs when she was still a baby. | H163: 1 | I163: 1 | K163: say
A164: 10 | B164: 1 | C164: คำพูด | D164: noun | E164: saying | F164: a well-known expression or wise statement | G164: To be or not to be' is a famous saying from Hamlet by William Sharespeare. | H164: 1
A165: 10 | B165: 1 | C165: รองเท้า | D165: noun | E165: shoe | F165: an item of footwear intended to protect the foot while walking. | G165: I'll put on my shoes and then go outside to play tennis. | H165: 1 | I165: 1 | K165: shoe
A166: 10 | B166: 1 | C166: ปิด | D166: verb | E166: shut | F166: to close something | G166: Would you shut the door, please? | H166: 1 | I166: 1 | K166: shut
A167: 10 | B167: 1 | C167: จุด | D167: noun | E167: spot | F167: a mark, usually round, that is different esp. in color from the area around it | G167: You got a spot on your new blouse. | H167: 1 | I167: 1 | K167: spot
A168: 10 | B168: 1 | C168: ติด | D168: verb | E168: stick | F168: to attach or become attached | G168: Stick the tape to the back of the picture. | H168: 1 | I168: 1 | K168: stick
A169: 10 | B169: 1 | C169: ตรง | D169: adj | E169: straight | F169: not bending or curving | G169: Draw a straight line between the two dots. | H169: 1 | I169: 1 | K169: straight
A170: 10 | B170: 2 | C170: ถนน | D170: noun | E170: street | F170: a road in a city or town, usually with buildings along one or both sides | G170: Watch out for cars, and look both ways when you cross the street. | H170: 1 | I170: 1 | K170: street
A171: 10 | B171: 2 | C171: หวาน | D171: adj | E171: sweet | F171: having a taste similar to that of sugar or honey | G171: The four basic tastes are sweet, salty, bitter, and sour. | H171: 1 | I171: 1 | K171: sweet
A172: 10 | B172: 2 | C172: วัยโจ๋ | D172: noun | E172: teenager | F172: a person who is 13 through 19 years old | G172: Tom, who is 14, is a lovely teenager. | H172: 1
A173: 10 | B173: 2 | C173: คิด | D173: verb | E173: think | F173: to have or to form an opinion or idea about something | G173: "Do you think this is the right address?" "I don’t think so." | H173: 1 | I173: 1 | K173: think
A174: 10 | B174: 2 | C174: สัมผัส | D174: verb | E174: touch | F174: to put the fingers or hand lightly on or against something | G174: That paint is wet, so don’t touch. | H174: 1 | I174: 1 | K174: touch
A175: 10 | B175: 2 | C175: ร่ม | D175: noun | E175: umbrella | F175: a cover fitted on a folding frame with a handle at one end that protects from rain or sun | G175: A figure carrying an open umbrella walked slowly through the rain. | H175: 1 | I175: 1 | K175: umbrella
A176: 10 | B176: 3 | C176: โชคร้าย | D176: adj | E176: unlucky | F176: to describe when bad things beyond your own control happen to you. | G176: I studied but failed the test. The most difficult questions came up so I was unlucky. | H176: 1
A177: 10 | B177: 3 | C177: เดิน | D177: verb | E177: walk | F177: to move along by putting one foot in front of the other | G177: It’s not that far – you can walk it in half an hour. | H177: 1 | I177: 1 | K177: walk
A178: 10 | B178: 3 | C178: ต้องการ | D178: verb | E178: wish | F178: to hope or express desire for success or happiness | G178: I wish I could buy a new car. | H178: 1 | I178: 1 | K178: wish
A179: 10 | B179: 3 | C179: เนื้อไม้ | D179: noun | E179: wood | F179: a hard substance from trees which can be used as a building material or fuel | G179: He makes tables from natural material, like wood. | H179: 1 | I179: 1 | K179: wood
A180: 10 | B180: 3 | C180: คำ | D180: noun | E180: word | F180: a single unit of language that has meaning and can be spoken or written | G180: She spoke so fast I couldn’t understand a word. | H180: 1 | I180: 1 | K180: word
A181: 10 | B181: 3 | C181: ค้นหา | D181: verb | E181: search | F181: to look somewhere carefully in order to find something | G181: I searched for the answer on the Internet. | H181: 1 | I181: 1 | K181: search

Sheet M1 Sem 2a
A1: Week | B1: Part | C1: Thai | D1: Type | E1: Word | F1: Definition | G1: Sentence | H1: Coursebook | I1: PET in Coursebk | J1: PET only | K1: Pet Word | P1: Week | Q1: Part
A2: 1 | B2: 1 | C2: บ่าย | D2: noun | E2: afternoon | F2: Time from twelve o'clock lunchtime till the sun goes down | G2: I didn't go in the morning but in the afternoon instead. | H2: 1 | I2: 1 | K2: again | M2: Total Words | N2: 180 | P2: 1 | Q2: 1 | R2: =E2&", "&E3&", "&E4&", "&E5&", "&E6&", "&E7 -> afternoon, always, bacon, beach, because, begin | S2: =C2&", "&C3&", "&C4&", "&C5&", "&C6&", "&C7 -> บ่าย, เสมอ, เบคอน, ชายหาด, เพราะ, เริ่ม
A3: 1 | B3: 1 | C3: เสมอ | D3: adv | E3: always | F3: every time, all the time, or forever | G3: He always enjoyed having dinner with friends. | H3: 1 | I3: 1 | K3: always | M3: SB Words in PET | N3: =COUNTIF(I2:I181,1) -> 140 | P3: 1 | Q3: 2 | R3: =E8&", "&E9&", "&E10&", "&E11&", "&E12&", "&E13 -> birthday, breakfast, but, car, cereal, chat | S3: =C8&", "&C9&", "&C10&", "&C11&", "&C12&", "&C13 -> วันเกิด, อาหารเช้า, แต่, รถ, ธัญญาหาร, พูดคุย
A4: 1 | B4: 1 | C4: เบคอน | D4: noun | E4: bacon | F4: salted or smoked meat from the back or sides of a pig, usually eaten sliced and fried | G4: Try to eat some grilled bacon or ham together with scrambled eggs or omelets. | H4: 1 | M4: SB % in PET | N4: =N3/N2 -> 0.7777777778 | P4: 1 | Q4: 3 | R4: =E14&", "&E15&", "&E16&", "&E17&", "&E18&", "&E19 -> Christmas, dangerous, deliver, detective, dinner, do | S4: =C14&", "&C15&", "&C16&", "&C17&", "&C18&", "&C19 -> คริสต์มาส, เป็นอันตราย, ส่งมอบ, นักสืบ, อาหารเย็น, ทำ
A5: 1 | B5: 1 | C5: ชายหาด | D5: noun | E5: beach | F5: an area of sand or small stones near the sea or another area of water such as a lake | G5: Pattaya has a long, sandy beach that stretches over 2 kilometers. | H5: 1 | I5: 1 | K5: beach | P5: 2 | Q5: 1 | R5: =E20&", "&E21&", "&E22&", "&E23&", "&E24&", "&E25 -> early, education, evening, every, excited, finish | S5: =C20&", "&C21&", "&C22&", "&C23&", "&C24&", "&C25 -> ก่อน, การศึกษา, ตอนเย็น, ทุกๆ, ตื่นเต้น, เสร็จสิ้น
A6: 1 | B6: 1 | C6: เพราะ | D6: conj | E6: because | F6: for the reason that | G6: We can’t go to Julia’s party because we’re going away that weekend. | H6: 1 | I6: 1 | K6: because | M6: M1 Sem 2a | P6: 2 | Q6: 2 | R6: =E26&", "&E27&", "&E28&", "&E29&", "&E30&", "&E31 -> fly, football, free, fun, get, go | S6: =C26&", "&C27&", "&C28&", "&C29&", "&C30&", "&C31 -> บิน, ฟุตบอล, ฟรี, สนุก, ได้รับ, ไป
A7: 1 | B7: 1 | C7: เริ่ม | D7: verb | E7: begin | F7: to start to be, do, | G7: Let me begin by explaining why I arrived late. | H7: 1 | I7: 1 | K7: begin | P7: 2 | Q7: 3 | R7: =E32&", "&E33&", "&E34&", "&E35&", "&E36&", "&E37 -> guest, have, help, kite, live, lunchtime | S7: =C32&", "&C33&", "&C34&", "&C35&", "&C36&", "&C37 -> แขก, มี, ช่วย, ว่าว, มีชีวิต, เวลาอาหารกลางวัน
A8: 1 | B8: 2 | C8: วันเกิด | D8: noun | E8: birthday | F8: the day that is a year or number of years after a person was born | G8: Today is my mother’s 49th birthday so we are going to bake a cake for her. | H8: 1 | I8: 1 | K8: birthday | M8: Added PET words | N8: =COUNTIF(J2:J181,1) -> 4 | P8: 3 | Q8: 1 | R8: =E38&", "&E39&", "&E40&", "&E41&", "&E42&", "&E43 -> main, mealtime, miss, never, news, newspaper | S8: =C38&", "&C39&", "&C40&", "&C41&", "&C42&", "&C43 -> หลัก, เวลารับประทานอาหาร, พลาด, ไม่เคย, ข่าว, หนังสือพิมพ์
A9: 1 | B9: 2 | C9: อาหารเช้า | D9: noun | E9: breakfast | F9: a meal eaten in the morning as the first meal of the day | G9: We had scrambled eggs and toast for breakfast. | H9: 1 | I9: 1 | K9: breakfast | P9: 3 | Q9: 2 | R9: =E44&", "&E45&", "&E46&", "&E47&", "&E48&", "&E49 -> often, poor, present, session, remember, science | S9: =C44&", "&C45&", "&C46&", "&C47&", "&C48&", "&C49 -> มักจะ, ยากจน, นำเสนอ, เซสชั่น, จำ, วิทยาศาสตร์
A10: 1 | B10: 2 | C10: แต่ | D10: conj | E10: but | F10: used to express a difference or to introduce an added statement | G10: You can take Route 14 to get there, but it may take you a little longer. | H10: 1 | I10: 1 | K10: but | M10: PET Words Total | N10: =N3+N8 -> 144 | P10: 3 | Q10: 3 | R10: =E50&", "&E51&", "&E52&", "&E53&", "&E54&", "&E55 -> sometimes, start, study, subject, holiday, supporter | S10: =C50&", "&C51&", "&C52&", "&C53&", "&C54&", "&C55 -> บางครั้ง, เริ่มต้น, ศึกษา, เรื่อง, วันหยุด, เส้นสาย
A11: 1 | B11: 2 | C11: รถ | D11: noun | E11: car | F11: a road vehicle with an engine, four wheels, and seats | G11: She doesn't take the bus, but rather goes to work by car. | H11: 1 | I11: 1 | K11: car | M11: Pet Words % | N11: =N10/N2 -> 0.8 | P11: 4 | Q11: 1 | R11: =E56&", "&E57&", "&E58&", "&E59&", "&E60&", "&E61 -> take, toast, tomorrow, trip, stuff, usually | S11: =C56&", "&C57&", "&C58&", "&C59&", "&C60&", "&C61 -> เอา, ขนมปังปิ้ง, พรุ่งนี้, การเดินทาง, สิ่ง, มักจะ
A12: 1 | B12: 2 | C12: ธัญญาหาร | D12: noun | E12: cereal | F12: a food made from grain that is eaten esp. for breakfast | G12: W.K. Kellogg began to sell Kellogg’s Corn Flakes as a cereal breakfast in 1906. | H12: 1 | I12: 1 | K12: cereal | P12: 4 | Q12: 2 | R12: =E62&", "&E63&", "&E64&", "&E65&", "&E66&", "&E67 -> volleyball, date, wash, watch, website, work | S12: =C62&", "&C63&", "&C64&", "&C65&", "&C66&", "&C67 -> วอลเลย์บอล, วันที่, ล้าง, ชม, เว็บไซต์, ทำงาน
A13: 1 | B13: 2 | C13: พูดคุย | D13: verb | E13: chat | F13: to talk to someone in a friendly informal way | G13: We stopped to chat with the neighbors. | H13: 1 | I13: 1 | K13: chat | M13: Nouns | N13: =COUNTIF($D$2:$D$201,"noun") -> 90 | P13: 4 | Q13: 3 | R13: =E68&", "&E69&", "&E70&", "&E71&", "&E72&", "&E73 -> back, tear, buy, calendar, call, cheap | S13: =C68&", "&C69&", "&C70&", "&C71&", "&C72&", "&C73 -> กลับ, ฉีก, ซื้อ, ปฏิทิน, โทรศัพท์, ถูก
A14: 1 | B14: 3 | C14: คริสต์มาส | D14: noun | E14: Christmas | F14: December 25th, a day celebrated each year to honor the birth of Jesus | G14: I wish you have a very Merry Christmas! | H14: 1 | M14: Verbs | N14: =COUNTIF($D$2:$D$201,"verb") -> 57 | P14: 5 | Q14: 1 | R14: =E74&", "&E75&", "&E76&", "&E77&", "&E78&", "&E79 -> cook, cost, exhibition, expensive, footballer, see | S14: =C74&", "&C75&", "&C76&", "&C77&", "&C78&", "&C79 -> ปรุงอาหาร, ค่า, งานมหกรรม, แพง, นักฟุตบอล, ดู
A15: 1 | B15: 3 | C15: เป็นอันตราย | D15: adj | E15: dangerous | F15: able or likely to cause harm or death, or unpleasant problems | G15: Whooping cough is most dangerous cough for infants. | H15: 1 | I15: 1 | K15: dangerous | M15: Adjectives | N15: =COUNTIF($D$2:$D$201,"adj") -> 20 | P15: 5 | Q15: 2 | R15: =E80&", "&E81&", "&E82&", "&E83&", "&E84&", "&E85 -> know, like, match, kangaroo, cover, museum | S15: =C80&", "&C81&", "&C82&", "&C83&", "&C84&", "&C85 -> ทราบ, เช่น, การแข่งขัน, จิงโจ้, ปก, พิพิธภัณฑ์
A16: 1 | B16: 3 | C16: ส่งมอบ | D16: verb | E16: deliver | F16: to take goods, letters, or packages to people’s houses or places of work | G16: We deliver pizza in 30 minutes or you get your money back! | H16: 1 | I16: 1 | K16: deliver | M16: Adverbs | N16: =COUNTIF($D$2:$D$201,"adv") -> 10 | P16: 5 | Q16: 3 | R16: =E86&", "&E87&", "&E88&", "&E89&", "&E90&", "&E91 -> nice, open, top, van, frame, postcard | S16: =C86&", "&C87&", "&C88&", "&C89&", "&C90&", "&C91 -> ดี, เปิด, ด้านบน, รถตู้, กรอบ, โปสการ์ด
A17: 1 | B17: 3 | C17: นักสืบ | D17: noun | E17: detective | F17: someone who discovers information about crimes and find out who is responsible | G17: Sherlock Holmes is the fictional detective in Arthur Conan Doyle's books. | H17: 1 | I17: 1 | K17: detective | M17: Pronouns | N17: =COUNTIF($D$2:$D$201,"pron") -> 0 | P17: 6 | Q17: 1 | R17: =E92&", "&E93&", "&E94&", "&E95&", "&E96&", "&E97 -> pound, pence, smile, want, compass, damage | S17: =C92&", "&C93&", "&C94&", "&C95&", "&C96&", "&C97 -> ปอนด์, เพนนี, ยิ้ม, ต้องการ, เข็มทิศ, ความเสียหาย
A18: 1 | B18: 3 | C18: อาหารเย็น | D18: noun | E18: dinner | F18: the main meal of the day, whether in the evening or midday | G18: The restaurant is open for dinner from 5 p.m. to 10 p.m. | H18: 1 | I18: 1 | K18: dinner | M18: Prepositions | N18: =COUNTIF($D$2:$D$201,"prep") -> 1 | P18: 6 | Q18: 2 | R18: =E98&", "&E99&", "&E100&", "&E101&", "&E102&", "&E103 -> feed, first aid, health, insect, bite, outdoor | S18: =C98&", "&C99&", "&C100&", "&C101&", "&C102&", "&C103 -> กิน, การปฐมพยาบาล, สุขภาพ, แมลง, กัด, กลางแจ้ง
A19: 1 | B19: 3 | C19: ทำ | D19: verb | E19: do | F19: used with another verb to form questions and negative sentences | G19: Where do you work? | H19: 1 | I19: 1 | K19: do | M19: Conjunctions | N19: =COUNTIF($D$2:$D$201,"conj") -> 2 | P19: 6 | Q19: 3 | R19: =E104&", "&E105&", "&E106&", "&E107&", "&E108&", "&E109 -> safety, wet, skin, cancer, slipper, sun | S19: =C104&", "&C105&", "&C106&", "&C107&", "&C108&", "&C109 -> ความปลอดภัย, เปียก, ผิว, มะเร็ง, รองเท้าแตะ, ดวงอาทิตย์
A20: 2 | B20: 1 | C20: ก่อน | D20: adv | E20: early | F20: near the beginning of a period of time, or before the expected time | G20: I got up early this morning to walk the dog. | H20: 1 | I20: 1 | K20: early | M20: Expressions | N20: =COUNTIF($D$2:$D$201,"exp") -> 0 | P20: 7 | Q20: 1 | R20: =E110&", "&E111&", "&E112&", "&E113&", "&E114&", "&E115 -> scream, sunburn, sunglasses, warmth, waterproof, jacket | S20: =C110&", "&C111&", "&C112&", "&C113&", "&C114&", "&C115 -> กรีดร้อง, ผิวไหม้, แว่นตากันแดด, ความอบอุ่น, กันน้ำ, แจ็คเก็ต
A21: 2 | B21: 1 | C21: การศึกษา | D21: noun | E21: education | F21: the process of teaching or learning in a school or college, or the knowledge received | G21: Education institutes employ teachers and lecturers to transfer knowledge to students. | H21: 1 | I21: 1 | K21: education | P21: 7 | Q21: 2 | R21: =E116&", "&E117&", "&E118&", "&E119&", "&E120&", "&E121 -> wrinkle, airplane, anymore, vinegar, bowling, alley | S21: =C116&", "&C117&", "&C118&", "&C119&", "&C120&", "&C121 -> ริ้วรอย, เครื่องบิน, อีกต่อไป, น้ำส้มสายชู, โบว์ลิ่ง, ซอย
A22: 2 | B22: 1 | C22: ตอนเย็น | D22: noun | E22: evening | F22: the part of the day between the afternoon and the night | G22: We always go to the movies on Friday evenings. | H22: 1 | I22: 1 | K22: evening | P22: 7 | Q22: 3 | R22: =E122&", "&E123&", "&E124&", "&E125&", "&E126&", "&E127 -> cake, celebrate, choice, dance, decorate, ancient | S22: =C122&", "&C123&", "&C124&", "&C125&", "&C126&", "&C127 -> เค้ก, ฉลอง, ทางเลือก, เต้น, ตกแต่ง, โบราณ
A23: 2 | B23: 1 | C23: ทุกๆ | D23: adj | E23: every | F23: used when referring to all the members of a group of three or more considered separately | G23: 7-11 is open every day of the year. | H23: 1 | I23: 1 | K23: every | P23: 8 | Q23: 1 | R23: =E128&", "&E129&", "&E130&", "&E131&", "&E132&", "&E133 -> drum, fight, justice, get dressed, guitar, inside | S23: =C128&", "&C129&", "&C130&", "&C131&", "&C132&", "&C133 -> กลอง, สู้, ความยุติธรรม, ได้รับการแต่งตัว, กีตาร์, ภายใน
A24: 2 | B24: 1 | C24: ตื่นเต้น | D24: adj | E24: excited | F24: someone have strong feelings of happiness and enthusiasm | G24: She was excited about the trip because she was going to learn to ski. | H24: 1 | I24: 1 | K24: excited | P24: 8 | Q24: 2 | R24: =E134&", "&E135&", "&E136&", "&E137&", "&E138&", "&E139 -> instrument, jump, mean, mind, more, need | S24: =C134&", "&C135&", "&C136&", "&C137&", "&C138&", "&C139 -> ตราสาร, กระโดด, หมายความ, ใจ, ขึ้น, จำเป็นต้อง
A25: 2 | B25: 1 | C25: เสร็จสิ้น | D25: verb | E25: finish | F25: to come to an end | G25: The class started at 8.30 and should finish at 9.25. | H25: 1 | I25: 1 | K25: finish | P25: 8 | Q25: 3 | R25: =E140&", "&E141&", "&E142&", "&E143&", "&E144&", "&E145 -> next, organise, prepare, together, rehearse, vegetable | S25: =C140&", "&C141&", "&C142&", "&C143&", "&C144&", "&C145 -> ต่อไป, จัดระเบียบ, เตรียมการ, ร่วมกัน, ซ้อม, ผัก
A26: 2 | B26: 2 | C26: บิน | D26: verb | E26: fly | F26: When a bird, insect or aircraft flies, it moves through the air | G26: We enjoy watching the birds fly over the water. | H26: 1 | I26: 1 | K26: fly | P26: 9 | Q26: 1 | R26: =E146&", "&E147&", "&E148&", "&E149&", "&E150&", "&E151 -> world, saxophone, sing, strange, super, hero | S26: =C146&", "&C147&", "&C148&", "&C149&", "&C150&", "&C151 -> โลก, แซ็กโซโฟน, ร้องเพลง, แปลก, ซุปเปอร์, พระเอก
A27: 2 | B27: 2 | C27: ฟุตบอล | D27: noun | E27: football | F27: a game in which two teams try to send a ball into the goal of the opposing side without using their arms or hands | G27: Manchester United is my favourite football team. | H27: 1 | I27: 1 | K27: football | P27: 9 | Q27: 2 | R27: =E152&", "&E153&", "&E154&", "&E155&", "&E156&", "&E157 -> tonight, violin, wait, thumb, bottom, carrot | S27: =C152&", "&C153&", "&C154&", "&C155&", "&C156&", "&C157 -> คืนนี้, ไวโอลิน, รอ, นิ้วหัวแม่มือ, ก้น, แครอท
A28: 2 | B28: 2 | C28: ฟรี | D28: adj | E28: free | F28: not limited or controlled | G28: You are free to come and go as you please. | H28: 1 | I28: 1 | K28: free | P28: 9 | Q28: 3 | R28: =E158&", "&E159&", "&E160&", "&E161&", "&E162&", "&E163 -> couch, potato, daily, exercise, experiment, flake | S28: =C158&", "&C159&", "&C160&", "&C161&", "&C162&", "&C163 -> ที่นอน, มันฝรั่ง, ประจำวัน, การออกกำลังกาย, การทดลอง, เกล็ด
A29: 2 | B29: 2 | C29: สนุก | D29: noun | E29: fun | F29: pleasure, enjoyment, amusement, or someone or something that causes this | G29: Everybody had a lot of fun at the party. | H29: 1 | I29: 1 | K29: fun | P29: 10 | Q29: 1 | R29: =E164&", "&E165&", "&E166&", "&E167&", "&E168&", "&E169 -> fruit, greet, card, ice, ill, keep | S29: =C164&", "&C165&", "&C166&", "&C167&", "&C168&", "&C169 -> ผลไม้, ทักทาย, บัตร, น้ำแข็ง, ป่วย, เก็บ
A30: 2 | B30: 2 | C30: ได้รับ | D30: verb | E30: get | F30: to obtain, buy or earn, eceive or be given something | G30: He climbed over the fence to get his ball back. | H30: 1 | I30: 1 | K30: get | P30: 10 | Q30: 2 | R30: =E170&", "&E171&", "&E172&", "&E173&", "&E174&", "&E175 -> kiss, meaning, move, once, punctual, queue | S30: =C170&", "&C171&", "&C172&", "&C173&", "&C174&", "&C175 -> จุ๊บ, ความหมาย, ย้าย, ครั้งหนึ่ง, ตรงเวลา, คิว
A31: 2 | B31: 2 | C31: ไป | D31: verb | E31: go | F31: to move or travel to another place | G31: Where are you going to go on your vacation? | H31: 1 | I31: 1 | K31: go | P31: 10 | Q31: 3 | R31: =E176&", "&E177&", "&E178&", "&E179&", "&E180&", "&E181 -> receive, shake hands, slice, stand, stare, sunny | S31: =C176&", "&C177&", "&C178&", "&C179&", "&C180&", "&C181 -> ได้รับ, สัมผัสมือ, ชิ้น, ยืน, จ้องมอง, แดดจัด
A32: 2 | B32: 3 | C32: แขก | D32: noun | E32: guest | F32: a person who is staying with you | G32: I visited Bangkok and was a guest speaker at a meeting. | H32: 1 | I32: 1 | K32: guest
A33: 2 | B33: 3 | C33: มี | D33: verb | E33: have | F33: used with the past participle of other verbs to form perfect tenses | G33: I have heard that story before. | H33: 1 | I33: 1 | K33: have | S33: Extra - Days and Months
A34: 2 | B34: 3 | C34: ช่วย | D34: verb | E34: help | F34: to make it possible or easier for someone to do something | G34: Avoiding fatty foods and salt can help to bring down your blood pressure. | H34: 1 | I34: 1 | K34: help | S34: Monday
A35: 2 | B35: 3 | C35: ว่าว | D35: noun | E35: kite | F35: a light frame covered with material, flown in the wind from a long string | G35: On windy days Susan likes to fly her kite in the park. | H35: 1 | S35: Tuesday
A36: 2 | B36: 3 | C36: มีชีวิต | D36: verb | E36: live | F36: to be alive or have life, or to continue in this state | G36: Tommy wanted to live out the rest of his days in Hawaii. | H36: 1 | I36: 1 | K36: live | S36: Wednesday
A37: 2 | B37: 3 | C37: เวลาอาหารกลางวัน | D37: noun | E37: lunchtime | F37: the time around the middle of the day when lunch is usually eaten | G37: It's lunchtime so I'm going to eat something before the afternoon lessons start. | H37: 1 | I37: 1 | K37: lunchtime | S37: Thursday
A38: 3 | B38: 1 | C38: หลัก | D38: noun | E38: main | F38: larger, more important, or having more influence than others of the same type | G38: The main road leads into the town. | H38: 1 | I38: 1 | K38: main | S38: Friday
A39: 3 | B39: 1 | C39: เวลารับประทานอาหาร | D39: noun | E39: mealtime | F39: a time of day when a meal is eaten | G39: The mealtime that evening was silent until Dad had something to say. | H39: 1 | S39: Saturday
A40: 3 | B40: 1 | C40: พลาด | D40: verb | E40: miss | F40: to fail to do, see, or experience something | G40: If you miss the plane in Tokyo, you won't get to Chicago on time. | H40: 1 | I40: 1 | K40: miss | S40: Sunday
A41: 3 | B41: 1 | C41: ไม่เคย | D41: adv | E41: never | F41: not at any time or not on any occasion | G41: I'd love to travel. I’ve never been to Europe. | H41: 1 | I41: 1 | K41: never | S41: January
A42: 3 | B42: 1 | C42: ข่าว | D42: noun | E42: news | F42: recent information about people you know | G42: We just heard the good news – congratulations on your engagement! | H42: 1 | I42: 1 | K42: news | S42: February
A43: 3 | B43: 1 | C43: หนังสือพิมพ์ | D43: noun | E43: newspaper | F43: a paper document published regularly, consisting of news and advertisements | G43: The Wall Streeet Journal is a famous American newspaper. | H43: 1 | I43: 1 | K43: newspaper | S43: March
A44: 3 | B44: 2 | C44: มักจะ | D44: adv | E44: often | F44: many times | G44: She seldom came to class on time. In fact, she was often late for class. | H44: 1 | I44: 1 | K44: often | S44: April
A45: 3 | B45: 2 | C45: ยากจน | D45: adj | E45: poor | F45: having little money or few possessions, or lacking something important | G45: He came from a poor, immigrant family but became successful and rich. | H45: 1 | I45: 1 | K45: poor | S45: May
A46: 3 | B46: 2 | C46: นำเสนอ | D46: noun | E46: present | F46: this period of time, not the past or the future; now | G46: The story moves back and forth between the past and the present. | H46: 1 | I46: 1 | K46: present | S46: June
A47: 3 | B47: 2 | C47: เซสชั่น | D47: noun | E47: session | F47: a period of time or a meeting arranged for a particular activity | G47: The musicians gathered in the studio, waiting for the start of the recording session. | J47: 1 | K47: session | S47: July
A48: 3 | B48: 2 | C48: จำ | D48: verb | E48: remember | F48: to be able to bring back a piece of information into your mind, or in your memory | G48: I’ve been a New York Yankee fan for as long as I can remember. | H48: 1 | I48: 1 | K48: remember | S48: August
A49: 3 | B49: 2 | C49: วิทยาศาสตร์ | D49: noun | E49: science | F49: study of the physical world, especially by watching, measuring and doing experiments | G49: Advances in medical science mean that people are living longer. | H49: 1 | I49: 1 | K49: science | S49: September
A50: 3 | B50: 3 | C50: บางครั้ง | D50: adv | E50: sometimes | F50: on some occasions but not all the time | G50: I watch English movies sometimes, but not often. | H50: 1 | I50: 1 | K50: sometimes | S50: October
A51: 3 | B51: 3 | C51: เริ่มต้น | D51: verb | E51: start | F51: to begin doing something | G51: When do you start your new job? | H51: 1 | I51: 1 | K51: start | S51: November
A52: 3 | B52: 3 | C52: ศึกษา | D52: verb | E52: study | F52: to learn about a subject, especially in an educational course or by reading books | G52: I need to study tonight bacause we have a test tomorrow in Aj.Tim's class. | H52: 1 | I52: 1 | K52: study | S52: December
A53: 3 | B53: 3 | C53: เรื่อง | D53: noun | E53: subject | F53: something that is being discussed or considered | G53: My favourite subject is Math. History is my least favourite. | H53: 1 | I53: 1 | K53: subject | S53: spring
A54: 3 | B54: 3 | C54: วันหยุด | D54: noun | E54: holiday | F54: when someone does not go to work or school but travels or relaxes (US vacation) | G54: I'm going to travel and relax on my summer holiday. | H54: 1 | I54: 1 | K54: holiday | S54: summer
A55: 3 | B55: 3 | C55: เส้นสาย | D55: noun | E55: supporter | F55: a person who actively helps someone | G55: Tom is a Chelsa loyal football supporter who loves the club and the team. | H55: 1 | S55: autumn
A56: 4 | B56: 1 | C56: เอา | D56: verb | E56: take | F56: to remove something, especially without permission | G56: Please, take me with you! | H56: 1 | I56: 1 | K56: take | S56: winter
A57: 4 | B57: 1 | C57: ขนมปังปิ้ง | D57: noun | E57: toast | F57: sliced bread that has been made brown by being put near a high heat | G57: He spread marmalade on his toast and ate it with the rest of his breakfast. | H57: 1 | I57: 1 | K57: toast
A58: 4 | B58: 1 | C58: พรุ่งนี้ | D58: noun | E58: tomorrow | F58: the day after today | G58: He can't call you today, but he will call you tomorrow after work. | H58: 1 | I58: 1 | K58: tomorrow
A59: 4 | B59: 1 | C59: การเดินทาง | D59: noun | E59: trip | F59: a journey in which you go somewhere, usually for a short time, and come back again | G59: They went on a three-week trip to Europe. | H59: 1 | I59: 1 | K59: trip
A60: 4 | B60: 1 | C60: สิ่ง | D60: noun | E60: stuff | F60: a substance or material | G60: This stuff tastes good. What is it? | H60: 1
A61: 4 | B61: 1 | C61: มักจะ | D61: adv | E61: usually | F61: in the way that most often happens | G61: He usually gets home from work at about six every day. | H61: 1
A62: 4 | B62: 2 | C62: วอลเลย์บอล | D62: noun | E62: volleyball | F62: a game in which two teams use their hands to hit a ball from one side of a high net to the other | G62: Mountain biking, beach volleyball, table tennis are always on offer. | H62: 1 | I62: 1 | K62: volleyball
A63: 4 | B63: 2 | C63: วันที่ | D63: noun | E63: date | F63: a numbered day in a month, often given with the name of the month or with the month and the year | G63: Please fill in your date of birth on the application form. | J63: 1 | K63: date
A64: 4 | B64: 2 | C64: ล้าง | D64: verb | E64: wash | F64: to clean something using water | G64: Alex went to the bathroom to wash his face and comb his hair. | H64: 1 | I64: 1 | K64: wash
A65: 4 | B65: 2 | C65: ชม | D65: verb | E65: watch | F65: to look at something for a period of time | G65: The police stayed outside the house to watch who left the building. | H65: 1 | I65: 1 | K65: watch
A66: 4 | B66: 2 | C66: เว็บไซต์ | D66: noun | E66: website | F66: a place on the Internet with one or more pages of information about a subject | G66: His fans created a website, giving every detail of his private life. | H66: 1 | I66: 1 | K66: website
A67: 4 | B67: 2 | C67: ทำงาน | D67: verb | E67: work | F67: to do a job, esp. a job you do to earn money | G67: I have to work at the office on Saturday. | H67: 1 | I67: 1 | K67: work
A68: 4 | B68: 3 | C68: กลับ | D68: adv | E68: back | F68: in, at, or toward a previous place or condition or an earlier time | G68: He went back to New York last week. | H68: 1 | I68: 1 | K68: back
A69: 4 | B69: 3 | C69: ฉีก | D69: verb | E69: tear | F69: to pull or be pulled apart, or to pull pieces off | G69: Be careful. That nail will tear a hole in your shirt. | H69: 1 | I69: 1 | K69: tear
A70: 4 | B70: 3 | C70: ซื้อ | D70: verb | E70: buy | F70: to obtain something by paying money for it | G70: She was saving to buy a car. | H70: 1 | I70: 1 | K70: buy
A71: 4 | B71: 3 | C71: ปฏิทิน | D71: noun | E71: calendar | F71: a list of meetings or things you have to do at particular times | G71: My calendar is pretty crowded over the next few weeks. | H71: 1 | I71: 1 | K71: calendar
A72: 4 | B72: 3 | C72: โทรศัพท์ | D72: verb | E72: call | F72: to give someone or something a name, or to know or address someone by a particular name | G72: They can’t decide whether to call their new baby Carol or Alice. | H72: 1 | I72: 1 | K72: call
A73: 4 | B73: 3 | C73: ถูก | D73: adj | E73: cheap | F73: costing little money or less than is usual or expected | G73: AirAsia offer cheap flights to Beijing. | H73: 1 | I73: 1 | K73: cheap
A74: 5 | B74: 1 | C74: ปรุงอาหาร | D74: verb | E74: cook | F74: to prepare food by heating it in a particular way | G74: I’ll cook the steaks on the grill. | H74: 1 | I74: 1 | K74: cook
A75: 5 | B75: 1 | C75: ค่า | D75: verb | E75: cost | F75: the amount of money needed to buy, do or make something | G75: Most computers come with software included at no extra cost. | H75: 1 | I75: 1 | K75: cost
